Workbook

Sheet INGRESO DE DATOS
O2: 24 years | P2: FALSE
O4: Descuento 24 años (por edad)
O5: age | P5: Discount (%) | Q5: Parameter | S5: Type | T5: Nuevo Negocio | V5: Región | W5: Argentina
O6: 24 | P6: 35 | Q6: =1-P6/100 -> 0.65 | T6: Renovación | W6: Belize
O7: 25 | P7: 30 | Q7: =1-P7/100 -> 0.7 | W7: El Caribe
O8: 26 | P8: 25 | Q8: 0.75 | W8: Chile
O9: 27 | P9: 20 | Q9: 0.8 | W9: Colombia
O10: 28 | P10: 15 | Q10: 0.85 | W10: Costa Rica
O11: 29 | P11: 6 | Q11: 0.94 | W11: El Salvador
O12: All ages | P12: 0 | Q12: 1 | W12: Guyana
S13: Type selected | T13: 2 | W13: Haití
W14: Honduras
W15: Nicaragua
W16: Paraguay
W17: Perú
W18: Surinam
O19: Descuento de 24 años: | P19: =IF(P2,_xlfn.SWITCH(C40,O6,Q6,O7,Q7,O8,Q8,O9,Q9,O10,Q10,O11,Q11,Q12),Q12) -> 1 | W19: Uruguay
W20: Venezuela
V21: Selección | W21: 1
V22: Región | W22: =IF(W21=1,"2",IF(W21=2,3,IF(W21=3,4,IF(W21=4,5,IF(W21=4,5,IF(W21=5,6,IF(W21=6,8,IF(W21=7,9,IF(W21=8,"Bolivia"))))))))) -> 2
O24: Descuento por variante de coaseguro | P24: N/A
O30: Descuento si es nuevo negocio (ENTRADA MANUAL)
O32: New business discount
O33: Critical | P33: Diamond | Q33: Complete | R33: Advantage | S33: Secure | T33: Essential
O34: 0 | P34: 0 | Q34: 0 | R34: 0 | S34: 0 | T34: 0
A36: Nombre del Asegurado principal: | C36: w
O37: Descuento combinado 24 años + Nuevo Negocio o Roneovaciones
A38: Número de adultos en la póliza: | C38: 2 | E38: Número de hijos en la póliza: | G38: 1
A40: Edad del titular: | C40: 24 | E40: Edad de cónyuge: | G40: 55 | O40: New business discount
O41: Critical | P41: Diamond | Q41: Complete | R41: Advantage | S41: Secure | T41: Essential
O42: =1*$P$19 -> 1 | P42: =IF($T$13=1,IF($W$22="PERU2020", (1-O51)*$P$19,(1-P34)*$P$19),1*$P$19) -> 1 | Q42: =IF($T$13=1,IF($W$22="PERU2020", (1-O54)*$P$19,(1-Q34)*$P$19),1*$P$19) -> 1 | R42: =IF($T$13=1,IF($W$22="PERU2020", (1-O57)*$P$19,(1-R34)*$P$19),1*$P$19) -> 1 | S42: =IF($T$13=1,IF($W$22="PERU2020", (1-O60)*$P$19,(1-S34)*$P$19),1*$P$19) -> 1 | T42: =IF($T$13=1,IF($W$22="PERU2020", (1-O63)*$P$19,(1-T34)*$P$19),1*$P$19) -> 1
A44: Nombre de la Agencia : | C44: Agencia
A47: Tarifas en US$ | Validas: 1 de enero de 2024
O48: DISCOUNT PERU 2020
O50: EXCLUSIVE CARE
O51: 0.51
O53: PRIVILEGE CARE
O54: 0.51
O56: ADVANTAGE CARE
O57: 0.47
O59: SECURE CARE
O60: 0.54
O62: ESSENTIAL CARE
O63: 0.54

Sheet BUPA FLEX
C1: TRUE | D1: TRUE | J1: RESUMEN DE BENEFICIOS | W1: RESUMEN DE BENEFICIOS
A5: Cotización de Seguro Médico Internacional Bupa Flex Tarifas en US$ | Validas: 1 de enero de 2024 | G5: País
G7: =IF('INGRESO DE DATOS'!$W$21=1,"Argentina",IF('INGRESO DE DATOS'!$W$21=2,"Belize",IF('INGRESO DE DATOS'!$W$21=3,"Caribe",IF('INGRESO DE DATOS'!$W$21=4,"Chile",IF('INGRESO DE DATOS'!$W$21=5,"Colombia",IF('INGRESO DE DATOS'!$W$21=6,"Costa Rica",IF('INGRESO DE DATOS'!$W$21=7,"El Salvador",IF('INGRESO DE DATOS'!$W$21=8,"Guyana",IF('INGRESO DE DATOS'!$W$21=9,"Haití",IF('INGRESO DE DATOS'!$W$21=10,"Honduras",IF('INGRESO DE DATOS'!$W$21=11,"Nicaragua",IF('INGRESO DE DATOS'!$W$21=12,"Paraguay",IF('INGRESO DE DATOS'!$W$21=13,"Perú",IF('INGRESO DE DATOS'!$W$21=14,"Surinam",IF('INGRESO DE DATOS'!$W$21=15,"Uruguay",IF('INGRESO DE DATOS'!$W$21=16,"Venezuela")))))))))))))))) -> Argentina
A13: Nombre del asegurado principal | B13: =+'INGRESO DE DATOS'!$C$36 -> w
A15: Broker/Agente | B15: =+'INGRESO DE DATOS'!$C$44 -> Agencia
A17: Número de Adultos en la Póliza | B17: =+'INGRESO DE DATOS'!$C$38 -> 2 | E17: Dependientes (menores de 24 años) | H17: =+'INGRESO DE DATOS'!$G$38 -> 1
E18: =IF('INGRESO DE DATOS'!$P$2=TRUE, "Cotización para dependiente de 24 años","") -> 
A19: Edad del Titular | B19: =+'INGRESO DE DATOS'!$C$40 -> 24 | E19: Edad del Cónyuge | H19: =+'INGRESO DE DATOS'!$G$40 -> 55
D21: Fecha de Cotización: | F21: =NOW() -> 2023-12-27T15:51:50.840
A25: DEDUCIBLES | B25: PLAN 1 | C25: PLAN 2 | D25: PLAN 3 | E25: PLAN 4 | F25: PLAN 5 | G25: PLAN 6 | H25: PLAN 7
A26: Dentro o fuera del pais de residencia | B26: n/a | C26: 500 | D26: 1000 | E26: 2000 | F26: 4000 | G26: 5000 | H26: 10000
A27: Fuera del pais de residencia | B27: n/a | C27: 2000 | D27: 3000 | E27: 5000 | F27: 10000 | G27: 20000
A30: TARIFAS ANUALES
A31: Prima de Titular | B31: n/a | C31: =VLOOKUP($B$19,Tablas!$A$440:$I$502,4,TRUE) -> 3903 | D31: =VLOOKUP($B$19,Tablas!$A$440:$I$502,5,TRUE) -> 3548 | E31: =VLOOKUP($B$19,Tablas!$A$440:$I$502,6,TRUE) -> 2818 | F31: =VLOOKUP($B$19,Tablas!$A$440:$I$502,7,TRUE) -> 2363 | G31: =VLOOKUP($B$19,Tablas!$A$440:$I$502,8,TRUE) -> 2151 | H31: =VLOOKUP($B$19,Tablas!$A$440:$I$502,9,TRUE) -> 1857
A32: Prima de Cónyuge | B32: n/a | C32: =IF($B$17=1,0,(VLOOKUP($H$19,Tablas!$A$440:$I$502,4,TRUE))) -> 8857 | D32: =IF($B$17=1,0,(VLOOKUP($H$19,Tablas!$A$440:$I$502,5,TRUE))) -> 8050 | E32: =IF($B$17=1,0,(VLOOKUP($H$19,Tablas!$A$440:$I$502,6,TRUE))) -> 7102 | F32: =IF($B$17=1,0,(VLOOKUP($H$19,Tablas!$A$440:$I$502,7,TRUE))) -> 5688 | G32: =IF($B$17=1,0,(VLOOKUP($H$19,Tablas!$A$440:$I$502,8,TRUE))) -> 5169 | H32: =IF($B$17=1,0,(VLOOKUP($H$19,Tablas!$A$440:$I$502,9,TRUE))) -> 4466
A33: Primas Hijos | B33: n/a | C33: =IF($H$17=0,0,(VLOOKUP($H$17,Tablas!$A$503:$I$505,4,TRUE))) -> 1798 | D33: =IF($H$17=0,0,(VLOOKUP($H$17,Tablas!$A$503:$I$505,5,TRUE))) -> 1639 | E33: =IF($H$17=0,0,(VLOOKUP($H$17,Tablas!$A$503:$I$505,6,TRUE))) -> 965 | F33: =IF($H$17=0,0,(VLOOKUP($H$17,Tablas!$A$503:$I$505,7,TRUE))) -> 899 | G33: =IF($H$17=0,0,(VLOOKUP($H$17,Tablas!$A$503:$I$505,8,TRUE))) -> 818 | H33: =IF($H$17=0,0,(VLOOKUP($H$17,Tablas!$A$503:$I$505,9,TRUE))) -> 712
A34: Rider: Complicaciones de Maternidad | B34: n/a | C34: 0 | D34: 0 | E34: 0 | F34: 0 | G34: 0
A35: Rider: Trasplante Organos | B35: n/a | C35: 0 | D35: 0 | E35: 0 | F35: 0 | G35: 0
A36: TOTAL PRIMA NETA | B36: n/a | C36: =SUM(C31:C35) -> 14558 | D36: 13237 | E36: 10885 | F36: 8950 | G36: 8138 | H36: 7035
A37: Costo Administrativo Annual | B37: n/a | C37: 75 | D37: 75 | E37: 75 | F37: 75 | G37: 75 | H37: 75
A38: GRAN TOTAL : | B38: n/a | C38: =SUM(C36:C37) -> 14633 | D38: 13312 | E38: 10960 | F38: 9025 | G38: 8213 | H38: 7110
A41: TARIFAS SEMESTRALES
A42: Prima de Titular | B42: n/a | C42: =VLOOKUP($B$19,Tablas!$A$512:$I$574,4,TRUE) -> 2068.59 | D42: =VLOOKUP($B$19,Tablas!$A$512:$I$574,5,TRUE) -> 1880.44 | E42: =VLOOKUP($B$19,Tablas!$A$512:$I$574,6,TRUE) -> 1493.54 | F42: =VLOOKUP($B$19,Tablas!$A$512:$I$574,7,TRUE) -> 1252.39 | G42: =VLOOKUP($B$19,Tablas!$A$512:$I$574,8,TRUE) -> 1140.03 | H42: =VLOOKUP($B$19,Tablas!$A$512:$I$574,9,TRUE) -> 984.21
A43: Prima de Cónyuge | B43: n/a | C43: =IF($B$17=1,0,(VLOOKUP($H$19,Tablas!$A$512:$I$574,4,TRUE))) -> 4694.21 | D43: =IF($B$17=1,0,(VLOOKUP($H$19,Tablas!$A$512:$I$574,5,TRUE))) -> 4266.5 | E43: =IF($B$17=1,0,(VLOOKUP($H$19,Tablas!$A$512:$I$574,6,TRUE))) -> 3764.06 | F43: =IF($B$17=1,0,(VLOOKUP($H$19,Tablas!$A$512:$I$574,7,TRUE))) -> 3014.64 | G43: =IF($B$17=1,0,(VLOOKUP($H$19,Tablas!$A$512:$I$574,8,TRUE))) -> 2739.57 | H43: =IF($B$17=1,0,(VLOOKUP($H$19,Tablas!$A$512:$I$574,9,TRUE))) -> 2366.98
A44: Primas Hijos | B44: n/a | C44: =IF($H$17=0,0,(VLOOKUP($H$17,Tablas!$A$575:$I$577,4,TRUE))) -> 952.94 | D44: =IF($H$17=0,0,(VLOOKUP($H$17,Tablas!$A$575:$I$577,5,TRUE))) -> 868.67 | E44: =IF($H$17=0,0,(VLOOKUP($H$17,Tablas!$A$575:$I$577,6,TRUE))) -> 511.45 | F44: =IF($H$17=0,0,(VLOOKUP($H$17,Tablas!$A$575:$I$577,7,TRUE))) -> 476.47 | G44: =IF($H$17=0,0,(VLOOKUP($H$17,Tablas!$A$575:$I$577,8,TRUE))) -> 433.54 | H44: =IF($H$17=0,0,(VLOOKUP($H$17,Tablas!$A$575:$I$577,9,TRUE))) -> 377.36
A45: Rider: Complicaciones de Maternidad | B45: n/a | C45: 0 | D45: 0 | E45: 0 | F45: 0 | G45: 0
A46: Rider: Trasplante Organos | B46: n/a | C46: 0 | D46: 0 | E46: 0 | F46: 0 | G46: 0
A47: TOTAL PRIMA NETA | B47: n/a | C47: =SUM(C42:C46) -> 7715.74 | D47: 7015.61 | E47: 5769.05 | F47: 4743.5 | G47: 4313.14 | H47: 3728.55
A48: Costo Administrativo Anual | B48: n/a | C48: 75 | D48: 75 | E48: 75 | F48: 75 | G48: 75 | H48: 75
A49: TOTAL (1ra Cuota) | B49: n/a | C49: =SUM(C47:C48) -> 7790.74 | D49: 7090.61 | E49: 5844.05 | F49: 4818.5 | G49: 4388.14 | H49: 3803.55
A50: TOTAL (2da Cuota) | B50: n/a | C50: =C47 -> 7715.74 | D50: =D47 -> 7015.61 | E50: 5769.05 | F50: 4743.5 | G50: 4313.14 | H50: 3728.55
A51: GRAN TOTAL
A53: Este presupuesto solamente tiene carácter informativo y en ningún momento expresa compromiso legal para suministrarle cobertura de seguro. La emisión de una póliza de seguro Bupa está sujeta a todas las evaluaciones de riesgo por parte de Bupa y a la recepción de todos los pagos de prima requeridos.

Sheet Advantage (LA) (hidden)
A10: Cotización de Seguro Médico Internacional - Bupa ADVANTAGE Care (cobertura solo Latinoamérica)
A12: Bupa Advantage Care (cobertura solo en Latinoamérica) | H12: =+'INGRESO DE DATOS'!$C$36 -> w
A13: Cobertura Máxima anual | C13: US $ 3,500,000
A14: Cobertura Geografica | C14: Limitada a Latinoamérica excluyendo México | H14: =+'INGRESO DE DATOS'!$C$44 -> Agencia
A15: Condiciones médicas cubiertas | C15: Todas las condiciones médicas
A16: Redes de proveedores | C16: Red de Proveedores "Bupa Advantage" | J16: =+'INGRESO DE DATOS'!$C$38 -> 2 | M16: =+'INGRESO DE DATOS'!$C$40 -> 24
A17: Opciones fuera de la Red | C17: NO, solo en casos de emergencia | F17: FECHA DE COTIZACION :
A18: Requiere preautorización | C18: SI, 30% de penalización por omitir prenotificación | F18: =NOW() -> 2023-12-27T15:51:50.840 | J18: =+'INGRESO DE DATOS'!$G$38 -> 1 | M18: =+'INGRESO DE DATOS'!$G$40 -> 55
A20: Número máximo de días de hospitalización | C20: Ilimitado | I20: TRUE | K20: COMPLICACIONES DE MATERNIDAD
A21: Habitación y alimentación | C21: 100% dentro de Red Bupa
C22: "UCR" para L.A. en emergencias fuera de Red Bupa | I22: TRUE | K22: TRASPLANTE DE ORGANOS
A23: Cuidados Intensivos | C23: 100% dentro de Red Bupa
C24: "UCR" para L.A. en emergencias fuera de Red Bupa
A25: Cobertura de Maternidad | C25: $5,000 (Excepto planes 4,5, y 6) | F25: Deducibles | H25: PLAN 1 | I25: PLAN 2 | J25: PLAN 3 | K25: PLAN 4 | L25: PLAN 5 | M25: PLAN 6
A26: Cobertura Provisional de Recién Nacido | C26: $30,000 por los primeros 90 días | F26: Dentro del pais de residencia | H26: n/a | I26: 1000 | J26: 2000 | K26: 5000 | L26: 10000 | M26: 20000
A27: Cuidado del Recién Nacido saludable | C27: Ya incluída dentro del beneficio de Maternidad | F27: Fuera del pais de residencia | H27: n/a | I27: 2000 | J27: 3000 | K27: 5000 | L27: 10000 | M27: 20000
A28: Cobertura de Complicaciones de Maternidad | C28: Disponible a través de cobertura opcional adicional
A29: Trasplante de Organos | C29: $1,000,000 de por vida, por diagnóstico
A30: Condiciones congénitas y hereditarias | C30: <18 años $300,000 de por vida; >=18 al 100% | F30: Tarifas Anuales
A31: Coberturas opcionales (Riders) | C31: Complicaciones de Maternidad por $500,000 | F31: Prima de Titular : | H31: n/a | I31: =VLOOKUP($M$16,Tablas!#REF!,4,TRUE) ->  | J31: =VLOOKUP($M$16,Tablas!#REF!,5,TRUE) ->  | K31: =VLOOKUP($M$16,Tablas!#REF!,6,TRUE) ->  | L31: =VLOOKUP($M$16,Tablas!#REF!,7,TRUE) ->  | M31: =VLOOKUP($M$16,Tablas!#REF!,8,TRUE) -> 
C32: Trasplante de órganos por $ 300,000 adicionales | F32: Prima de Cónyuge | H32: n/a | I32: =IF($J$16=1,0,(VLOOKUP($M$18,Tablas!#REF!,4,TRUE))) ->  | J32: =IF($J$16=1,0,(VLOOKUP($M$18,Tablas!#REF!,5,TRUE))) ->  | K32: =IF($J$16=1,0,(VLOOKUP($M$18,Tablas!#REF!,6,TRUE))) ->  | L32: =IF($J$16=1,0,(VLOOKUP($M$18,Tablas!#REF!,7,TRUE))) ->  | M32: =IF($J$16=1,0,(VLOOKUP($M$18,Tablas!#REF!,8,TRUE))) -> 
A33: Acompañamiento de menores hospitalizados | C33: $300 por día | F33: Primas Hijos : | H33: n/a | I33: =IF($J$18=0,0,(VLOOKUP($J$18,Tablas!#REF!,4,TRUE))) ->  | J33: =IF($J$18=0,0,(VLOOKUP($J$18,Tablas!#REF!,5,TRUE))) ->  | K33: =IF($J$18=0,0,(VLOOKUP($J$18,Tablas!#REF!,6,TRUE))) ->  | L33: =IF($J$18=0,0,(VLOOKUP($J$18,Tablas!#REF!,7,TRUE))) ->  | M33: =IF($J$18=0,0,(VLOOKUP($J$18,Tablas!#REF!,8,TRUE))) -> 
A34: Ambulancia aérea | C34: $100,000 por año y ticket aéreo de retorno | F34: Prima Rider Complic. Maternidad | H34: n/a | I34: =+IF($I$20=FALSE,0,Tablas!#REF!) ->  | J34: =+IF($I$20=FALSE,0,Tablas!#REF!) ->  | K34: =+IF($I$20=FALSE,0,Tablas!#REF!) ->  | L34: =+IF($I$20=FALSE,0,Tablas!#REF!) ->  | M34: =+IF($I$20=FALSE,0,Tablas!#REF!) -> 
A35: Repatriación restos mortales | C35: 1 | F35: Prima Rider Trasplante Organos | H35: n/a | I35: =IF($I$22=FALSE,0,Tablas!#REF!) ->  | J35: =IF($I$22=FALSE,0,Tablas!#REF!) ->  | K35: =IF($I$22=FALSE,0,Tablas!#REF!) ->  | L35: =IF($I$22=FALSE,0,Tablas!#REF!) ->  | M35: =IF($I$22=FALSE,0,Tablas!#REF!) -> 
A36: Medicamentos por receta | C36: $6,000 por Asegurado, por año póliza | F36: TOTAL PRIMA NETA : | H36: n/a | I36: =SUM(I31:I35) -> 
A37: Almacenamiento de sangre de cordon umbilical | C37: $500 (Excepto planes 4,5, y 6) | F37: Costo Administrativo Anual : | H37: n/a | I37: 75 | J37: 75 | K37: 75 | L37: 75 | M37: 75
F38: GRAN TOTAL : | H38: n/a | I38: =SUM(I36:I37) ->  | J38: =SUM(J36:J37) ->  | K38: =SUM(K36:K37) ->  | L38: =SUM(L36:L37) ->  | M38: =SUM(M36:M37) -> 
A39: Atención médica en el hogar | C39: 100% de usual/acostumbrado y razonable
A40: Rehabilitación | C40: 100% de usual/acostumbrado y razonable | F40: Tarifas Semestrales
A41: Residencia y cuidados paliativos | C41: 100% de usual/acostumbrado y razonable | F41: Prima de Titular : | H41: n/a | I41: =VLOOKUP($M$16,Tablas!#REF!,4,TRUE) ->  | J41: =VLOOKUP($M$16,Tablas!#REF!,5,TRUE) ->  | K41: =VLOOKUP($M$16,Tablas!#REF!,6,TRUE) ->  | L41: =VLOOKUP($M$16,Tablas!#REF!,7,TRUE) ->  | M41: =VLOOKUP($M$16,Tablas!#REF!,8,TRUE) -> 
A42: Cobertura de actividades peligrosas | C42: 1 | F42: Prima de Cónyuge | H42: n/a | I42: =IF($J$16=1,0,(VLOOKUP($M$18,Tablas!#REF!,4,TRUE))) ->  | J42: =IF($J$16=1,0,(VLOOKUP($M$18,Tablas!#REF!,5,TRUE))) ->  | K42: =IF($J$16=1,0,(VLOOKUP($M$18,Tablas!#REF!,6,TRUE))) ->  | L42: =IF($J$16=1,0,(VLOOKUP($M$18,Tablas!#REF!,7,TRUE))) ->  | M42: =IF($J$16=1,0,(VLOOKUP($M$18,Tablas!#REF!,8,TRUE))) -> 
A43: Chequeos generales de rutina | C43: Hasta US$150 por año póliza.Sin deducible | F43: Primas Hijos : | H43: n/a | I43: =IF($J$18=0,0,(VLOOKUP($J$18,Tablas!#REF!,4,TRUE))) ->  | J43: =IF($J$18=0,0,(VLOOKUP($J$18,Tablas!#REF!,5,TRUE))) ->  | K43: =IF($J$18=0,0,(VLOOKUP($J$18,Tablas!#REF!,6,TRUE))) ->  | L43: =IF($J$18=0,0,(VLOOKUP($J$18,Tablas!#REF!,7,TRUE))) ->  | M43: =IF($J$18=0,0,(VLOOKUP($J$18,Tablas!#REF!,8,TRUE))) -> 
A44: Cobertura de VIH, SIDA, CAS | C44: Solo como efecto de transfusión de sangre | F44: Prima Rider Complic. Maternidad | H44: n/a | I44: =+IF($I$20=FALSE,0,Tablas!#REF!) ->  | J44: =+IF($I$20=FALSE,0,Tablas!#REF!) ->  | K44: =+IF($I$20=FALSE,0,Tablas!#REF!) ->  | L44: =+IF($I$20=FALSE,0,Tablas!#REF!) ->  | M44: =+IF($I$20=FALSE,0,Tablas!#REF!) -> 
A45: Cobertura de brazos y piernas artificiales | C45: $30,000 por año y hasta $120,000 de por vida | F45: Prima Rider Trasplante Organos | H45: n/a | I45: =IF($I$22=FALSE,0,Tablas!#REF!) ->  | J45: =IF($I$22=FALSE,0,Tablas!#REF!) ->  | K45: =IF($I$22=FALSE,0,Tablas!#REF!) ->  | L45: =IF($I$22=FALSE,0,Tablas!#REF!) ->  | M45: =IF($I$22=FALSE,0,Tablas!#REF!) -> 
A46: Cobertura extendida para dependientes en caso de muerte de asegurado principal | C46: 2 años sin costo | F46: TOTAL PRIMA NETA : | H46: n/a | I46: =SUM(I41:I45) -> 
F47: Costo Administrativo Anual : | H47: n/a | I47: 75 | J47: 75 | K47: 75 | L47: 75 | M47: 75
F48: GRAN TOTAL (1ra Cuota) : | H48: n/a | I48: =SUM(I46:I47) ->  | J48: =SUM(J46:J47) ->  | K48: =SUM(K46:K47) ->  | L48: =SUM(L46:L47) ->  | M48: =SUM(M46:M47) -> 
F49: GRAN TOTAL (2da Cuota) : | H49: n/a | I49: =I46 ->  | J49: =J46 -> 
F50: Tarifas en US $ - Válidas desde 01 Ene 2013

Sheet Comparacion de Beneficios (hidden)
A1: 2023 BUPA CARE COMPARACION DE BENEFICIOS

Sheet Tablas (hidden)
K1: Critical | L1: Diamond | M1: Complete | N1: Advantage | O1: Secure | P1: Essential
B2: REGIÓN | C2: ='INGRESO DE DATOS'!W22 -> 2 | E2: FACTOR SEMESTRAL : | G2: 0.53 | I2: TOTAL DISCOUNT | K2: ='INGRESO DE DATOS'!O42 -> 1 | L2: ='INGRESO DE DATOS'!P42 -> 1 | M2: ='INGRESO DE DATOS'!Q42 -> 1 | N2: ='INGRESO DE DATOS'!R42 -> 1 | O2: ='INGRESO DE DATOS'!S42 -> 1 | P2: ='INGRESO DE DATOS'!T42 -> 1 | T2: Impuesto (14.94%) | V2: =14.94/100+1 -> 1.1494
A5: BUPA DIAMOND CARE (MUNDIAL) | K5: ORIGINAL RATES | Q5: DISCOUNTS APPLIED
A6: TARIFAS ANUALES
A7: EDAD
C8: DW1 | D8: DW2 | E8: DW3 | F8: DW4 | G8: DW5 | H8: DW6
A9: 18 | B9: 18-24 | D9: =Q9*$V$2 ->  | E9: =R9*$V$2 ->  | K9: ='Argentina 6'!#REF! ->  | L9: ='Argentina 6'!#REF! ->  | M9: ='Argentina 6'!#REF! ->  | N9: ='Argentina 6'!#REF! ->  | O9: ='Argentina 6'!#REF! ->  | Q9: =(K9-50)*$L$2+50 ->  | R9: =(L9-50)*$L$2+50 -> 
A10: 25 | B10: 25-29 | D10: =Q10*$V$2 ->  | E10: =R10*$V$2 ->  | F10: =S10*$V$2 ->  | G10: =T10*$V$2 ->  | H10: =U10*$V$2 ->  | K10: ='Argentina 6'!#REF! ->  | L10: ='Argentina 6'!#REF! ->  | M10: ='Argentina 6'!#REF! ->  | N10: ='Argentina 6'!#REF! ->  | O10: ='Argentina 6'!#REF! ->  | Q10: =(K10-50)*$L$2+50 ->  | R10: =(L10-50)*$L$2+50 ->  | S10: =(M10-50)*$L$2+50 ->  | T10: =(N10-50)*$L$2+50 ->  | U10: =(O10-50)*$L$2+50 -> 
A11: 30 | B11: 30-34 | K11: ='Argentina 6'!#REF! ->  | L11: ='Argentina 6'!#REF! ->  | M11: ='Argentina 6'!#REF! ->  | N11: ='Argentina 6'!#REF! ->  | O11: ='Argentina 6'!#REF! -> 
A12: 35 | B12: 35-39 | K12: ='Argentina 6'!#REF! ->  | L12: ='Argentina 6'!#REF! ->  | M12: ='Argentina 6'!#REF! ->  | N12: ='Argentina 6'!#REF! ->  | O12: ='Argentina 6'!#REF! -> 
A13: 40 | B13: 40-44 | K13: ='Argentina 6'!#REF! ->  | L13: ='Argentina 6'!#REF! ->  | M13: ='Argentina 6'!#REF! ->  | N13: ='Argentina 6'!#REF! ->  | O13: ='Argentina 6'!#REF! -> 
A14: 45 | B14: 45-49 | K14: ='Argentina 6'!#REF! ->  | L14: ='Argentina 6'!#REF! ->  | M14: ='Argentina 6'!#REF! ->  | N14: ='Argentina 6'!#REF! ->  | O14: ='Argentina 6'!#REF! -> 
A15: 50 | B15: 50-54 | K15: ='Argentina 6'!#REF! ->  | L15: ='Argentina 6'!#REF! ->  | M15: ='Argentina 6'!#REF! ->  | N15: ='Argentina 6'!#REF! ->  | O15: ='Argentina 6'!#REF! -> 
A16: 55 | B16: 55-59 | K16: ='Argentina 6'!#REF! ->  | L16: ='Argentina 6'!#REF! ->  | M16: ='Argentina 6'!#REF! ->  | N16: ='Argentina 6'!#REF! ->  | O16: ='Argentina 6'!#REF! -> 
A17: 60 | B17: 60 | K17: ='Argentina 6'!#REF! ->  | L17: ='Argentina 6'!#REF! ->  | M17: ='Argentina 6'!#REF! ->  | N17: ='Argentina 6'!#REF! ->  | O17: ='Argentina 6'!#REF! -> 
A18: 61 | B18: 61 | K18: ='Argentina 6'!#REF! ->  | L18: ='Argentina 6'!#REF! ->  | M18: ='Argentina 6'!#REF! ->  | N18: ='Argentina 6'!#REF! ->  | O18: ='Argentina 6'!#REF! -> 
A19: 62 | B19: 62 | K19: ='Argentina 6'!#REF! ->  | L19: ='Argentina 6'!#REF! ->  | M19: ='Argentina 6'!#REF! ->  | N19: ='Argentina 6'!#REF! ->  | O19: ='Argentina 6'!#REF! -> 
A20: 63 | B20: 63 | K20: ='Argentina 6'!#REF! ->  | L20: ='Argentina 6'!#REF! ->  | M20: ='Argentina 6'!#REF! ->  | N20: ='Argentina 6'!#REF! ->  | O20: ='Argentina 6'!#REF! -> 
A21: 64 | B21: 64 | K21: ='Argentina 6'!#REF! ->  | L21: ='Argentina 6'!#REF! ->  | M21: ='Argentina 6'!#REF! ->  | N21: ='Argentina 6'!#REF! ->  | O21: ='Argentina 6'!#REF! -> 
A22: 65 | B22: 65 | K22: ='Argentina 6'!#REF! ->  | L22: ='Argentina 6'!#REF! ->  | M22: ='Argentina 6'!#REF! ->  | N22: ='Argentina 6'!#REF! ->  | O22: ='Argentina 6'!#REF! -> 
A23: 66 | B23: 66 | K23: ='Argentina 6'!#REF! ->  | L23: ='Argentina 6'!#REF! ->  | M23: ='Argentina 6'!#REF! ->  | N23: ='Argentina 6'!#REF! ->  | O23: ='Argentina 6'!#REF! -> 
A24: 67 | B24: 67 | K24: ='Argentina 6'!#REF! ->  | L24: ='Argentina 6'!#REF! ->  | M24: ='Argentina 6'!#REF! ->  | N24: ='Argentina 6'!#REF! ->  | O24: ='Argentina 6'!#REF! -> 
A25: 68 | B25: 68 | K25: ='Argentina 6'!#REF! ->  | L25: ='Argentina 6'!#REF! ->  | M25: ='Argentina 6'!#REF! ->  | N25: ='Argentina 6'!#REF! ->  | O25: ='Argentina 6'!#REF! -> 
A26: 69 | B26: 69 | K26: ='Argentina 6'!#REF! ->  | L26: ='Argentina 6'!#REF! ->  | M26: ='Argentina 6'!#REF! ->  | N26: ='Argentina 6'!#REF! ->  | O26: ='Argentina 6'!#REF! -> 
A27: 70 | B27: 70 | K27: ='Argentina 6'!#REF! ->  | L27: ='Argentina 6'!#REF! ->  | M27: ='Argentina 6'!#REF! ->  | N27: ='Argentina 6'!#REF! ->  | O27: ='Argentina 6'!#REF! -> 
A28: 71 | B28: 71 | K28: ='Argentina 6'!#REF! ->  | L28: ='Argentina 6'!#REF! ->  | M28: ='Argentina 6'!#REF! ->  | N28: ='Argentina 6'!#REF! ->  | O28: ='Argentina 6'!#REF! -> 
A29: 72 | B29: 72 | K29: ='Argentina 6'!#REF! ->  | L29: ='Argentina 6'!#REF! ->  | M29: ='Argentina 6'!#REF! ->  | N29: ='Argentina 6'!#REF! ->  | O29: ='Argentina 6'!#REF! -> 
A30: 73 | B30: 73 | K30: ='Argentina 6'!#REF! ->  | L30: ='Argentina 6'!#REF! ->  | M30: ='Argentina 6'!#REF! ->  | N30: ='Argentina 6'!#REF! ->  | O30: ='Argentina 6'!#REF! -> 
A31: 74 | B31: 74 | K31: ='Argentina 6'!#REF! ->  | L31: ='Argentina 6'!#REF! ->  | M31: ='Argentina 6'!#REF! ->  | N31: ='Argentina 6'!#REF! ->  | O31: ='Argentina 6'!#REF! -> 
A32: 75 | B32: 75+ | K32: ='Argentina 6'!#REF! ->  | L32: ='Argentina 6'!#REF! ->  | M32: ='Argentina 6'!#REF! ->  | N32: ='Argentina 6'!#REF! ->  | O32: ='Argentina 6'!#REF! -> 
A33: 1 | B33: 1 Child | D33: 2066.6212 | E33: 1883.8666 | F33: 1109.171 | G33: 1033.3106 | H33: 940.2092 | K33: ='Argentina 6'!D72 -> 1798 | L33: ='Argentina 6'!E72 -> 1639 | M33: ='Argentina 6'!F72 -> 965 | N33: ='Argentina 6'!G72 -> 899 | O33: ='Argentina 6'!H72 -> 818 | Q33: =(K33)*$L$2 -> 1798 | R33: =(L33)*$L$2 -> 1639 | S33: 965 | T33: 899 | U33: 818
A34: 2 | B34: 2 Children | D34: 3480.3832 | E34: 3166.597 | F34: 1641.3432 | G34: 1636.7456 | H34: 1486.1742 | K34: ='Argentina 6'!D73 -> 3028 | L34: ='Argentina 6'!E73 -> 2755 | M34: ='Argentina 6'!F73 -> 1428 | N34: ='Argentina 6'!G73 -> 1424 | O34: ='Argentina 6'!H73 -> 1293 | Q34: =(K34)*$L$2 -> 3028 | R34: =(L34)*$L$2 -> 2755 | S34: =(M34)*$L$2 -> 1428 | T34: =(N34)*$L$2 -> 1424 | U34: =(O34)*$L$2 -> 1293
A35: 3 | B35: 3+ Children | D35: =Q35*$V$2 -> 5111.3818 | E35: 4652.7712 | F35: 2372.3616 | G35: 2381.5568 | H35: 2162.0214 | K35: ='Argentina 6'!D74 -> 4447 | L35: ='Argentina 6'!E74 -> 4048 | M35: ='Argentina 6'!F74 -> 2064 | N35: ='Argentina 6'!G74 -> 2072 | O35: ='Argentina 6'!H74 -> 1881 | Q35: 4447 | R35: 4048 | S35: 2064 | T35: 2072 | U35: 1881
A36: 1 | B36: Rider Comp. Maternidad | D36: =K36*$V$2 -> 0 | E36: =L36*$V$2 -> 0 | F36: 258.615 | G36: 258.615 | H36: 258.615 | K36: 0 | L36: 0 | M36: 225 | N36: 225 | O36: 225
A37: 1 | B37: Transplante de organos | D37: =K37*$V$2 -> 0 | E37: =L37*$V$2 -> 0 | F37: =M37*$V$2 -> 0 | G37: =N37*$V$2 -> 0 | H37: =O37*$V$2 -> 0 | K37: 0 | L37: 0 | M37: 0 | N37: 0 | O37: 0
D38: 0 | E38: 0 | F38: 0 | G38: 0 | H38: 0
A41: TARIFAS SEMESTRALES
A42: EDAD
D43: DW2 | E43: DW3 | F43: DW4 | G43: DW5 | H43: DW6
A44: 18 | B44: 18-24 | D44: =$G$2*D9 -> 
A45: 25 | B45: 25-29
A46: 30 | B46: 30-34
A47: 35 | B47: 35-39
A48: 40 | B48: 40-44
A49: 45 | B49: 45-49
A50: 50 | B50: 50-54
A51: 55 | B51: 55-59
A52: 60 | B52: 60
A53: 61 | B53: 61
A54: 62 | B54: 62 | D54: =$G$2*D19 -> 
A55: 63 | B55: 63
A56: 64 | B56: 64
A57: 65 | B57: 65
A58: 66 | B58: 66
A59: 67 | B59: 67
A60: 68 | B60: 68
A61: 69 | B61: 69
A62: 70 | B62: 70
A63: 71 | B63: 71
A64: 72 | B64: 72 | D64: =$G$2*D29 -> 
A65: 73 | B65: 73
A66: 74 | B66: 74
A67: 75 | B67: 75+
A68: 1 | B68: 1 Child | D68: 1095.309236 | E68: 998.449298 | F68: 587.86063 | G68: 547.654618 | H68: 498.310876
A69: 2 | B69: 2 Children | D69: 1844.603096 | E69: 1678.29641 | F69: 869.911896 | G69: 867.475168 | H69: 787.672326
A70: 3 | B70: 3+ Children | D70: 2709.032354 | E70: 2465.968736 | F70: 1257.351648 | G70: 1262.225104 | H70: 1145.871342
A71: 1 | B71: Rider Comp. Maternidad | D71: =+D36*$G$2 -> 0 | E71: 0 | F71: 137.06595 | G71: 137.06595 | H71: 137.06595
A72: 1 | B72: Transplante de organos | D72: 0 | E72: 0 | F72: 0 | G72: 0 | H72: 0
A78: BUPA DIAMOND CARE (LATIN AMERICA) | K78: ORIGINAL RATES | Q78: DISCOUNTS APPLIED
A79: TARIFAS ANUALES
A80: EDAD
C81: DW1 | D81: DW2 | E81: DW3 | F81: DW4 | G81: DW5 | H81: DW6
A82: 18 | B82: 18-24 | D82: =Q82*$V$2 ->  | E82: =R82*$V$2 ->  | K82: ='Argentina 6'!#REF! ->  | L82: ='Argentina 6'!#REF! ->  | M82: ='Argentina 6'!#REF! ->  | N82: ='Argentina 6'!#REF! ->  | O82: ='Argentina 6'!#REF! ->  | Q82: =(K82-50)*$L$2+50 ->  | R82: =(L82-50)*$L$2+50 ->  | S82: =(M82-50)*$L$2+50 ->  | T82: =(N82-50)*$L$2+50 ->  | U82: =(O82-50)*$L$2+50 -> 
A83: 25 | B83: 25-29 | D83: =Q83*$V$2 ->  | E83: =R83*$V$2 ->  | F83: =S83*$V$2 ->  | G83: =T83*$V$2 ->  | H83: =U83*$V$2 ->  | K83: ='Argentina 6'!#REF! ->  | L83: ='Argentina 6'!#REF! ->  | M83: ='Argentina 6'!#REF! ->  | N83: ='Argentina 6'!#REF! ->  | O83: ='Argentina 6'!#REF! ->  | Q83: =(K83-50)*$L$2+50 -> 
A84: 30 | B84: 30-34 | K84: ='Argentina 6'!#REF! ->  | L84: ='Argentina 6'!#REF! ->  | M84: ='Argentina 6'!#REF! ->  | N84: ='Argentina 6'!#REF! ->  | O84: ='Argentina 6'!#REF! -> 
A85: 35 | B85: 35-39 | K85: ='Argentina 6'!#REF! ->  | L85: ='Argentina 6'!#REF! ->  | M85: ='Argentina 6'!#REF! ->  | N85: ='Argentina 6'!#REF! ->  | O85: ='Argentina 6'!#REF! -> 
A86: 40 | B86: 40-44 | K86: ='Argentina 6'!#REF! ->  | L86: ='Argentina 6'!#REF! ->  | M86: ='Argentina 6'!#REF! ->  | N86: ='Argentina 6'!#REF! ->  | O86: ='Argentina 6'!#REF! -> 
A87: 45 | B87: 45-49 | K87: ='Argentina 6'!#REF! ->  | L87: ='Argentina 6'!#REF! ->  | M87: ='Argentina 6'!#REF! ->  | N87: ='Argentina 6'!#REF! ->  | O87: ='Argentina 6'!#REF! -> 
A88: 50 | B88: 50-54 | K88: ='Argentina 6'!#REF! ->  | L88: ='Argentina 6'!#REF! ->  | M88: ='Argentina 6'!#REF! ->  | N88: ='Argentina 6'!#REF! ->  | O88: ='Argentina 6'!#REF! -> 
A89: 55 | B89: 55-59 | K89: ='Argentina 6'!#REF! ->  | L89: ='Argentina 6'!#REF! ->  | M89: ='Argentina 6'!#REF! ->  | N89: ='Argentina 6'!#REF! ->  | O89: ='Argentina 6'!#REF! -> 
A90: 60 | B90: 60 | K90: ='Argentina 6'!#REF! ->  | L90: ='Argentina 6'!#REF! ->  | M90: ='Argentina 6'!#REF! ->  | N90: ='Argentina 6'!#REF! ->  | O90: ='Argentina 6'!#REF! -> 
A91: 61 | B91: 61 | K91: ='Argentina 6'!#REF! ->  | L91: ='Argentina 6'!#REF! ->  | M91: ='Argentina 6'!#REF! ->  | N91: ='Argentina 6'!#REF! ->  | O91: ='Argentina 6'!#REF! -> 
A92: 62 | B92: 62 | K92: ='Argentina 6'!#REF! ->  | L92: ='Argentina 6'!#REF! ->  | M92: ='Argentina 6'!#REF! ->  | N92: ='Argentina 6'!#REF! ->  | O92: ='Argentina 6'!#REF! -> 
A93: 63 | B93: 63 | K93: ='Argentina 6'!#REF! ->  | L93: ='Argentina 6'!#REF! ->  | M93: ='Argentina 6'!#REF! ->  | N93: ='Argentina 6'!#REF! ->  | O93: ='Argentina 6'!#REF! -> 
A94: 64 | B94: 64 | K94: ='Argentina 6'!#REF! ->  | L94: ='Argentina 6'!#REF! ->  | M94: ='Argentina 6'!#REF! ->  | N94: ='Argentina 6'!#REF! ->  | O94: ='Argentina 6'!#REF! -> 
A95: 65 | B95: 65 | K95: ='Argentina 6'!#REF! ->  | L95: ='Argentina 6'!#REF! ->  | M95: ='Argentina 6'!#REF! ->  | N95: ='Argentina 6'!#REF! ->  | O95: ='Argentina 6'!#REF! -> 
A96: 66 | B96: 66 | K96: ='Argentina 6'!#REF! ->  | L96: ='Argentina 6'!#REF! ->  | M96: ='Argentina 6'!#REF! ->  | N96: ='Argentina 6'!#REF! ->  | O96: ='Argentina 6'!#REF! -> 
A97: 67 | B97: 67 | K97: ='Argentina 6'!#REF! ->  | L97: ='Argentina 6'!#REF! ->  | M97: ='Argentina 6'!#REF! ->  | N97: ='Argentina 6'!#REF! ->  | O97: ='Argentina 6'!#REF! -> 
A98: 68 | B98: 68 | K98: ='Argentina 6'!#REF! ->  | L98: ='Argentina 6'!#REF! ->  | M98: ='Argentina 6'!#REF! ->  | N98: ='Argentina 6'!#REF! ->  | O98: ='Argentina 6'!#REF! -> 
A99: 69 | B99: 69 | K99: ='Argentina 6'!#REF! ->  | L99: ='Argentina 6'!#REF! ->  | M99: ='Argentina 6'!#REF! ->  | N99: ='Argentina 6'!#REF! ->  | O99: ='Argentina 6'!#REF! -> 
A100: 70 | B100: 70 | K100: ='Argentina 6'!#REF! ->  | L100: ='Argentina 6'!#REF! ->  | M100: ='Argentina 6'!#REF! ->  | N100: ='Argentina 6'!#REF! ->  | O100: ='Argentina 6'!#REF! -> 
A101: 71 | B101: 71 | K101: ='Argentina 6'!#REF! ->  | L101: ='Argentina 6'!#REF! ->  | M101: ='Argentina 6'!#REF! ->  | N101: ='Argentina 6'!#REF! ->  | O101: ='Argentina 6'!#REF! -> 
A102: 72 | B102: 72 | K102: ='Argentina 6'!#REF! ->  | L102: ='Argentina 6'!#REF! ->  | M102: ='Argentina 6'!#REF! ->  | N102: ='Argentina 6'!#REF! ->  | O102: ='Argentina 6'!#REF! -> 
A103: 73 | B103: 73 | K103: ='Argentina 6'!#REF! ->  | L103: ='Argentina 6'!#REF! ->  | M103: ='Argentina 6'!#REF! ->  | N103: ='Argentina 6'!#REF! ->  | O103: ='Argentina 6'!#REF! -> 
A104: 74 | B104: 74 | K104: ='Argentina 6'!#REF! ->  | L104: ='Argentina 6'!#REF! ->  | M104: ='Argentina 6'!#REF! ->  | N104: ='Argentina 6'!#REF! ->  | O104: ='Argentina 6'!#REF! -> 
A105: 75 | B105: 75+ | K105: ='Argentina 6'!#REF! ->  | L105: ='Argentina 6'!#REF! ->  | M105: ='Argentina 6'!#REF! ->  | N105: ='Argentina 6'!#REF! ->  | O105: ='Argentina 6'!#REF! -> 
A106: 1 | B106: 1 Child | K106: ='Argentina 6'!#REF! ->  | L106: ='Argentina 6'!#REF! ->  | M106: ='Argentina 6'!#REF! ->  | N106: ='Argentina 6'!#REF! ->  | O106: ='Argentina 6'!#REF! ->  | Q106: =(K106)*$L$2 ->  | R106: =(L106)*$L$2 ->  | S106: =(M106)*$L$2 ->  | T106: =(N106)*$L$2 ->  | U106: =(O106)*$L$2 -> 
A107: 2 | B107: 2 Children | K107: ='Argentina 6'!#REF! ->  | L107: ='Argentina 6'!#REF! ->  | M107: ='Argentina 6'!#REF! ->  | N107: ='Argentina 6'!#REF! ->  | O107: ='Argentina 6'!#REF! ->  | Q107: =(K107)*$L$2 -> 
A108: 3 | B108: 3+ Children | K108: ='Argentina 6'!#REF! ->  | L108: ='Argentina 6'!#REF! ->  | M108: ='Argentina 6'!#REF! ->  | N108: ='Argentina 6'!#REF! ->  | O108: ='Argentina 6'!#REF! -> 
A109: 1 | B109: Rider Comp. Maternidad | D109: =K109*$V$2 -> 0 | E109: =L109*$V$2 -> 0 | F109: 258.615 | G109: 258.615 | H109: 258.615 | K109: 0 | L109: 0 | M109: 225 | N109: 225 | O109: 225
A110: 1 | B110: Transplante de organos | D110: =K110*$V$2 -> 0 | E110: =L110*$V$2 -> 0 | F110: =M110*$V$2 -> 0 | G110: =N110*$V$2 -> 0 | H110: =O110*$V$2 -> 0 | K110: 0 | L110: 0 | M110: 0 | N110: 0 | O110: 0
D111: 0 | E111: 0 | F111: 0 | G111: 0 | H111: 0
A114: TARIFAS SEMESTRALES
A115: EDAD
D116: DW2 | E116: DW3 | F116: DW4 | G116: DW5 | H116: DW6
A117: 18 | B117: 18-24 | D117: =$G$2*D82 -> 
A118: 25 | B118: 25-29 | D118: =$G$2*D83 -> 
A119: 30 | B119: 30-34 | D119: =$G$2*D84 -> 
A120: 35 | B120: 35-39 | D120: =$G$2*D85 -> 
A121: 40 | B121: 40-44 | D121: =$G$2*D86 -> 
A122: 45 | B122: 45-49 | D122: =$G$2*D87 -> 
A123: 50 | B123: 50-54 | D123: =$G$2*D88 -> 
A124: 55 | B124: 55-59 | D124: =$G$2*D89 -> 
A125: 60 | B125: 60 | D125: =$G$2*D90 -> 
A126: 61 | B126: 61 | D126: =$G$2*D91 -> 
A127: 62 | B127: 62 | D127: =$G$2*D92 -> 
A128: 63 | B128: 63 | D128: =$G$2*D93 -> 
A129: 64 | B129: 64 | D129: =$G$2*D94 -> 
A130: 65 | B130: 65 | D130: =$G$2*D95 -> 
A131: 66 | B131: 66 | D131: =$G$2*D96 -> 
A132: 67 | B132: 67 | D132: =$G$2*D97 -> 
A133: 68 | B133: 68 | D133: =$G$2*D98 -> 
A134: 69 | B134: 69 | D134: =$G$2*D99 -> 
A135: 70 | B135: 70 | D135: =$G$2*D100 -> 
A136: 71 | B136: 71 | D136: =$G$2*D101 -> 
A137: 72 | B137: 72 | D137: =$G$2*D102 -> 
A138: 73 | B138: 73 | D138: =$G$2*D103 -> 
A139: 74 | B139: 74 | D139: =$G$2*D104 -> 
A140: 75 | B140: 75+ | D140: =$G$2*D105 -> 
A141: 1 | B141: 1 Child | D141: =$G$2*D106 -> 
A142: 2 | B142: 2 Children | D142: =$G$2*D107 -> 
A143: 3 | B143: 3+ Children | D143: =$G$2*D108 -> 
A144: 1 | B144: Rider Comp. Maternidad | D144: =+D109*$G$2 -> 0 | E144: 0 | F144: 137.06595 | G144: 137.06595 | H144: 137.06595
A145: 1 | B145: Transplante de organos | D145: =+D110*$G$2 -> 0 | E145: 0 | F145: 0 | G145: 0 | H145: 0
A151: DIAMOND (LATINAMERICA ONLY)
A152: TARIFAS ANUALES
A153: EDAD
C154: DL1 | D154: DL2 | E154: DL3 | F154: DL4 | G154: DL5 | H154: DL6
A155: 18 | B155: - 24
A156: 25 | B156: - 29
A157: 30 | B157: - 34
A158: 35 | B158: - 39
A159: 40 | B159: - 44
A160: 45 | B160: - 49
A161: 50 | B161: - 54
A162: 55 | B162: - 59
A163: 60
A164: 61
A165: 62
A166: 63
A167: 64
A168: 65
A169: 66
A170: 67
A171: 68
A172: 69
A173: 70
A174: 71
A175: 72
A176: 73
A177: 74
A178: 75 | B178: o más
A179: 1 | B179: Hijo
A180: 2 | B180: Hijos
A181: 3 | B181: Hijos o más
A182: 1 | B182: Rider Comp. Maternidad
A183: 1 | B183: Transplante de organos | C183: 0 | D183: 0 | E183: 0 | F183: 0 | G183: 0 | H183: 0
A185: TARIFAS SEMESTRALES
A186: EDAD
C187: DL1 | D187: DL2 | E187: DL3 | F187: DL4 | G187: DL5 | H187: DL6
A188: 18 | B188: - 24 | C188: =+C155*$G$2 -> 0 | D188: 0 | E188: 0 | F188: 0 | G188: 0 | H188: 0
A189: 25 | B189: - 29 | C189: 0 | D189: 0 | E189: 0 | F189: 0 | G189: 0 | H189: 0
A190: 30 | B190: - 34 | C190: 0 | D190: 0 | E190: 0 | F190: 0 | G190: 0 | H190: 0
A191: 35 | B191: - 39 | C191: 0 | D191: 0 | E191: 0 | F191: 0 | G191: 0 | H191: 0
A192: 40 | B192: - 44 | C192: 0 | D192: 0 | E192: 0 | F192: 0 | G192: 0 | H192: 0
A193: 45 | B193: - 49 | C193: 0 | D193: 0 | E193: 0 | F193: 0 | G193: 0 | H193: 0
A194: 50 | B194: - 54 | C194: 0 | D194: 0 | E194: 0 | F194: 0 | G194: 0 | H194: 0
A195: 55 | B195: - 59 | C195: 0 | D195: 0 | E195: 0 | F195: 0 | G195: 0 | H195: 0
A196: 60 | C196: 0 | D196: 0 | E196: 0 | F196: 0 | G196: 0 | H196: 0
A197: 61 | C197: 0 | D197: 0 | E197: 0 | F197: 0 | G197: 0 | H197: 0
A198: 62 | C198: =+C165*$G$2 -> 0 | D198: 0 | E198: 0 | F198: 0 | G198: 0 | H198: 0
A199: 63 | C199: 0 | D199: 0 | E199: 0 | F199: 0 | G199: 0 | H199: 0
A200: 64 | C200: 0 | D200: 0 | E200: 0 | F200: 0 | G200: 0 | H200: 0
A201: 65 | C201: 0 | D201: 0 | E201: 0 | F201: 0 | G201: 0 | H201: 0
A202: 66 | C202: 0 | D202: 0 | E202: 0 | F202: 0 | G202: 0 | H202: 0
A203: 67 | C203: 0 | D203: 0 | E203: 0 | F203: 0 | G203: 0 | H203: 0
A204: 68 | C204: 0 | D204: 0 | E204: 0 | F204: 0 | G204: 0 | H204: 0
A205: 69 | C205: 0 | D205: 0 | E205: 0 | F205: 0 | G205: 0 | H205: 0
A206: 70 | C206: 0 | D206: 0 | E206: 0 | F206: 0 | G206: 0 | H206: 0
A207: 71 | C207: 0 | D207: 0 | E207: 0 | F207: 0 | G207: 0 | H207: 0
A208: 72 | C208: =+C175*$G$2 -> 0 | D208: 0 | E208: 0 | F208: 0 | G208: 0 | H208: 0
A209: 73 | C209: 0 | D209: 0 | E209: 0 | F209: 0 | G209: 0 | H209: 0
A210: 74 | C210: 0 | D210: 0 | E210: 0 | F210: 0 | G210: 0 | H210: 0
A211: 75 | B211: o más | C211: 0 | D211: 0 | E211: 0 | F211: 0 | G211: 0 | H211: 0
A212: 1 | B212: Hijo | C212: 0 | D212: 0 | E212: 0 | F212: 0 | G212: 0 | H212: 0
A213: 2 | B213: Hijos | C213: 0 | D213: 0 | E213: 0 | F213: 0 | G213: 0 | H213: 0
A214: 3 | B214: Hijos o más | C214: 0 | D214: 0 | E214: 0 | F214: 0 | G214: 0 | H214: 0
A215: 1 | B215: Rider Comp. Maternidad | C215: 0 | D215: 0 | E215: 0 | F215: 0 | G215: 0 | H215: 0
A216: 1 | B216: Transplante de organos | C216: 0 | D216: 0 | E216: 0 | F216: 0 | G216: 0 | H216: 0
A221: BUPA COMPLETE CARE (MUNDIAL)
... 337 more rows

Sheet Argentina 6 (hidden)
B2: REGIÓN | C2: ='INGRESO DE DATOS'!W22 -> 2 | E2: FACTOR SEMESTRAL : | G2: 0.53 | I2: NEW BUSINESS DISCUOUNTS
A5: BUPA FLEX
A6: TARIFAS ANUALES
A8: EDAD | C8: DW1 | D8: DW2 | E8: DW3 | F8: DW4 | G8: DW5 | H8: DW6 | I8: DW7
A9: 18 | B9: 18 | D9: 3530 | E9: 3210 | F9: 2491 | G9: 2112 | H9: 1920 | I9: 1660
A10: 19 | B10: 19 | D10: 3592 | E10: 3265 | F10: 2547 | G10: 2152 | H10: 1957 | I10: 1695
A11: 20 | B11: 20 | D11: 3655 | E11: 3320 | F11: 2598 | G11: 2191 | H11: 1992 | I11: 1725
A12: 21 | B12: 21 | D12: 3716 | E12: 3376 | F12: 2649 | G12: 2235 | H12: 2033 | I12: 1759
A13: 22 | B13: 22 | D13: 3777 | E13: 3436 | F13: 2706 | G13: 2277 | H13: 2070 | I13: 1791
A14: 23 | B14: 23 | D14: 3843 | E14: 3489 | F14: 2764 | G14: 2320 | H14: 2112 | I14: 1822
A15: 24 | B15: 24 | D15: 3903 | E15: 3548 | F15: 2818 | G15: 2363 | H15: 2151 | I15: 1857
A16: 25 | B16: 25 | D16: 3966 | E16: 3607 | F16: 2871 | G16: 2407 | H16: 2190 | I16: 1889
A17: 26 | B17: 26 | D17: 4031 | E17: 3663 | F17: 2929 | G17: 2451 | H17: 2227 | I17: 1922
A18: 27 | B18: 27 | D18: 4096 | E18: 3720 | F18: 2982 | G18: 2489 | H18: 2262 | I18: 1957
A19: 28 | B19: 28 | D19: 4167 | E19: 3791 | F19: 3054 | G19: 2537 | H19: 2314 | I19: 2002
A20: 29 | B20: 29 | D20: 4235 | E20: 3852 | F20: 3125 | G20: 2597 | H20: 2359 | I20: 2040
A21: 30 | B21: 30 | D21: 4307 | E21: 3916 | F21: 3191 | G21: 2647 | H21: 2407 | I21: 2078
A22: 31 | B22: 31 | D22: 4383 | E22: 3984 | F22: 3263 | G22: 2699 | H22: 2454 | I22: 2120
A23: 32 | B23: 32 | D23: 4456 | E23: 4053 | F23: 3330 | G23: 2750 | H23: 2501 | I23: 2161
A24: 33 | B24: 33 | D24: 4577 | E24: 4160 | F24: 3436 | G24: 2833 | H24: 2575 | I24: 2227
A25: 34 | B25: 34 | D25: 4699 | E25: 4272 | F25: 3542 | G25: 2914 | H25: 2649 | I25: 2291
A26: 35 | B26: 35 | D26: 4820 | E26: 4383 | F26: 3639 | G26: 2993 | H26: 2723 | I26: 2351
A27: 36 | B27: 36 | D27: 4941 | E27: 4494 | F27: 3744 | G27: 3077 | H27: 2793 | I27: 2420
A28: 37 | B28: 37 | D28: 5062 | E28: 4605 | F28: 3849 | G28: 3159 | H28: 2870 | I28: 2481
A29: 38 | B29: 38 | D29: 5187 | E29: 4713 | F29: 3957 | G29: 3238 | H29: 2945 | I29: 2550
A30: 39 | B30: 39 | D30: 5310 | E30: 4828 | F30: 4066 | G30: 3321 | H30: 3019 | I30: 2611
A31: 40 | B31: 40 | D31: 5436 | E31: 4940 | F31: 4172 | G31: 3406 | H31: 3100 | I31: 2676
A32: 41 | B32: 41 | D32: 5556 | E32: 5049 | F32: 4279 | G32: 3487 | H32: 3172 | I32: 2739
A33: 42 | B33: 42 | D33: 5677 | E33: 5165 | F33: 4389 | G33: 3573 | H33: 3246 | I33: 2804
A34: 43 | B34: 43 | D34: 5906 | E34: 5366 | F34: 4582 | G34: 3721 | H34: 3384 | I34: 2924
A35: 44 | B35: 44 | D35: 6132 | E35: 5575 | F35: 4773 | G35: 3875 | H35: 3523 | I35: 3041
A36: 45 | B36: 45 | D36: 6358 | E36: 5781 | F36: 4968 | G36: 4026 | H36: 3657 | I36: 3161
A37: 46 | B37: 46 | D37: 6585 | E37: 5986 | F37: 5158 | G37: 4176 | H37: 3797 | I37: 3275
A38: 47 | B38: 47 | D38: 6809 | E38: 6192 | F38: 5355 | G38: 4328 | H38: 3935 | I38: 3396
A39: 48 | B39: 48 | D39: 7051 | E39: 6410 | F39: 5555 | G39: 4488 | H39: 4076 | I39: 3520
A40: 49 | B40: 49 | D40: 7291 | E40: 6628 | F40: 5758 | G40: 4643 | H40: 4220 | I40: 3646
A41: 50 | B41: 50 | D41: 7534 | E41: 6847 | F41: 5957 | G41: 4799 | H41: 4365 | I41: 3773
A42: 51 | B42: 51 | D42: 7769 | E42: 7065 | F42: 6163 | G42: 4958 | H42: 4508 | I42: 3892
A43: 52 | B43: 52 | D43: 8013 | E43: 7282 | F43: 6363 | G43: 5113 | H43: 4650 | I43: 4016
A44: 53 | B44: 53 | D44: 8290 | E44: 7540 | F44: 6608 | G44: 5303 | H44: 4825 | I44: 4167
A45: 54 | B45: 54 | D45: 8573 | E45: 7795 | F45: 6857 | G45: 5495 | H45: 4997 | I45: 4316
A46: 55 | B46: 55 | D46: 8857 | E46: 8050 | F46: 7102 | G46: 5688 | H46: 5169 | I46: 4466
A47: 56 | B47: 56 | D47: 9136 | E47: 8308 | F47: 7350 | G47: 5877 | H47: 5344 | I47: 4607
A48: 57 | B48: 57 | D48: 9423 | E48: 8565 | F48: 7596 | G48: 6069 | H48: 5520 | I48: 4760
A49: 58 | B49: 58 | D49: 9744 | E49: 8857 | F49: 7894 | G49: 6306 | H49: 5733 | I49: 4945
A50: 59 | B50: 59 | D50: 10069 | E50: 9154 | F50: 8188 | G50: 6541 | H50: 5949 | I50: 5131
A51: 60 | B51: 60 | D51: 10394 | E51: 9452 | F51: 8484 | G51: 6779 | H51: 6165 | I51: 5316
A52: 61 | B52: 61 | D52: 10789 | E52: 9806 | F52: 8845 | G52: 7031 | H52: 6390 | I52: 5520
A53: 62 | B53: 62 | D53: 11270 | E53: 10247 | F53: 9286 | G53: 7354 | H53: 6688 | I53: 5768
A54: 63 | B54: 63 | D54: 11855 | E54: 10775 | F54: 9764 | G54: 7727 | H54: 7027 | I54: 6068
A55: 64 | B55: 64 | D55: 12528 | E55: 11389 | F55: 10315 | G55: 8172 | H55: 7429 | I55: 6418
A56: 65 | B56: 65 | D56: 13355 | E56: 12141 | F56: 11088 | G56: 8754 | H56: 7954 | I56: 6867
A57: 66 | B57: 66 | D57: 14314 | E57: 13009 | F57: 11982 | G57: 9428 | H57: 8572 | I57: 7391
A58: 67 | B58: 67 | D58: 15459 | E58: 14052 | F58: 12943 | G58: 10184 | H58: 9261 | I58: 7987
A59: 68 | B59: 68 | D59: 16765 | E59: 15239 | F59: 14031 | G59: 11046 | H59: 10040 | I59: 8660
A60: 69 | B60: 69 | D60: 18302 | E60: 16638 | F60: 15319 | G60: 12064 | H60: 10969 | I60: 9458
A61: 70 | B61: 70 | D61: 20064 | E61: 18243 | F61: 16900 | G61: 13339 | H61: 12128 | I61: 10448
A62: 71 | B62: 71 | D62: 22100 | E62: 20092 | F62: 18773 | G62: 14683 | H62: 13349 | I62: 11510
A63: 72 | B63: 72 | D63: 24449 | E63: 22230 | F63: 20778 | G63: 16257 | H63: 14783 | I63: 12743
A64: 73 | B64: 73 | D64: 27147 | E64: 24681 | F64: 23058 | G64: 18048 | H64: 16407 | I64: 14135
A65: 74 | B65: 74 | D65: 30268 | E65: 27517 | F65: 25711 | G65: 20117 | H65: 18287 | I65: 15770
A66: 75 | B66: 75 | D66: 33839 | E66: 30766 | F66: 28804 | G66: 22570 | H66: 20520 | I66: 17695
A67: 76 | B67: 76 | D67: 37943 | E67: 34499 | F67: 32412 | G67: 25309 | H67: 23010 | I67: 19845
A68: 77 | B68: 77 | D68: 42620 | E68: 38745 | F68: 36433 | G68: 28425 | H68: 25843 | I68: 22286
A69: 78 | B69: 78 | D69: 47884 | E69: 43532 | F69: 40933 | G69: 31941 | H69: 29035 | I69: 25038
A70: 79 | B70: 79 | D70: 53802 | E70: 48910 | F70: 45990 | G70: 35884 | H70: 32622 | I70: 28132
A71: 80 | B71: 80 | D71: 60881 | E71: 55349 | F71: 52045 | G71: 40609 | H71: 36911 | I71: 31834
A72: 1 | B72: 1 Child | D72: 1798 | E72: 1639 | F72: 965 | G72: 899 | H72: 818 | I72: 712
A73: 2 | B73: 2 Children | D73: 3028 | E73: 2755 | F73: 1428 | G73: 1424 | H73: 1293 | I73: 1122
A74: 3 | B74: 3+ Children | D74: 4447 | E74: 4048 | F74: 2064 | G74: 2072 | H74: 1881 | I74: 1623
A75: 1 | B75: Rider Comp. Maternidad | D75: 225 | E75: 225 | F75: 225 | G75: 225 | H75: 225 | I75: 225
A76: 1 | B76: Transplante de organos | D76: 300 | E76: 300 | F76: 300 | G76: 300 | H76: 300 | I76: 300

Sheet Belize 4 (hidden)
K1: D1 | L1: D2 | M1: D3 | N1: D4 | O1: D5 | P1: D6
B2: REGIÓN | C2: ='INGRESO DE DATOS'!W22 -> 2 | E2: FACTOR SEMESTRAL : | G2: 0.53 | I2: NEW BUSINESS DISCUOUNTS | K2: ='INGRESO DE DATOS'!O42 -> 1 | L2: ='INGRESO DE DATOS'!P42 -> 1 | M2: ='INGRESO DE DATOS'!Q42 -> 1 | N2: ='INGRESO DE DATOS'!R42 -> 1 | O2: ='INGRESO DE DATOS'!S42 -> 1 | P2: ='INGRESO DE DATOS'!T42 -> 1
A5: BUPA FLEX
A6: TARIFAS ANUALES
A8: EDAD | C8: DW1 | D8: DW2 | E8: DW3 | F8: DW4 | G8: DW5 | H8: DW6 | I8: DW7
A9: 18 | B9: 18 | D9: 4174 | E9: 3797 | F9: 2947 | G9: 2498 | H9: 2270 | I9: 1966
A10: 19 | B10: 19 | D10: 4253 | E10: 3861 | F10: 3009 | G10: 2545 | H10: 2316 | I10: 1996
A11: 20 | B11: 20 | D11: 4320 | E11: 3931 | F11: 3067 | G11: 2598 | H11: 2358 | I11: 2039
A12: 21 | B12: 21 | D12: 4399 | E12: 3999 | F12: 3134 | G12: 2646 | H12: 2405 | I12: 2080
A13: 22 | B13: 22 | D13: 4470 | E13: 4065 | F13: 3203 | G13: 2695 | H13: 2457 | I13: 2123
A14: 23 | B14: 23 | D14: 4549 | E14: 4136 | F14: 3269 | G14: 2747 | H14: 2498 | I14: 2163
A15: 24 | B15: 24 | D15: 4620 | E15: 4205 | F15: 3334 | G15: 2800 | H15: 2545 | I15: 2204
A16: 25 | B16: 25 | D16: 4698 | E16: 4273 | F16: 3399 | G16: 2846 | H16: 2588 | I16: 2246
A17: 26 | B17: 26 | D17: 4774 | E17: 4339 | F17: 3467 | G17: 2901 | H17: 2641 | I17: 2285
A18: 27 | B18: 27 | D18: 4851 | E18: 4408 | F18: 3535 | G18: 2954 | H18: 2688 | I18: 2323
A19: 28 | B19: 28 | D19: 4933 | E19: 4488 | F19: 3617 | G19: 3014 | H19: 2741 | I19: 2376
A20: 29 | B20: 29 | D20: 5019 | E20: 4567 | F20: 3699 | G20: 3077 | H20: 2797 | I20: 2420
A21: 30 | B21: 30 | D21: 5108 | E21: 4640 | F21: 3779 | G21: 3134 | H21: 2846 | I21: 2464
A22: 31 | B22: 31 | D22: 5191 | E22: 4721 | F22: 3860 | G22: 3196 | H22: 2906 | I22: 2514
A23: 32 | B23: 32 | D23: 5279 | E23: 4802 | F23: 3942 | G23: 3261 | H23: 2960 | I23: 2560
A24: 33 | B24: 33 | D24: 5426 | E24: 4932 | F24: 4065 | G24: 3352 | H24: 3051 | I24: 2634
A25: 34 | B25: 34 | D25: 5568 | E25: 5063 | F25: 4192 | G25: 3449 | H25: 3134 | I25: 2714
A26: 35 | B26: 35 | D26: 5712 | E26: 5200 | F26: 4315 | G26: 3543 | H26: 3222 | I26: 2787
A27: 36 | B27: 36 | D27: 5860 | E27: 5329 | F27: 4436 | G27: 3643 | H27: 3308 | I27: 2861
A28: 37 | B28: 37 | D28: 6005 | E28: 5458 | F28: 4558 | G28: 3733 | H28: 3395 | I28: 2937
A29: 38 | B29: 38 | D29: 6153 | E29: 5590 | F29: 4685 | G29: 3834 | H29: 3479 | I29: 3014
A30: 39 | B30: 39 | D30: 6293 | E30: 5723 | F30: 4813 | G30: 3931 | H30: 3570 | I30: 3091
A31: 40 | B31: 40 | D31: 6442 | E31: 5856 | F31: 4940 | G31: 4026 | H31: 3663 | I31: 3170
A32: 41 | B32: 41 | D32: 6587 | E32: 5988 | F32: 5071 | G32: 4124 | H32: 3749 | I32: 3243
A33: 42 | B33: 42 | D33: 6733 | E33: 6120 | F33: 5203 | G33: 4221 | H33: 3836 | I33: 3322
A34: 43 | B34: 43 | D34: 7000 | E34: 6364 | F34: 5429 | G34: 4403 | H34: 4001 | I34: 3459
A35: 44 | B35: 44 | D35: 7264 | E35: 6603 | F35: 5653 | G35: 4581 | H35: 4170 | I35: 3604
A36: 45 | B36: 45 | D36: 7534 | E36: 6850 | F36: 5884 | G36: 4764 | H36: 4330 | I36: 3744
A37: 46 | B37: 46 | D37: 7797 | E37: 7092 | F37: 6113 | G37: 4948 | H37: 4494 | I37: 3885
A38: 47 | B38: 47 | D38: 8067 | E38: 7329 | F38: 6344 | G38: 5128 | H38: 4662 | I38: 4025
A39: 48 | B39: 48 | D39: 8356 | E39: 7596 | F39: 6582 | G39: 5316 | H39: 4830 | I39: 4171
A40: 49 | B40: 49 | D40: 8635 | E40: 7853 | F40: 6820 | G40: 5501 | H40: 5000 | I40: 4320
A41: 50 | B41: 50 | D41: 8925 | E41: 8109 | F41: 7055 | G41: 5687 | H41: 5172 | I41: 4468
A42: 51 | B42: 51 | D42: 9210 | E42: 8374 | F42: 7297 | G42: 5873 | H42: 5340 | I42: 4615
A43: 52 | B43: 52 | D43: 9496 | E43: 8632 | F43: 7534 | G43: 6061 | H43: 5506 | I43: 4764
A44: 53 | B44: 53 | D44: 9830 | E44: 8935 | F44: 7827 | G44: 6286 | H44: 5712 | I44: 4937
A45: 54 | B45: 54 | D45: 10157 | E45: 9236 | F45: 8118 | G45: 6512 | H45: 5919 | I45: 5116
A46: 55 | B46: 55 | D46: 10488 | E46: 9536 | F46: 8415 | G46: 6736 | H46: 6122 | I46: 5290
A47: 56 | B47: 56 | D47: 10817 | E47: 9836 | F47: 8706 | G47: 6964 | H47: 6328 | I47: 5463
A48: 57 | B48: 57 | D48: 11150 | E48: 10136 | F48: 8997 | G48: 7189 | H48: 6535 | I48: 5637
A49: 58 | B49: 58 | D49: 11540 | E49: 10488 | F49: 9349 | G49: 7464 | H49: 6792 | I49: 5859
A50: 59 | B50: 59 | D50: 11925 | E50: 10840 | F50: 9700 | G50: 7744 | H50: 7042 | I50: 6078
A51: 60 | B51: 60 | D51: 12312 | E51: 11195 | F51: 10047 | G51: 8024 | H51: 7298 | I51: 6300
A52: 61 | B52: 61 | D52: 12783 | E52: 11622 | F52: 10480 | G52: 8325 | H52: 7573 | I52: 6535
A53: 62 | B53: 62 | D53: 13363 | E53: 12148 | F53: 10990 | G53: 8706 | H53: 7913 | I53: 6829
A54: 63 | B54: 63 | D54: 14050 | E54: 12771 | F54: 11551 | G54: 9153 | H54: 8320 | I54: 7181
A55: 64 | B55: 64 | D55: 14844 | E55: 13494 | F55: 12214 | G55: 9678 | H55: 8803 | I55: 7599
A56: 65 | B56: 65 | D56: 15822 | E56: 14381 | F56: 13134 | G56: 10371 | H56: 9431 | I56: 8132
A57: 66 | B57: 66 | D57: 16952 | E57: 15416 | F57: 14190 | G57: 11171 | H57: 10156 | I57: 8744
A58: 67 | B58: 67 | D58: 18319 | E58: 16654 | F58: 15325 | G58: 12064 | H58: 10965 | I58: 9458
A59: 68 | B59: 68 | D59: 19859 | E59: 18052 | F59: 16617 | G59: 13076 | H59: 11888 | I59: 10253
A60: 69 | B60: 69 | D60: 21688 | E60: 19716 | F60: 18139 | G60: 14283 | H60: 12985 | I60: 11199
A61: 70 | B61: 70 | D61: 23776 | E61: 21614 | F61: 20017 | G61: 15792 | H61: 14359 | I61: 12374
A62: 71 | B62: 71 | D62: 26173 | E62: 23795 | F62: 22234 | G62: 17387 | H62: 15805 | I62: 13632
A63: 72 | B63: 72 | D63: 28968 | E63: 26338 | F63: 24598 | G63: 19248 | H63: 17497 | I63: 15085
A64: 73 | B64: 73 | D64: 32152 | E64: 29231 | F64: 27297 | G64: 21363 | H64: 19420 | I64: 16740
A65: 74 | B65: 74 | D65: 35864 | E65: 32604 | F65: 30439 | G65: 23818 | H65: 21653 | I65: 18674
A66: 75 | B66: 75 | D66: 40081 | E66: 36435 | F66: 34100 | G66: 26728 | H66: 24301 | I66: 20947
A67: 76 | B67: 76 | D67: 44948 | E67: 40859 | F67: 38368 | G67: 29971 | H67: 27243 | I67: 23488
A68: 77 | B68: 77 | D68: 50481 | E68: 45895 | F68: 43129 | G68: 33656 | H68: 30600 | I68: 26383
A69: 78 | B69: 78 | D69: 56716 | E69: 51563 | F69: 48461 | G69: 37818 | H69: 34381 | I69: 29638
A70: 79 | B70: 79 | D70: 63728 | E70: 57937 | F70: 54447 | G70: 42494 | H70: 38629 | I70: 33300
A71: 80 | B71: 80 | D71: 72114 | E71: 65554 | F71: 61612 | G71: 48082 | H71: 43715 | I71: 37683
A72: 1 | B72: 1 Child | D72: 2131 | E72: 1937 | F72: 1150 | G72: 1077 | H72: 979 | I72: 842
A73: 2 | B73: 2 Children | D73: 3586 | E73: 3264 | F73: 1701 | G73: 1684 | H73: 1533 | I73: 1319
A74: 3 | B74: 3+ Children | D74: 5268 | E74: 4787 | F74: 2443 | G74: 2457 | H74: 2230 | I74: 1915
A75: 1 | B75: Rider Comp. Maternidad | D75: 225 | E75: 225 | F75: 225 | G75: 225 | H75: 225 | I75: 225
A76: 1 | B76: Transplante de organos | D76: 300 | E76: 300 | F76: 300 | G76: 300 | H76: 300 | I76: 300

Sheet Caribe 4 (hidden)
K1: D1 | L1: D2 | M1: D3 | N1: D4 | O1: D5 | P1: D6
B2: REGIÓN | C2: ='INGRESO DE DATOS'!W22 -> 2 | E2: FACTOR SEMESTRAL : | G2: 0.53 | I2: NEW BUSINESS DISCUOUNTS | K2: ='INGRESO DE DATOS'!O42 -> 1 | L2: ='INGRESO DE DATOS'!P42 -> 1 | M2: ='INGRESO DE DATOS'!Q42 -> 1 | N2: ='INGRESO DE DATOS'!R42 -> 1 | O2: ='INGRESO DE DATOS'!S42 -> 1 | P2: ='INGRESO DE DATOS'!T42 -> 1
A5: BUPA FLEX
A6: TARIFAS ANUALES
A8: EDAD | C8: DW1 | D8: DW2 | E8: DW3 | F8: DW4 | G8: DW5 | H8: DW6 | I8: DW7
A9: 18 | B9: 18 | D9: 4174 | E9: 3797 | F9: 2947 | G9: 2498 | H9: 2270 | I9: 1966
A10: 19 | B10: 19 | D10: 4253 | E10: 3861 | F10: 3009 | G10: 2545 | H10: 2316 | I10: 1996
A11: 20 | B11: 20 | D11: 4320 | E11: 3931 | F11: 3067 | G11: 2598 | H11: 2358 | I11: 2039
A12: 21 | B12: 21 | D12: 4399 | E12: 3999 | F12: 3134 | G12: 2646 | H12: 2405 | I12: 2080
A13: 22 | B13: 22 | D13: 4470 | E13: 4065 | F13: 3203 | G13: 2695 | H13: 2457 | I13: 2123
A14: 23 | B14: 23 | D14: 4549 | E14: 4136 | F14: 3269 | G14: 2747 | H14: 2498 | I14: 2163
A15: 24 | B15: 24 | D15: 4620 | E15: 4205 | F15: 3334 | G15: 2800 | H15: 2545 | I15: 2204
A16: 25 | B16: 25 | D16: 4698 | E16: 4273 | F16: 3399 | G16: 2846 | H16: 2588 | I16: 2246
A17: 26 | B17: 26 | D17: 4774 | E17: 4339 | F17: 3467 | G17: 2901 | H17: 2641 | I17: 2285
A18: 27 | B18: 27 | D18: 4851 | E18: 4408 | F18: 3535 | G18: 2954 | H18: 2688 | I18: 2323
A19: 28 | B19: 28 | D19: 4933 | E19: 4488 | F19: 3617 | G19: 3014 | H19: 2741 | I19: 2376
A20: 29 | B20: 29 | D20: 5019 | E20: 4567 | F20: 3699 | G20: 3077 | H20: 2797 | I20: 2420
A21: 30 | B21: 30 | D21: 5108 | E21: 4640 | F21: 3779 | G21: 3134 | H21: 2846 | I21: 2464
A22: 31 | B22: 31 | D22: 5191 | E22: 4721 | F22: 3860 | G22: 3196 | H22: 2906 | I22: 2514
A23: 32 | B23: 32 | D23: 5279 | E23: 4802 | F23: 3942 | G23: 3261 | H23: 2960 | I23: 2560
A24: 33 | B24: 33 | D24: 5426 | E24: 4932 | F24: 4065 | G24: 3352 | H24: 3051 | I24: 2634
A25: 34 | B25: 34 | D25: 5568 | E25: 5063 | F25: 4192 | G25: 3449 | H25: 3134 | I25: 2714
A26: 35 | B26: 35 | D26: 5712 | E26: 5200 | F26: 4315 | G26: 3543 | H26: 3222 | I26: 2787
A27: 36 | B27: 36 | D27: 5860 | E27: 5329 | F27: 4436 | G27: 3643 | H27: 3308 | I27: 2861
A28: 37 | B28: 37 | D28: 6005 | E28: 5458 | F28: 4558 | G28: 3733 | H28: 3395 | I28: 2937
A29: 38 | B29: 38 | D29: 6153 | E29: 5590 | F29: 4685 | G29: 3834 | H29: 3479 | I29: 3014
A30: 39 | B30: 39 | D30: 6293 | E30: 5723 | F30: 4813 | G30: 3931 | H30: 3570 | I30: 3091
A31: 40 | B31: 40 | D31: 6442 | E31: 5856 | F31: 4940 | G31: 4026 | H31: 3663 | I31: 3170
A32: 41 | B32: 41 | D32: 6587 | E32: 5988 | F32: 5071 | G32: 4124 | H32: 3749 | I32: 3243
A33: 42 | B33: 42 | D33: 6733 | E33: 6120 | F33: 5203 | G33: 4221 | H33: 3836 | I33: 3322
A34: 43 | B34: 43 | D34: 7000 | E34: 6364 | F34: 5429 | G34: 4403 | H34: 4001 | I34: 3459
A35: 44 | B35: 44 | D35: 7264 | E35: 6603 | F35: 5653 | G35: 4581 | H35: 4170 | I35: 3604
A36: 45 | B36: 45 | D36: 7534 | E36: 6850 | F36: 5884 | G36: 4764 | H36: 4330 | I36: 3744
A37: 46 | B37: 46 | D37: 7797 | E37: 7092 | F37: 6113 | G37: 4948 | H37: 4494 | I37: 3885
A38: 47 | B38: 47 | D38: 8067 | E38: 7329 | F38: 6344 | G38: 5128 | H38: 4662 | I38: 4025
A39: 48 | B39: 48 | D39: 8356 | E39: 7596 | F39: 6582 | G39: 5316 | H39: 4830 | I39: 4171
A40: 49 | B40: 49 | D40: 8635 | E40: 7853 | F40: 6820 | G40: 5501 | H40: 5000 | I40: 4320
A41: 50 | B41: 50 | D41: 8925 | E41: 8109 | F41: 7055 | G41: 5687 | H41: 5172 | I41: 4468
A42: 51 | B42: 51 | D42: 9210 | E42: 8374 | F42: 7297 | G42: 5873 | H42: 5340 | I42: 4615
A43: 52 | B43: 52 | D43: 9496 | E43: 8632 | F43: 7534 | G43: 6061 | H43: 5506 | I43: 4764
A44: 53 | B44: 53 | D44: 9830 | E44: 8935 | F44: 7827 | G44: 6286 | H44: 5712 | I44: 4937
A45: 54 | B45: 54 | D45: 10157 | E45: 9236 | F45: 8118 | G45: 6512 | H45: 5919 | I45: 5116
A46: 55 | B46: 55 | D46: 10488 | E46: 9536 | F46: 8415 | G46: 6736 | H46: 6122 | I46: 5290
A47: 56 | B47: 56 | D47: 10817 | E47: 9836 | F47: 8706 | G47: 6964 | H47: 6328 | I47: 5463
A48: 57 | B48: 57 | D48: 11150 | E48: 10136 | F48: 8997 | G48: 7189 | H48: 6535 | I48: 5637
A49: 58 | B49: 58 | D49: 11540 | E49: 10488 | F49: 9349 | G49: 7464 | H49: 6792 | I49: 5859
A50: 59 | B50: 59 | D50: 11925 | E50: 10840 | F50: 9700 | G50: 7744 | H50: 7042 | I50: 6078
A51: 60 | B51: 60 | D51: 12312 | E51: 11195 | F51: 10047 | G51: 8024 | H51: 7298 | I51: 6300
A52: 61 | B52: 61 | D52: 12783 | E52: 11622 | F52: 10480 | G52: 8325 | H52: 7573 | I52: 6535
A53: 62 | B53: 62 | D53: 13363 | E53: 12148 | F53: 10990 | G53: 8706 | H53: 7913 | I53: 6829
A54: 63 | B54: 63 | D54: 14050 | E54: 12771 | F54: 11551 | G54: 9153 | H54: 8320 | I54: 7181
A55: 64 | B55: 64 | D55: 14844 | E55: 13494 | F55: 12214 | G55: 9678 | H55: 8803 | I55: 7599
A56: 65 | B56: 65 | D56: 15822 | E56: 14381 | F56: 13134 | G56: 10371 | H56: 9431 | I56: 8132
A57: 66 | B57: 66 | D57: 16952 | E57: 15416 | F57: 14190 | G57: 11171 | H57: 10156 | I57: 8744
A58: 67 | B58: 67 | D58: 18319 | E58: 16654 | F58: 15325 | G58: 12064 | H58: 10965 | I58: 9458
A59: 68 | B59: 68 | D59: 19859 | E59: 18052 | F59: 16617 | G59: 13076 | H59: 11888 | I59: 10253
A60: 69 | B60: 69 | D60: 21688 | E60: 19716 | F60: 18139 | G60: 14283 | H60: 12985 | I60: 11199
A61: 70 | B61: 70 | D61: 23776 | E61: 21614 | F61: 20017 | G61: 15792 | H61: 14359 | I61: 12374
A62: 71 | B62: 71 | D62: 26173 | E62: 23795 | F62: 22234 | G62: 17387 | H62: 15805 | I62: 13632
A63: 72 | B63: 72 | D63: 28968 | E63: 26338 | F63: 24598 | G63: 19248 | H63: 17497 | I63: 15085
A64: 73 | B64: 73 | D64: 32152 | E64: 29231 | F64: 27297 | G64: 21363 | H64: 19420 | I64: 16740
A65: 74 | B65: 74 | D65: 35864 | E65: 32604 | F65: 30439 | G65: 23818 | H65: 21653 | I65: 18674
A66: 75 | B66: 75 | D66: 40081 | E66: 36435 | F66: 34100 | G66: 26728 | H66: 24301 | I66: 20947
A67: 76 | B67: 76 | D67: 44948 | E67: 40859 | F67: 38368 | G67: 29971 | H67: 27243 | I67: 23488
A68: 77 | B68: 77 | D68: 50481 | E68: 45895 | F68: 43129 | G68: 33656 | H68: 30600 | I68: 26383
A69: 78 | B69: 78 | D69: 56716 | E69: 51563 | F69: 48461 | G69: 37818 | H69: 34381 | I69: 29638
A70: 79 | B70: 79 | D70: 63728 | E70: 57937 | F70: 54447 | G70: 42494 | H70: 38629 | I70: 33300
A71: 80 | B71: 80 | D71: 72114 | E71: 65554 | F71: 61612 | G71: 48082 | H71: 43715 | I71: 37683
A72: 1 | B72: 1 Child | D72: 2131 | E72: 1937 | F72: 1150 | G72: 1077 | H72: 979 | I72: 842
A73: 2 | B73: 2 Children | D73: 3586 | E73: 3264 | F73: 1701 | G73: 1684 | H73: 1533 | I73: 1319
A74: 3 | B74: 3+ Children | D74: 5268 | E74: 4787 | F74: 2443 | G74: 2457 | H74: 2230 | I74: 1915
A75: 1 | B75: Rider Comp. Maternidad | D75: 225 | E75: 225 | F75: 225 | G75: 225 | H75: 225 | I75: 225
A76: 1 | B76: Transplante de organos | D76: 300 | E76: 300 | F76: 300 | G76: 300 | H76: 300 | I76: 300

Sheet Chile 2 (hidden)
K1: D1 | L1: D2 | M1: D3 | N1: D4 | O1: D5 | P1: D6
B2: REGIÓN | C2: ='INGRESO DE DATOS'!W22 -> 2 | E2: FACTOR SEMESTRAL : | G2: 0.53 | I2: NEW BUSINESS DISCUOUNTS | K2: ='INGRESO DE DATOS'!O42 -> 1 | L2: ='INGRESO DE DATOS'!P42 -> 1 | M2: ='INGRESO DE DATOS'!Q42 -> 1 | N2: ='INGRESO DE DATOS'!R42 -> 1 | O2: ='INGRESO DE DATOS'!S42 -> 1 | P2: ='INGRESO DE DATOS'!T42 -> 1
A5: BUPA FLEX
A6: TARIFAS ANUALES
A8: EDAD | C8: DW1 | D8: DW2 | E8: DW3 | F8: DW4 | G8: DW5 | H8: DW6 | I8: DW7
A9: 18 | B9: 18 | D9: 4808 | E9: 4370 | F9: 3382 | G9: 2868 | H9: 2607 | I9: 2261
A10: 19 | B10: 19 | D10: 4889 | E10: 4446 | F10: 3455 | G10: 2925 | H10: 2659 | I10: 2303
A11: 20 | B11: 20 | D11: 4976 | E11: 4520 | F11: 3530 | G11: 2980 | H11: 2713 | I11: 2348
A12: 21 | B12: 21 | D12: 5054 | E12: 4596 | F12: 3604 | G12: 3039 | H12: 2764 | I12: 2393
A13: 22 | B13: 22 | D13: 5150 | E13: 4676 | F13: 3681 | G13: 3100 | H13: 2816 | I13: 2440
A14: 23 | B14: 23 | D14: 5231 | E14: 4758 | F14: 3752 | G14: 3157 | H14: 2868 | I14: 2487
A15: 24 | B15: 24 | D15: 5319 | E15: 4836 | F15: 3834 | G15: 3214 | H15: 2925 | I15: 2536
A16: 25 | B16: 25 | D16: 5407 | E16: 4918 | F16: 3906 | G16: 3272 | H16: 2976 | I16: 2581
A17: 26 | B17: 26 | D17: 5492 | E17: 4993 | F17: 3983 | G17: 3330 | H17: 3028 | I17: 2627
A18: 27 | B18: 27 | D18: 5580 | E18: 5071 | F18: 4060 | G18: 3388 | H18: 3086 | I18: 2674
A19: 28 | B19: 28 | D19: 5674 | E19: 5159 | F19: 4158 | G19: 3458 | H19: 3149 | I19: 2727
A20: 29 | B20: 29 | D20: 5774 | E20: 5252 | F20: 4250 | G20: 3531 | H20: 3212 | I20: 2783
A21: 30 | B21: 30 | D21: 5870 | E21: 5338 | F21: 4347 | G21: 3604 | H21: 3272 | I21: 2839
A22: 31 | B22: 31 | D22: 5968 | E22: 5427 | F22: 4441 | G22: 3670 | H22: 3338 | I22: 2892
A23: 32 | B23: 32 | D23: 6065 | E23: 5513 | F23: 4536 | G23: 3744 | H23: 3401 | I23: 2948
A24: 33 | B24: 33 | D24: 6229 | E24: 5668 | F24: 4679 | G24: 3853 | H24: 3503 | I24: 3035
A25: 34 | B25: 34 | D25: 6399 | E25: 5816 | F25: 4820 | G25: 3964 | H25: 3605 | I25: 3122
A26: 35 | B26: 35 | D26: 6567 | E26: 5969 | F26: 4961 | G26: 4075 | H26: 3711 | I26: 3207
A27: 36 | B27: 36 | D27: 6734 | E27: 6126 | F27: 5108 | G27: 4188 | H27: 3813 | I27: 3284
A28: 37 | B28: 37 | D28: 6903 | E28: 6275 | F28: 5248 | G28: 4304 | H28: 3912 | I28: 3373
A29: 38 | B29: 38 | D29: 7069 | E29: 6429 | F29: 5394 | G29: 4416 | H29: 4012 | I29: 3470
A30: 39 | B30: 39 | D30: 7237 | E30: 6579 | F30: 5541 | G30: 4530 | H30: 4120 | I30: 3558
A31: 40 | B31: 40 | D31: 7407 | E31: 6734 | F31: 5689 | G31: 4640 | H31: 4217 | I31: 3644
A32: 41 | B32: 41 | D32: 7573 | E32: 6882 | F32: 5833 | G32: 4750 | H32: 4320 | I32: 3733
A33: 42 | B33: 42 | D33: 7742 | E33: 7035 | F33: 5980 | G33: 4865 | H33: 4422 | I33: 3822
A34: 43 | B34: 43 | D34: 8045 | E34: 7313 | F34: 6244 | G34: 5071 | H34: 4608 | I34: 3983
A35: 44 | B35: 44 | D35: 8357 | E35: 7596 | F35: 6511 | G35: 5279 | H35: 4802 | I35: 4146
A36: 45 | B36: 45 | D36: 8661 | E36: 7873 | F36: 6773 | G36: 5483 | H36: 4982 | I36: 4308
A37: 46 | B37: 46 | D37: 8965 | E37: 8154 | F37: 7041 | G37: 5690 | H37: 5172 | I37: 4470
A38: 47 | B38: 47 | D38: 9273 | E38: 8432 | F38: 7304 | G38: 5901 | H38: 5365 | I38: 4631
A39: 48 | B39: 48 | D39: 9602 | E39: 8732 | F39: 7580 | G39: 6113 | H39: 5556 | I39: 4802
A40: 49 | B40: 49 | D40: 9933 | E40: 9027 | F40: 7847 | G40: 6330 | H40: 5756 | I40: 4968
A41: 50 | B41: 50 | D41: 10261 | E41: 9326 | F41: 8117 | G41: 6546 | H41: 5949 | I41: 5136
A42: 51 | B42: 51 | D42: 10589 | E42: 9630 | F42: 8393 | G42: 6759 | H42: 6143 | I42: 5305
A43: 52 | B43: 52 | D43: 10920 | E43: 9926 | F43: 8670 | G43: 6968 | H43: 6339 | I43: 5475
A44: 53 | B44: 53 | D44: 11308 | E44: 10275 | F44: 9002 | G44: 7227 | H44: 6574 | I44: 5680
A45: 54 | B45: 54 | D45: 11689 | E45: 10623 | F45: 9338 | G45: 7493 | H45: 6809 | I45: 5882
A46: 55 | B46: 55 | D46: 12073 | E46: 10973 | F46: 9678 | G46: 7744 | H46: 7046 | I46: 6084
A47: 56 | B47: 56 | D47: 12458 | E47: 11321 | F47: 10017 | G47: 8013 | H47: 7278 | I47: 6290
A48: 57 | B48: 57 | D48: 12845 | E48: 11672 | F48: 10354 | G48: 8271 | H48: 7515 | I48: 6493
A49: 58 | B49: 58 | D49: 13286 | E49: 12080 | F49: 10758 | G49: 8584 | H49: 7808 | I49: 6745
A50: 59 | B50: 59 | D50: 13733 | E50: 12486 | F50: 11161 | G50: 8906 | H50: 8103 | I50: 6997
A51: 60 | B51: 60 | D51: 14180 | E51: 12889 | F51: 11566 | G51: 9228 | H51: 8393 | I51: 7252
A52: 61 | B52: 61 | D52: 14702 | E52: 13362 | F52: 12061 | G52: 9578 | H52: 8706 | I52: 7520
A53: 62 | B53: 62 | D53: 15362 | E53: 13968 | F53: 12649 | G53: 10023 | H53: 9113 | I53: 7865
A54: 63 | B54: 63 | D54: 16158 | E54: 14689 | F54: 13296 | G54: 10541 | H54: 9581 | I54: 8274
A55: 64 | B55: 64 | D55: 17085 | E55: 15532 | F55: 14064 | G55: 11138 | H55: 10128 | I55: 8743
A56: 65 | B56: 65 | D56: 18207 | E56: 16553 | F56: 15109 | G56: 11932 | H56: 10848 | I56: 9359
A57: 66 | B57: 66 | D57: 19511 | E57: 17736 | F57: 16329 | G57: 12849 | H57: 11683 | I57: 10069
A58: 67 | B58: 67 | D58: 21074 | E58: 19161 | F58: 17635 | G58: 13875 | H58: 12614 | I58: 10881
A59: 68 | B59: 68 | D59: 22859 | E59: 20776 | F59: 19130 | G59: 15049 | H59: 13680 | I59: 11801
A60: 69 | B60: 69 | D60: 24955 | E60: 22685 | F60: 20885 | G60: 16442 | H60: 14942 | I60: 12889
A61: 70 | B61: 70 | D61: 27345 | E61: 24860 | F61: 23033 | G61: 18170 | H61: 16526 | I61: 14241
A62: 71 | B62: 71 | D62: 30123 | E62: 27384 | F62: 25587 | G62: 20018 | H62: 18194 | I62: 15686
A63: 72 | B63: 72 | D63: 33335 | E63: 30303 | F63: 28317 | G63: 22156 | H63: 20141 | I63: 17363
A64: 73 | B64: 73 | D64: 37000 | E64: 33633 | F64: 31432 | G64: 24587 | H64: 22349 | I64: 19277
A65: 74 | B65: 74 | D65: 41256 | E65: 37505 | F65: 35037 | G65: 27419 | H65: 24929 | I65: 21503
A66: 75 | B66: 75 | D66: 46114 | E66: 41928 | F66: 39272 | G66: 30767 | H66: 27969 | I66: 24108
A67: 76 | B67: 76 | D67: 51712 | E67: 47009 | F67: 44189 | G67: 34502 | H67: 31366 | I67: 27038
A68: 77 | B68: 77 | D68: 58080 | E68: 52802 | F68: 49665 | G68: 38747 | H68: 35223 | I68: 30366
A69: 78 | B69: 78 | D69: 65258 | E69: 59327 | F69: 55802 | G69: 43535 | H69: 39578 | I69: 34118
A70: 79 | B70: 79 | D70: 73320 | E70: 66657 | F70: 62699 | G70: 48918 | H70: 44471 | I70: 38334
A71: 80 | B71: 80 | D71: 82970 | E71: 75428 | F71: 70950 | G71: 55349 | H71: 50322 | I71: 43375
A72: 1 | B72: 1 Child | D72: 2452 | E72: 2233 | F72: 1315 | G72: 1231 | H72: 1119 | I72: 965
A73: 2 | B73: 2 Children | D73: 4136 | E73: 3761 | F73: 1947 | G73: 1943 | H73: 1768 | I73: 1528
A74: 3 | B74: 3+ Children | D74: 6065 | E74: 5515 | F74: 2807 | G74: 2821 | H74: 2565 | I74: 2210
A75: 1 | B75: Rider Comp. Maternidad | D75: 225 | E75: 225 | F75: 225 | G75: 225 | H75: 225 | I75: 225
A76: 1 | B76: Transplante de organos | D76: 300 | E76: 300 | F76: 300 | G76: 300 | H76: 300 | I76: 300

Sheet Colombia 6 (hidden)
K1: D1 | L1: D2 | M1: D3 | N1: D4 | O1: D5 | P1: D6
B2: REGIÓN | C2: ='INGRESO DE DATOS'!W22 -> 2 | E2: FACTOR SEMESTRAL : | G2: 0.53 | I2: NEW BUSINESS DISCUOUNTS | K2: ='INGRESO DE DATOS'!O42 -> 1 | L2: ='INGRESO DE DATOS'!P42 -> 1 | M2: ='INGRESO DE DATOS'!Q42 -> 1 | N2: ='INGRESO DE DATOS'!R42 -> 1 | O2: ='INGRESO DE DATOS'!S42 -> 1 | P2: ='INGRESO DE DATOS'!T42 -> 1
A5: BUPA FLEX
A6: TARIFAS ANUALES
A8: EDAD | C8: DW1 | D8: DW2 | E8: DW3 | F8: DW4 | G8: DW5 | H8: DW6 | I8: DW7
A9: 18 | B9: 18 | D9: 3530 | E9: 3210 | F9: 2491 | G9: 2112 | H9: 1920 | I9: 1660
A10: 19 | B10: 19 | D10: 3592 | E10: 3265 | F10: 2547 | G10: 2152 | H10: 1957 | I10: 1695
A11: 20 | B11: 20 | D11: 3655 | E11: 3320 | F11: 2598 | G11: 2191 | H11: 1992 | I11: 1725
A12: 21 | B12: 21 | D12: 3716 | E12: 3376 | F12: 2649 | G12: 2235 | H12: 2033 | I12: 1759
A13: 22 | B13: 22 | D13: 3777 | E13: 3436 | F13: 2706 | G13: 2277 | H13: 2070 | I13: 1791
A14: 23 | B14: 23 | D14: 3843 | E14: 3489 | F14: 2764 | G14: 2320 | H14: 2112 | I14: 1822
A15: 24 | B15: 24 | D15: 3903 | E15: 3548 | F15: 2818 | G15: 2363 | H15: 2151 | I15: 1857
A16: 25 | B16: 25 | D16: 3966 | E16: 3607 | F16: 2871 | G16: 2407 | H16: 2190 | I16: 1889
A17: 26 | B17: 26 | D17: 4031 | E17: 3663 | F17: 2929 | G17: 2451 | H17: 2227 | I17: 1922
A18: 27 | B18: 27 | D18: 4096 | E18: 3720 | F18: 2982 | G18: 2489 | H18: 2262 | I18: 1957
A19: 28 | B19: 28 | D19: 4167 | E19: 3791 | F19: 3054 | G19: 2537 | H19: 2314 | I19: 2002
A20: 29 | B20: 29 | D20: 4235 | E20: 3852 | F20: 3125 | G20: 2597 | H20: 2359 | I20: 2040
A21: 30 | B21: 30 | D21: 4307 | E21: 3916 | F21: 3191 | G21: 2647 | H21: 2407 | I21: 2078
A22: 31 | B22: 31 | D22: 4383 | E22: 3984 | F22: 3263 | G22: 2699 | H22: 2454 | I22: 2120
A23: 32 | B23: 32 | D23: 4456 | E23: 4053 | F23: 3330 | G23: 2750 | H23: 2501 | I23: 2161
A24: 33 | B24: 33 | D24: 4577 | E24: 4160 | F24: 3436 | G24: 2833 | H24: 2575 | I24: 2227
A25: 34 | B25: 34 | D25: 4699 | E25: 4272 | F25: 3542 | G25: 2914 | H25: 2649 | I25: 2291
A26: 35 | B26: 35 | D26: 4820 | E26: 4383 | F26: 3639 | G26: 2993 | H26: 2723 | I26: 2351
A27: 36 | B27: 36 | D27: 4941 | E27: 4494 | F27: 3744 | G27: 3077 | H27: 2793 | I27: 2420
A28: 37 | B28: 37 | D28: 5062 | E28: 4605 | F28: 3849 | G28: 3159 | H28: 2870 | I28: 2481
A29: 38 | B29: 38 | D29: 5187 | E29: 4713 | F29: 3957 | G29: 3238 | H29: 2945 | I29: 2550
A30: 39 | B30: 39 | D30: 5310 | E30: 4828 | F30: 4066 | G30: 3321 | H30: 3019 | I30: 2611
A31: 40 | B31: 40 | D31: 5436 | E31: 4940 | F31: 4172 | G31: 3406 | H31: 3100 | I31: 2676
A32: 41 | B32: 41 | D32: 5556 | E32: 5049 | F32: 4279 | G32: 3487 | H32: 3172 | I32: 2739
A33: 42 | B33: 42 | D33: 5677 | E33: 5165 | F33: 4389 | G33: 3573 | H33: 3246 | I33: 2804
A34: 43 | B34: 43 | D34: 5906 | E34: 5366 | F34: 4582 | G34: 3721 | H34: 3384 | I34: 2924
A35: 44 | B35: 44 | D35: 6132 | E35: 5575 | F35: 4773 | G35: 3875 | H35: 3523 | I35: 3041
A36: 45 | B36: 45 | D36: 6358 | E36: 5781 | F36: 4968 | G36: 4026 | H36: 3657 | I36: 3161
A37: 46 | B37: 46 | D37: 6585 | E37: 5986 | F37: 5158 | G37: 4176 | H37: 3797 | I37: 3275
A38: 47 | B38: 47 | D38: 6809 | E38: 6192 | F38: 5355 | G38: 4328 | H38: 3935 | I38: 3396
A39: 48 | B39: 48 | D39: 7051 | E39: 6410 | F39: 5555 | G39: 4488 | H39: 4076 | I39: 3520
A40: 49 | B40: 49 | D40: 7291 | E40: 6628 | F40: 5758 | G40: 4643 | H40: 4220 | I40: 3646
A41: 50 | B41: 50 | D41: 7534 | E41: 6847 | F41: 5957 | G41: 4799 | H41: 4365 | I41: 3773
A42: 51 | B42: 51 | D42: 7769 | E42: 7065 | F42: 6163 | G42: 4958 | H42: 4508 | I42: 3892
A43: 52 | B43: 52 | D43: 8013 | E43: 7282 | F43: 6363 | G43: 5113 | H43: 4650 | I43: 4016
A44: 53 | B44: 53 | D44: 8290 | E44: 7540 | F44: 6608 | G44: 5303 | H44: 4825 | I44: 4167
A45: 54 | B45: 54 | D45: 8573 | E45: 7795 | F45: 6857 | G45: 5495 | H45: 4997 | I45: 4316
A46: 55 | B46: 55 | D46: 8857 | E46: 8050 | F46: 7102 | G46: 5688 | H46: 5169 | I46: 4466
A47: 56 | B47: 56 | D47: 9136 | E47: 8308 | F47: 7350 | G47: 5877 | H47: 5344 | I47: 4607
A48: 57 | B48: 57 | D48: 9423 | E48: 8565 | F48: 7596 | G48: 6069 | H48: 5520 | I48: 4760
A49: 58 | B49: 58 | D49: 9744 | E49: 8857 | F49: 7894 | G49: 6306 | H49: 5733 | I49: 4945
A50: 59 | B50: 59 | D50: 10069 | E50: 9154 | F50: 8188 | G50: 6541 | H50: 5949 | I50: 5131
A51: 60 | B51: 60 | D51: 10394 | E51: 9452 | F51: 8484 | G51: 6779 | H51: 6165 | I51: 5316
A52: 61 | B52: 61 | D52: 10789 | E52: 9806 | F52: 8845 | G52: 7031 | H52: 6390 | I52: 5520
A53: 62 | B53: 62 | D53: 11270 | E53: 10247 | F53: 9286 | G53: 7354 | H53: 6688 | I53: 5768
A54: 63 | B54: 63 | D54: 11855 | E54: 10775 | F54: 9764 | G54: 7727 | H54: 7027 | I54: 6068
A55: 64 | B55: 64 | D55: 12528 | E55: 11389 | F55: 10315 | G55: 8172 | H55: 7429 | I55: 6418
A56: 65 | B56: 65 | D56: 13355 | E56: 12141 | F56: 11088 | G56: 8754 | H56: 7954 | I56: 6867
A57: 66 | B57: 66 | D57: 14314 | E57: 13009 | F57: 11982 | G57: 9428 | H57: 8572 | I57: 7391
A58: 67 | B58: 67 | D58: 15459 | E58: 14052 | F58: 12943 | G58: 10184 | H58: 9261 | I58: 7987
A59: 68 | B59: 68 | D59: 16765 | E59: 15239 | F59: 14031 | G59: 11046 | H59: 10040 | I59: 8660
A60: 69 | B60: 69 | D60: 18302 | E60: 16638 | F60: 15319 | G60: 12064 | H60: 10969 | I60: 9458
A61: 70 | B61: 70 | D61: 20064 | E61: 18243 | F61: 16900 | G61: 13339 | H61: 12128 | I61: 10448
A62: 71 | B62: 71 | D62: 22100 | E62: 20092 | F62: 18773 | G62: 14683 | H62: 13349 | I62: 11510
A63: 72 | B63: 72 | D63: 24449 | E63: 22230 | F63: 20778 | G63: 16257 | H63: 14783 | I63: 12743
A64: 73 | B64: 73 | D64: 27147 | E64: 24681 | F64: 23058 | G64: 18048 | H64: 16407 | I64: 14135
A65: 74 | B65: 74 | D65: 30268 | E65: 27517 | F65: 25711 | G65: 20117 | H65: 18287 | I65: 15770
A66: 75 | B66: 75 | D66: 33839 | E66: 30766 | F66: 28804 | G66: 22570 | H66: 20520 | I66: 17695
A67: 76 | B67: 76 | D67: 37943 | E67: 34499 | F67: 32412 | G67: 25309 | H67: 23010 | I67: 19845
A68: 77 | B68: 77 | D68: 42620 | E68: 38745 | F68: 36433 | G68: 28425 | H68: 25843 | I68: 22286
A69: 78 | B69: 78 | D69: 47884 | E69: 43532 | F69: 40933 | G69: 31941 | H69: 29035 | I69: 25038
A70: 79 | B70: 79 | D70: 53802 | E70: 48910 | F70: 45990 | G70: 35884 | H70: 32622 | I70: 28132
A71: 80 | B71: 80 | D71: 60881 | E71: 55349 | F71: 52045 | G71: 40609 | H71: 36911 | I71: 31834
A72: 1 | B72: 1 Child | D72: 1798 | E72: 1639 | F72: 965 | G72: 899 | H72: 818 | I72: 712
A73: 2 | B73: 2 Children | D73: 3028 | E73: 2755 | F73: 1428 | G73: 1424 | H73: 1293 | I73: 1122
A74: 3 | B74: 3+ Children | D74: 4447 | E74: 4048 | F74: 2064 | G74: 2072 | H74: 1881 | I74: 1623
A75: 1 | B75: Rider Comp. Maternidad | D75: 225 | E75: 225 | F75: 225 | G75: 225 | H75: 225 | I75: 225
A76: 1 | B76: Transplante de organos | D76: 300 | E76: 300 | F76: 300 | G76: 300 | H76: 300 | I76: 300

Sheet CostaRica 3 (hidden)
K1: D1 | L1: D2 | M1: D3 | N1: D4 | O1: D5 | P1: D6
B2: REGIÓN | C2: ='INGRESO DE DATOS'!W22 -> 2 | E2: FACTOR SEMESTRAL : | G2: 0.53 | I2: NEW BUSINESS DISCUOUNTS | K2: ='INGRESO DE DATOS'!O42 -> 1 | L2: ='INGRESO DE DATOS'!P42 -> 1 | M2: ='INGRESO DE DATOS'!Q42 -> 1 | N2: ='INGRESO DE DATOS'!R42 -> 1 | O2: ='INGRESO DE DATOS'!S42 -> 1 | P2: ='INGRESO DE DATOS'!T42 -> 1
A5: BUPA FLEX
A6: TARIFAS ANUALES
A8: EDAD | C8: DW1 | D8: DW2 | E8: DW3 | F8: DW4 | G8: DW5 | H8: DW6 | I8: DW7
A9: 18 | B9: 18 | D9: 4970 | E9: 4519 | F9: 3296 | G9: 2980 | H9: 2713 | I9: 2340
A10: 19 | B10: 19 | D10: 5054 | E10: 4598 | F10: 3368 | G10: 3039 | H10: 2760 | I10: 2388
A11: 20 | B11: 20 | D11: 5146 | E11: 4675 | F11: 3448 | G11: 3091 | H11: 2813 | I11: 2434
A12: 21 | B12: 21 | D12: 5231 | E12: 4758 | F12: 3523 | G12: 3153 | H12: 2871 | I12: 2479
A13: 22 | B13: 22 | D13: 5320 | E13: 4838 | F13: 3605 | G13: 3212 | H13: 2924 | I13: 2528
A14: 23 | B14: 23 | D14: 5413 | E14: 4920 | F14: 3679 | G14: 3274 | H14: 2977 | I14: 2574
A15: 24 | B15: 24 | D15: 5503 | E15: 4999 | F15: 3760 | G15: 3337 | H15: 3035 | I15: 2622
A16: 25 | B16: 25 | D16: 5590 | E16: 5085 | F16: 3838 | G16: 3399 | H16: 3088 | I16: 2668
A17: 26 | B17: 26 | D17: 5680 | E17: 5168 | F17: 3912 | G17: 3457 | H17: 3141 | I17: 2718
A18: 27 | B18: 27 | D18: 5773 | E18: 5244 | F18: 3997 | G18: 3514 | H18: 3197 | I18: 2764
A19: 28 | B19: 28 | D19: 5876 | E19: 5340 | F19: 4093 | G19: 3588 | H19: 3262 | I19: 2824
A20: 29 | B20: 29 | D20: 5975 | E20: 5432 | F20: 4193 | G20: 3665 | H20: 3330 | I20: 2877
A21: 30 | B21: 30 | D21: 6078 | E21: 5524 | F21: 4293 | G21: 3737 | H21: 3399 | I21: 2939
A22: 31 | B22: 31 | D22: 6175 | E22: 5615 | F22: 4395 | G22: 3806 | H22: 3460 | I22: 2994
A23: 32 | B23: 32 | D23: 6279 | E23: 5710 | F23: 4495 | G23: 3881 | H23: 3526 | I23: 3046
A24: 33 | B24: 33 | D24: 6454 | E24: 5867 | F24: 4637 | G24: 3997 | H24: 3632 | I24: 3139
A25: 34 | B25: 34 | D25: 6626 | E25: 6022 | F25: 4787 | G25: 4108 | H25: 3737 | I25: 3231
A26: 35 | B26: 35 | D26: 6798 | E26: 6175 | F26: 4928 | G26: 4218 | H26: 3838 | I26: 3320
A27: 36 | B27: 36 | D27: 6968 | E27: 6339 | F27: 5075 | G27: 4342 | H27: 3938 | I27: 3410
A28: 37 | B28: 37 | D28: 7144 | E28: 6495 | F28: 5219 | G28: 4450 | H28: 4045 | I28: 3503
A29: 38 | B29: 38 | D29: 7321 | E29: 6653 | F29: 5372 | G29: 4567 | H29: 4151 | I29: 3592
A30: 39 | B30: 39 | D30: 7488 | E30: 6807 | F30: 5524 | G30: 4680 | H30: 4256 | I30: 3681
A31: 40 | B31: 40 | D31: 7666 | E31: 6968 | F31: 5679 | G31: 4797 | H31: 4362 | I31: 3773
A32: 41 | B32: 41 | D32: 7844 | E32: 7129 | F32: 5831 | G32: 4914 | H32: 4469 | I32: 3864
A33: 42 | B33: 42 | D33: 8016 | E33: 7287 | F33: 5982 | G33: 5032 | H33: 4576 | I33: 3955
A34: 43 | B34: 43 | D34: 8337 | E34: 7577 | F34: 6259 | G34: 5244 | H34: 4773 | I34: 4122
A35: 44 | B35: 44 | D35: 8649 | E35: 7866 | F35: 6523 | G35: 5462 | H35: 4963 | I35: 4291
A36: 45 | B36: 45 | D36: 8973 | E36: 8154 | F36: 6799 | G36: 5677 | H36: 5159 | I36: 4454
A37: 46 | B37: 46 | D37: 9286 | E37: 8442 | F37: 7068 | G37: 5888 | H37: 5351 | I37: 4625
A38: 47 | B38: 47 | D38: 9602 | E38: 8733 | F38: 7342 | G38: 6103 | H38: 5551 | I38: 4791
A39: 48 | B39: 48 | D39: 9939 | E39: 9040 | F39: 7618 | G39: 6327 | H39: 5753 | I39: 4963
A40: 49 | B40: 49 | D40: 10284 | E40: 9346 | F40: 7898 | G40: 6549 | H40: 5957 | I40: 5140
A41: 50 | B41: 50 | D41: 10623 | E41: 9656 | F41: 8181 | G41: 6773 | H41: 6159 | I41: 5317
A42: 51 | B42: 51 | D42: 10963 | E42: 9966 | F42: 8462 | G42: 6993 | H42: 6362 | I42: 5491
A43: 52 | B43: 52 | D43: 11305 | E43: 10275 | F43: 8740 | G43: 7219 | H43: 6565 | I43: 5664
A44: 53 | B44: 53 | D44: 11702 | E44: 10636 | F44: 9088 | G44: 7485 | H44: 6804 | I44: 5876
A45: 54 | B45: 54 | D45: 12102 | E45: 10999 | F45: 9440 | G45: 7758 | H45: 7052 | I45: 6084
A46: 55 | B46: 55 | D46: 12496 | E46: 11358 | F46: 9783 | G46: 8023 | H46: 7291 | I46: 6298
A47: 56 | B47: 56 | D47: 12892 | E47: 11726 | F47: 10138 | G47: 8292 | H47: 7539 | I47: 6512
A48: 57 | B48: 57 | D48: 13293 | E48: 12083 | F48: 10483 | G48: 8563 | H48: 7782 | I48: 6719
A49: 58 | B49: 58 | D49: 13748 | E49: 12499 | F49: 10899 | G49: 8898 | H49: 8088 | I49: 6978
A50: 59 | B50: 59 | D50: 14210 | E50: 12916 | F50: 11312 | G50: 9233 | H50: 8390 | I50: 7241
A51: 60 | B51: 60 | D51: 14667 | E51: 13333 | F51: 11726 | G51: 9564 | H51: 8695 | I51: 7502
A52: 61 | B52: 61 | D52: 15220 | E52: 13835 | F52: 12249 | G52: 9918 | H52: 9019 | I52: 7781
A53: 62 | B53: 62 | D53: 15908 | E53: 14463 | F53: 12884 | G53: 10376 | H53: 9429 | I53: 8141
A54: 63 | B54: 63 | D54: 16719 | E54: 15197 | F54: 13572 | G54: 10901 | H54: 9910 | I54: 8557
A55: 64 | B55: 64 | D55: 17677 | E55: 16072 | F55: 14351 | G55: 11541 | H55: 10490 | I55: 9050
A56: 65 | B56: 65 | D56: 18837 | E56: 17129 | F56: 15427 | G56: 12353 | H56: 11227 | I56: 9688
A57: 66 | B57: 66 | D57: 20187 | E57: 18356 | F57: 16678 | G57: 13294 | H57: 12085 | I57: 10425
A58: 67 | B58: 67 | D58: 21814 | E58: 19828 | F58: 18043 | G58: 14369 | H58: 13065 | I58: 11259
A59: 68 | B59: 68 | D59: 23652 | E59: 21501 | F59: 19585 | G59: 15579 | H59: 14161 | I59: 12215
A60: 69 | B60: 69 | D60: 25823 | E60: 23476 | F60: 21392 | G60: 17019 | H60: 15471 | I60: 13349
A61: 70 | B61: 70 | D61: 28322 | E61: 25747 | F61: 23600 | G61: 18815 | H61: 17105 | I61: 14742
A62: 71 | B62: 71 | D62: 31176 | E62: 28339 | F62: 26236 | G62: 20729 | H62: 18847 | I62: 16237
A63: 72 | B63: 72 | D63: 34496 | E63: 31359 | F63: 29068 | G63: 22927 | H63: 20843 | I63: 17970
A64: 73 | B64: 73 | D64: 38307 | E64: 34822 | F64: 32288 | G64: 25449 | H64: 23135 | I64: 19947
A65: 74 | B65: 74 | D65: 42709 | E65: 38823 | F65: 36028 | G65: 28386 | H65: 25808 | I65: 22247
A66: 75 | B66: 75 | D66: 47739 | E66: 43403 | F66: 40388 | G66: 31845 | H66: 28948 | I66: 24959
A67: 76 | B67: 76 | D67: 53535 | E67: 48664 | F67: 45443 | G67: 35702 | H67: 32458 | I67: 27985
A68: 77 | B68: 77 | D68: 60128 | E68: 54662 | F68: 51075 | G68: 40099 | H68: 36453 | I68: 31429
A69: 78 | B69: 78 | D69: 67554 | E69: 61413 | F69: 57390 | G69: 45058 | H69: 40959 | I69: 35315
A70: 79 | B70: 79 | D70: 75903 | E70: 69007 | F70: 64479 | G70: 50626 | H70: 46021 | I70: 39678
A71: 80 | B71: 80 | D71: 85889 | E71: 78085 | F71: 72967 | G71: 57285 | H71: 52079 | I71: 44898
A72: 1 | B72: 1 Child | D72: 2532 | E72: 2299 | F72: 1358 | G72: 1281 | H72: 1163 | I72: 1001
A73: 2 | B73: 2 Children | D73: 4278 | E73: 3885 | F73: 2030 | G73: 2009 | H73: 1827 | I73: 1565
A74: 3 | B74: 3+ Children | D74: 6274 | E74: 5701 | F74: 2906 | G74: 2924 | H74: 2659 | I74: 2282
A75: 1 | B75: Rider Comp. Maternidad | D75: 225 | E75: 225 | F75: 225 | G75: 225 | H75: 225 | I75: 225
A76: 1 | B76: Transplante de organos | D76: 300 | E76: 300 | F76: 300 | G76: 300 | H76: 300 | I76: 300

Sheet ElSalvador 3 (hidden)
K1: D1 | L1: D2 | M1: D3 | N1: D4 | O1: D5 | P1: D6
B2: REGIÓN | C2: ='INGRESO DE DATOS'!W22 -> 2 | E2: FACTOR SEMESTRAL : | G2: 0.53 | I2: NEW BUSINESS DISCUOUNTS | K2: ='INGRESO DE DATOS'!O42 -> 1 | L2: ='INGRESO DE DATOS'!P42 -> 1 | M2: ='INGRESO DE DATOS'!Q42 -> 1 | N2: ='INGRESO DE DATOS'!R42 -> 1 | O2: ='INGRESO DE DATOS'!S42 -> 1 | P2: ='INGRESO DE DATOS'!T42 -> 1
A5: BUPA FLEX
A6: TARIFAS ANUALES
A8: EDAD | C8: DW1 | D8: DW2 | E8: DW3 | F8: DW4 | G8: DW5 | H8: DW6 | I8: DW7
A9: 18 | B9: 18 | D9: 4970 | E9: 4519 | F9: 3296 | G9: 2980 | H9: 2713 | I9: 2340
A10: 19 | B10: 19 | D10: 5054 | E10: 4598 | F10: 3368 | G10: 3039 | H10: 2760 | I10: 2388
A11: 20 | B11: 20 | D11: 5146 | E11: 4675 | F11: 3448 | G11: 3091 | H11: 2813 | I11: 2434
A12: 21 | B12: 21 | D12: 5231 | E12: 4758 | F12: 3523 | G12: 3153 | H12: 2871 | I12: 2479
A13: 22 | B13: 22 | D13: 5320 | E13: 4838 | F13: 3605 | G13: 3212 | H13: 2924 | I13: 2528
A14: 23 | B14: 23 | D14: 5413 | E14: 4920 | F14: 3679 | G14: 3274 | H14: 2977 | I14: 2574
A15: 24 | B15: 24 | D15: 5503 | E15: 4999 | F15: 3760 | G15: 3337 | H15: 3035 | I15: 2622
A16: 25 | B16: 25 | D16: 5590 | E16: 5085 | F16: 3838 | G16: 3399 | H16: 3088 | I16: 2668
A17: 26 | B17: 26 | D17: 5680 | E17: 5168 | F17: 3912 | G17: 3457 | H17: 3141 | I17: 2718
A18: 27 | B18: 27 | D18: 5773 | E18: 5244 | F18: 3997 | G18: 3514 | H18: 3197 | I18: 2764
A19: 28 | B19: 28 | D19: 5876 | E19: 5340 | F19: 4093 | G19: 3588 | H19: 3262 | I19: 2824
A20: 29 | B20: 29 | D20: 5975 | E20: 5432 | F20: 4193 | G20: 3665 | H20: 3330 | I20: 2877
A21: 30 | B21: 30 | D21: 6078 | E21: 5524 | F21: 4293 | G21: 3737 | H21: 3399 | I21: 2939
A22: 31 | B22: 31 | D22: 6175 | E22: 5615 | F22: 4395 | G22: 3806 | H22: 3460 | I22: 2994
A23: 32 | B23: 32 | D23: 6279 | E23: 5710 | F23: 4495 | G23: 3881 | H23: 3526 | I23: 3046
A24: 33 | B24: 33 | D24: 6454 | E24: 5867 | F24: 4637 | G24: 3997 | H24: 3632 | I24: 3139
A25: 34 | B25: 34 | D25: 6626 | E25: 6022 | F25: 4787 | G25: 4108 | H25: 3737 | I25: 3231
A26: 35 | B26: 35 | D26: 6798 | E26: 6175 | F26: 4928 | G26: 4218 | H26: 3838 | I26: 3320
A27: 36 | B27: 36 | D27: 6968 | E27: 6339 | F27: 5075 | G27: 4342 | H27: 3938 | I27: 3410
A28: 37 | B28: 37 | D28: 7144 | E28: 6495 | F28: 5219 | G28: 4450 | H28: 4045 | I28: 3503
A29: 38 | B29: 38 | D29: 7321 | E29: 6653 | F29: 5372 | G29: 4567 | H29: 4151 | I29: 3592
A30: 39 | B30: 39 | D30: 7488 | E30: 6807 | F30: 5524 | G30: 4680 | H30: 4256 | I30: 3681
A31: 40 | B31: 40 | D31: 7666 | E31: 6968 | F31: 5679 | G31: 4797 | H31: 4362 | I31: 3773
A32: 41 | B32: 41 | D32: 7844 | E32: 7129 | F32: 5831 | G32: 4914 | H32: 4469 | I32: 3864
A33: 42 | B33: 42 | D33: 8016 | E33: 7287 | F33: 5982 | G33: 5032 | H33: 4576 | I33: 3955
A34: 43 | B34: 43 | D34: 8337 | E34: 7577 | F34: 6259 | G34: 5244 | H34: 4773 | I34: 4122
A35: 44 | B35: 44 | D35: 8649 | E35: 7866 | F35: 6523 | G35: 5462 | H35: 4963 | I35: 4291
A36: 45 | B36: 45 | D36: 8973 | E36: 8154 | F36: 6799 | G36: 5677 | H36: 5159 | I36: 4454
A37: 46 | B37: 46 | D37: 9286 | E37: 8442 | F37: 7068 | G37: 5888 | H37: 5351 | I37: 4625
A38: 47 | B38: 47 | D38: 9602 | E38: 8733 | F38: 7342 | G38: 6103 | H38: 5551 | I38: 4791
A39: 48 | B39: 48 | D39: 9939 | E39: 9040 | F39: 7618 | G39: 6327 | H39: 5753 | I39: 4963
A40: 49 | B40: 49 | D40: 10284 | E40: 9346 | F40: 7898 | G40: 6549 | H40: 5957 | I40: 5140
A41: 50 | B41: 50 | D41: 10623 | E41: 9656 | F41: 8181 | G41: 6773 | H41: 6159 | I41: 5317
A42: 51 | B42: 51 | D42: 10963 | E42: 9966 | F42: 8462 | G42: 6993 | H42: 6362 | I42: 5491
A43: 52 | B43: 52 | D43: 11305 | E43: 10275 | F43: 8740 | G43: 7219 | H43: 6565 | I43: 5664
A44: 53 | B44: 53 | D44: 11702 | E44: 10636 | F44: 9088 | G44: 7485 | H44: 6804 | I44: 5876
A45: 54 | B45: 54 | D45: 12102 | E45: 10999 | F45: 9440 | G45: 7758 | H45: 7052 | I45: 6084
A46: 55 | B46: 55 | D46: 12496 | E46: 11358 | F46: 9783 | G46: 8023 | H46: 7291 | I46: 6298
A47: 56 | B47: 56 | D47: 12892 | E47: 11726 | F47: 10138 | G47: 8292 | H47: 7539 | I47: 6512
A48: 57 | B48: 57 | D48: 13293 | E48: 12083 | F48: 10483 | G48: 8563 | H48: 7782 | I48: 6719
A49: 58 | B49: 58 | D49: 13748 | E49: 12499 | F49: 10899 | G49: 8898 | H49: 8088 | I49: 6978
A50: 59 | B50: 59 | D50: 14210 | E50: 12916 | F50: 11312 | G50: 9233 | H50: 8390 | I50: 7241
A51: 60 | B51: 60 | D51: 14667 | E51: 13333 | F51: 11726 | G51: 9564 | H51: 8695 | I51: 7502
A52: 61 | B52: 61 | D52: 15220 | E52: 13835 | F52: 12249 | G52: 9918 | H52: 9019 | I52: 7781
A53: 62 | B53: 62 | D53: 15908 | E53: 14463 | F53: 12884 | G53: 10376 | H53: 9429 | I53: 8141
A54: 63 | B54: 63 | D54: 16719 | E54: 15197 | F54: 13572 | G54: 10901 | H54: 9910 | I54: 8557
A55: 64 | B55: 64 | D55: 17677 | E55: 16072 | F55: 14351 | G55: 11541 | H55: 10490 | I55: 9050
A56: 65 | B56: 65 | D56: 18837 | E56: 17129 | F56: 15427 | G56: 12353 | H56: 11227 | I56: 9688
A57: 66 | B57: 66 | D57: 20187 | E57: 18356 | F57: 16678 | G57: 13294 | H57: 12085 | I57: 10425
A58: 67 | B58: 67 | D58: 21814 | E58: 19828 | F58: 18043 | G58: 14369 | H58: 13065 | I58: 11259
A59: 68 | B59: 68 | D59: 23652 | E59: 21501 | F59: 19585 | G59: 15579 | H59: 14161 | I59: 12215
A60: 69 | B60: 69 | D60: 25823 | E60: 23476 | F60: 21392 | G60: 17019 | H60: 15471 | I60: 13349
A61: 70 | B61: 70 | D61: 28322 | E61: 25747 | F61: 23600 | G61: 18815 | H61: 17105 | I61: 14742
A62: 71 | B62: 71 | D62: 31176 | E62: 28339 | F62: 26236 | G62: 20729 | H62: 18847 | I62: 16237
A63: 72 | B63: 72 | D63: 34496 | E63: 31359 | F63: 29068 | G63: 22927 | H63: 20843 | I63: 17970
A64: 73 | B64: 73 | D64: 38307 | E64: 34822 | F64: 32288 | G64: 25449 | H64: 23135 | I64: 19947
A65: 74 | B65: 74 | D65: 42709 | E65: 38823 | F65: 36028 | G65: 28386 | H65: 25808 | I65: 22247
A66: 75 | B66: 75 | D66: 47739 | E66: 43403 | F66: 40388 | G66: 31845 | H66: 28948 | I66: 24959
A67: 76 | B67: 76 | D67: 53535 | E67: 48664 | F67: 45443 | G67: 35702 | H67: 32458 | I67: 27985
A68: 77 | B68: 77 | D68: 60128 | E68: 54662 | F68: 51075 | G68: 40099 | H68: 36453 | I68: 31429
A69: 78 | B69: 78 | D69: 67554 | E69: 61413 | F69: 57390 | G69: 45058 | H69: 40959 | I69: 35315
A70: 79 | B70: 79 | D70: 75903 | E70: 69007 | F70: 64479 | G70: 50626 | H70: 46021 | I70: 39678
A71: 80 | B71: 80 | D71: 85889 | E71: 78085 | F71: 72967 | G71: 57285 | H71: 52079 | I71: 44898
A72: 1 | B72: 1 Child | D72: 2532 | E72: 2299 | F72: 1358 | G72: 1281 | H72: 1163 | I72: 1001
A73: 2 | B73: 2 Children | D73: 4278 | E73: 3885 | F73: 2030 | G73: 2009 | H73: 1827 | I73: 1565
A74: 3 | B74: 3+ Children | D74: 6274 | E74: 5701 | F74: 2906 | G74: 2924 | H74: 2659 | I74: 2282
A75: 1 | B75: Rider Comp. Maternidad | D75: 225 | E75: 225 | F75: 225 | G75: 225 | H75: 225 | I75: 225
A76: 1 | B76: Transplante de organos | D76: 300 | E76: 300 | F76: 300 | G76: 300 | H76: 300 | I76: 300

Sheet Guyana 4 (hidden)
K1: D1 | L1: D2 | M1: D3 | N1: D4 | O1: D5 | P1: D6
B2: REGIÓN | C2: ='INGRESO DE DATOS'!W22 -> 2 | E2: FACTOR SEMESTRAL : | G2: 0.53 | I2: NEW BUSINESS DISCUOUNTS | K2: ='INGRESO DE DATOS'!O42 -> 1 | L2: ='INGRESO DE DATOS'!P42 -> 1 | M2: ='INGRESO DE DATOS'!Q42 -> 1 | N2: ='INGRESO DE DATOS'!R42 -> 1 | O2: ='INGRESO DE DATOS'!S42 -> 1 | P2: ='INGRESO DE DATOS'!T42 -> 1
A5: BUPA FLEX
A6: TARIFAS ANUALES
A8: EDAD | C8: DW1 | D8: DW2 | E8: DW3 | F8: DW4 | G8: DW5 | H8: DW6 | I8: DW7
A9: 18 | B9: 18 | D9: 4174 | E9: 3797 | F9: 2947 | G9: 2498 | H9: 2270 | I9: 1966
A10: 19 | B10: 19 | D10: 4253 | E10: 3861 | F10: 3009 | G10: 2545 | H10: 2316 | I10: 1996
A11: 20 | B11: 20 | D11: 4320 | E11: 3931 | F11: 3067 | G11: 2598 | H11: 2358 | I11: 2039
A12: 21 | B12: 21 | D12: 4399 | E12: 3999 | F12: 3134 | G12: 2646 | H12: 2405 | I12: 2080
A13: 22 | B13: 22 | D13: 4470 | E13: 4065 | F13: 3203 | G13: 2695 | H13: 2457 | I13: 2123
A14: 23 | B14: 23 | D14: 4549 | E14: 4136 | F14: 3269 | G14: 2747 | H14: 2498 | I14: 2163
A15: 24 | B15: 24 | D15: 4620 | E15: 4205 | F15: 3334 | G15: 2800 | H15: 2545 | I15: 2204
A16: 25 | B16: 25 | D16: 4698 | E16: 4273 | F16: 3399 | G16: 2846 | H16: 2588 | I16: 2246
A17: 26 | B17: 26 | D17: 4774 | E17: 4339 | F17: 3467 | G17: 2901 | H17: 2641 | I17: 2285
A18: 27 | B18: 27 | D18: 4851 | E18: 4408 | F18: 3535 | G18: 2954 | H18: 2688 | I18: 2323
A19: 28 | B19: 28 | D19: 4933 | E19: 4488 | F19: 3617 | G19: 3014 | H19: 2741 | I19: 2376
A20: 29 | B20: 29 | D20: 5019 | E20: 4567 | F20: 3699 | G20: 3077 | H20: 2797 | I20: 2420
A21: 30 | B21: 30 | D21: 5108 | E21: 4640 | F21: 3779 | G21: 3134 | H21: 2846 | I21: 2464
A22: 31 | B22: 31 | D22: 5191 | E22: 4721 | F22: 3860 | G22: 3196 | H22: 2906 | I22: 2514
A23: 32 | B23: 32 | D23: 5279 | E23: 4802 | F23: 3942 | G23: 3261 | H23: 2960 | I23: 2560
A24: 33 | B24: 33 | D24: 5426 | E24: 4932 | F24: 4065 | G24: 3352 | H24: 3051 | I24: 2634
A25: 34 | B25: 34 | D25: 5568 | E25: 5063 | F25: 4192 | G25: 3449 | H25: 3134 | I25: 2714
A26: 35 | B26: 35 | D26: 5712 | E26: 5200 | F26: 4315 | G26: 3543 | H26: 3222 | I26: 2787
A27: 36 | B27: 36 | D27: 5860 | E27: 5329 | F27: 4436 | G27: 3643 | H27: 3308 | I27: 2861
A28: 37 | B28: 37 | D28: 6005 | E28: 5458 | F28: 4558 | G28: 3733 | H28: 3395 | I28: 2937
A29: 38 | B29: 38 | D29: 6153 | E29: 5590 | F29: 4685 | G29: 3834 | H29: 3479 | I29: 3014
A30: 39 | B30: 39 | D30: 6293 | E30: 5723 | F30: 4813 | G30: 3931 | H30: 3570 | I30: 3091
A31: 40 | B31: 40 | D31: 6442 | E31: 5856 | F31: 4940 | G31: 4026 | H31: 3663 | I31: 3170
A32: 41 | B32: 41 | D32: 6587 | E32: 5988 | F32: 5071 | G32: 4124 | H32: 3749 | I32: 3243
A33: 42 | B33: 42 | D33: 6733 | E33: 6120 | F33: 5203 | G33: 4221 | H33: 3836 | I33: 3322
A34: 43 | B34: 43 | D34: 7000 | E34: 6364 | F34: 5429 | G34: 4403 | H34: 4001 | I34: 3459
A35: 44 | B35: 44 | D35: 7264 | E35: 6603 | F35: 5653 | G35: 4581 | H35: 4170 | I35: 3604
A36: 45 | B36: 45 | D36: 7534 | E36: 6850 | F36: 5884 | G36: 4764 | H36: 4330 | I36: 3744
A37: 46 | B37: 46 | D37: 7797 | E37: 7092 | F37: 6113 | G37: 4948 | H37: 4494 | I37: 3885
A38: 47 | B38: 47 | D38: 8067 | E38: 7329 | F38: 6344 | G38: 5128 | H38: 4662 | I38: 4025
A39: 48 | B39: 48 | D39: 8356 | E39: 7596 | F39: 6582 | G39: 5316 | H39: 4830 | I39: 4171
A40: 49 | B40: 49 | D40: 8635 | E40: 7853 | F40: 6820 | G40: 5501 | H40: 5000 | I40: 4320
A41: 50 | B41: 50 | D41: 8925 | E41: 8109 | F41: 7055 | G41: 5687 | H41: 5172 | I41: 4468
A42: 51 | B42: 51 | D42: 9210 | E42: 8374 | F42: 7297 | G42: 5873 | H42: 5340 | I42: 4615
A43: 52 | B43: 52 | D43: 9496 | E43: 8632 | F43: 7534 | G43: 6061 | H43: 5506 | I43: 4764
A44: 53 | B44: 53 | D44: 9830 | E44: 8935 | F44: 7827 | G44: 6286 | H44: 5712 | I44: 4937
A45: 54 | B45: 54 | D45: 10157 | E45: 9236 | F45: 8118 | G45: 6512 | H45: 5919 | I45: 5116
A46: 55 | B46: 55 | D46: 10488 | E46: 9536 | F46: 8415 | G46: 6736 | H46: 6122 | I46: 5290
A47: 56 | B47: 56 | D47: 10817 | E47: 9836 | F47: 8706 | G47: 6964 | H47: 6328 | I47: 5463
A48: 57 | B48: 57 | D48: 11150 | E48: 10136 | F48: 8997 | G48: 7189 | H48: 6535 | I48: 5637
A49: 58 | B49: 58 | D49: 11540 | E49: 10488 | F49: 9349 | G49: 7464 | H49: 6792 | I49: 5859
A50: 59 | B50: 59 | D50: 11925 | E50: 10840 | F50: 9700 | G50: 7744 | H50: 7042 | I50: 6078
A51: 60 | B51: 60 | D51: 12312 | E51: 11195 | F51: 10047 | G51: 8024 | H51: 7298 | I51: 6300
A52: 61 | B52: 61 | D52: 12783 | E52: 11622 | F52: 10480 | G52: 8325 | H52: 7573 | I52: 6535
A53: 62 | B53: 62 | D53: 13363 | E53: 12148 | F53: 10990 | G53: 8706 | H53: 7913 | I53: 6829
A54: 63 | B54: 63 | D54: 14050 | E54: 12771 | F54: 11551 | G54: 9153 | H54: 8320 | I54: 7181
A55: 64 | B55: 64 | D55: 14844 | E55: 13494 | F55: 12214 | G55: 9678 | H55: 8803 | I55: 7599
A56: 65 | B56: 65 | D56: 15822 | E56: 14381 | F56: 13134 | G56: 10371 | H56: 9431 | I56: 8132
A57: 66 | B57: 66 | D57: 16952 | E57: 15416 | F57: 14190 | G57: 11171 | H57: 10156 | I57: 8744
A58: 67 | B58: 67 | D58: 18319 | E58: 16654 | F58: 15325 | G58: 12064 | H58: 10965 | I58: 9458
A59: 68 | B59: 68 | D59: 19859 | E59: 18052 | F59: 16617 | G59: 13076 | H59: 11888 | I59: 10253
A60: 69 | B60: 69 | D60: 21688 | E60: 19716 | F60: 18139 | G60: 14283 | H60: 12985 | I60: 11199
A61: 70 | B61: 70 | D61: 23776 | E61: 21614 | F61: 20017 | G61: 15792 | H61: 14359 | I61: 12374
A62: 71 | B62: 71 | D62: 26173 | E62: 23795 | F62: 22234 | G62: 17387 | H62: 15805 | I62: 13632
A63: 72 | B63: 72 | D63: 28968 | E63: 26338 | F63: 24598 | G63: 19248 | H63: 17497 | I63: 15085
A64: 73 | B64: 73 | D64: 32152 | E64: 29231 | F64: 27297 | G64: 21363 | H64: 19420 | I64: 16740
A65: 74 | B65: 74 | D65: 35864 | E65: 32604 | F65: 30439 | G65: 23818 | H65: 21653 | I65: 18674
A66: 75 | B66: 75 | D66: 40081 | E66: 36435 | F66: 34100 | G66: 26728 | H66: 24301 | I66: 20947
A67: 76 | B67: 76 | D67: 44948 | E67: 40859 | F67: 38368 | G67: 29971 | H67: 27243 | I67: 23488
A68: 77 | B68: 77 | D68: 50481 | E68: 45895 | F68: 43129 | G68: 33656 | H68: 30600 | I68: 26383
A69: 78 | B69: 78 | D69: 56716 | E69: 51563 | F69: 48461 | G69: 37818 | H69: 34381 | I69: 29638
A70: 79 | B70: 79 | D70: 63728 | E70: 57937 | F70: 54447 | G70: 42494 | H70: 38629 | I70: 33300
A71: 80 | B71: 80 | D71: 72114 | E71: 65554 | F71: 61612 | G71: 48082 | H71: 43715 | I71: 37683
A72: 1 | B72: 1 Child | D72: 2131 | E72: 1937 | F72: 1150 | G72: 1077 | H72: 979 | I72: 842
A73: 2 | B73: 2 Children | D73: 3586 | E73: 3264 | F73: 1701 | G73: 1684 | H73: 1533 | I73: 1319
A74: 3 | B74: 3+ Children | D74: 5268 | E74: 4787 | F74: 2443 | G74: 2457 | H74: 2230 | I74: 1915
A75: 1 | B75: Rider Comp. Maternidad | D75: 225 | E75: 225 | F75: 225 | G75: 225 | H75: 225 | I75: 225
A76: 1 | B76: Transplante de organos | D76: 300 | E76: 300 | F76: 300 | G76: 300 | H76: 300 | I76: 300

Sheet Haiti 2 (hidden)
K1: D1 | L1: D2 | M1: D3 | N1: D4 | O1: D5 | P1: D6
B2: REGIÓN | C2: ='INGRESO DE DATOS'!W22 -> 2 | E2: FACTOR SEMESTRAL : | G2: 0.53 | I2: NEW BUSINESS DISCUOUNTS | K2: ='INGRESO DE DATOS'!O42 -> 1 | L2: ='INGRESO DE DATOS'!P42 -> 1 | M2: ='INGRESO DE DATOS'!Q42 -> 1 | N2: ='INGRESO DE DATOS'!R42 -> 1 | O2: ='INGRESO DE DATOS'!S42 -> 1 | P2: ='INGRESO DE DATOS'!T42 -> 1
A5: BUPA FLEX
A6: TARIFAS ANUALES
A8: EDAD | C8: DW1 | D8: DW2 | E8: DW3 | F8: DW4 | G8: DW5 | H8: DW6 | I8: DW7
A9: 18 | B9: 18 | D9: 4808 | E9: 4370 | F9: 3382 | G9: 2868 | H9: 2607 | I9: 2261
A10: 19 | B10: 19 | D10: 4889 | E10: 4446 | F10: 3455 | G10: 2925 | H10: 2659 | I10: 2303
A11: 20 | B11: 20 | D11: 4976 | E11: 4520 | F11: 3530 | G11: 2980 | H11: 2713 | I11: 2348
A12: 21 | B12: 21 | D12: 5054 | E12: 4596 | F12: 3604 | G12: 3039 | H12: 2764 | I12: 2393
A13: 22 | B13: 22 | D13: 5150 | E13: 4676 | F13: 3681 | G13: 3100 | H13: 2816 | I13: 2440
A14: 23 | B14: 23 | D14: 5231 | E14: 4758 | F14: 3752 | G14: 3157 | H14: 2868 | I14: 2487
A15: 24 | B15: 24 | D15: 5319 | E15: 4836 | F15: 3834 | G15: 3214 | H15: 2925 | I15: 2536
A16: 25 | B16: 25 | D16: 5407 | E16: 4918 | F16: 3906 | G16: 3272 | H16: 2976 | I16: 2581
A17: 26 | B17: 26 | D17: 5492 | E17: 4993 | F17: 3983 | G17: 3330 | H17: 3028 | I17: 2627
A18: 27 | B18: 27 | D18: 5580 | E18: 5071 | F18: 4060 | G18: 3388 | H18: 3086 | I18: 2674
A19: 28 | B19: 28 | D19: 5674 | E19: 5159 | F19: 4158 | G19: 3458 | H19: 3149 | I19: 2727
A20: 29 | B20: 29 | D20: 5774 | E20: 5252 | F20: 4250 | G20: 3531 | H20: 3212 | I20: 2783
A21: 30 | B21: 30 | D21: 5870 | E21: 5338 | F21: 4347 | G21: 3604 | H21: 3272 | I21: 2839
A22: 31 | B22: 31 | D22: 5968 | E22: 5427 | F22: 4441 | G22: 3670 | H22: 3338 | I22: 2892
A23: 32 | B23: 32 | D23: 6065 | E23: 5513 | F23: 4536 | G23: 3744 | H23: 3401 | I23: 2948
A24: 33 | B24: 33 | D24: 6229 | E24: 5668 | F24: 4679 | G24: 3853 | H24: 3503 | I24: 3035
A25: 34 | B25: 34 | D25: 6399 | E25: 5816 | F25: 4820 | G25: 3964 | H25: 3605 | I25: 3122
A26: 35 | B26: 35 | D26: 6567 | E26: 5969 | F26: 4961 | G26: 4075 | H26: 3711 | I26: 3207
A27: 36 | B27: 36 | D27: 6734 | E27: 6126 | F27: 5108 | G27: 4188 | H27: 3813 | I27: 3284
A28: 37 | B28: 37 | D28: 6903 | E28: 6275 | F28: 5248 | G28: 4304 | H28: 3912 | I28: 3373
A29: 38 | B29: 38 | D29: 7069 | E29: 6429 | F29: 5394 | G29: 4416 | H29: 4012 | I29: 3470
A30: 39 | B30: 39 | D30: 7237 | E30: 6579 | F30: 5541 | G30: 4530 | H30: 4120 | I30: 3558
A31: 40 | B31: 40 | D31: 7407 | E31: 6734 | F31: 5689 | G31: 4640 | H31: 4217 | I31: 3644
A32: 41 | B32: 41 | D32: 7573 | E32: 6882 | F32: 5833 | G32: 4750 | H32: 4320 | I32: 3733
A33: 42 | B33: 42 | D33: 7742 | E33: 7035 | F33: 5980 | G33: 4865 | H33: 4422 | I33: 3822
A34: 43 | B34: 43 | D34: 8045 | E34: 7313 | F34: 6244 | G34: 5071 | H34: 4608 | I34: 3983
A35: 44 | B35: 44 | D35: 8357 | E35: 7596 | F35: 6511 | G35: 5279 | H35: 4802 | I35: 4146
A36: 45 | B36: 45 | D36: 8661 | E36: 7873 | F36: 6773 | G36: 5483 | H36: 4982 | I36: 4308
A37: 46 | B37: 46 | D37: 8965 | E37: 8154 | F37: 7041 | G37: 5690 | H37: 5172 | I37: 4470
A38: 47 | B38: 47 | D38: 9273 | E38: 8432 | F38: 7304 | G38: 5901 | H38: 5365 | I38: 4631
A39: 48 | B39: 48 | D39: 9602 | E39: 8732 | F39: 7580 | G39: 6113 | H39: 5556 | I39: 4802
A40: 49 | B40: 49 | D40: 9933 | E40: 9027 | F40: 7847 | G40: 6330 | H40: 5756 | I40: 4968
A41: 50 | B41: 50 | D41: 10261 | E41: 9326 | F41: 8117 | G41: 6546 | H41: 5949 | I41: 5136
A42: 51 | B42: 51 | D42: 10589 | E42: 9630 | F42: 8393 | G42: 6759 | H42: 6143 | I42: 5305
A43: 52 | B43: 52 | D43: 10920 | E43: 9926 | F43: 8670 | G43: 6968 | H43: 6339 | I43: 5475
A44: 53 | B44: 53 | D44: 11308 | E44: 10275 | F44: 9002 | G44: 7227 | H44: 6574 | I44: 5680
A45: 54 | B45: 54 | D45: 11689 | E45: 10623 | F45: 9338 | G45: 7493 | H45: 6809 | I45: 5882
A46: 55 | B46: 55 | D46: 12073 | E46: 10973 | F46: 9678 | G46: 7744 | H46: 7046 | I46: 6084
A47: 56 | B47: 56 | D47: 12458 | E47: 11321 | F47: 10017 | G47: 8013 | H47: 7278 | I47: 6290
A48: 57 | B48: 57 | D48: 12845 | E48: 11672 | F48: 10354 | G48: 8271 | H48: 7515 | I48: 6493
A49: 58 | B49: 58 | D49: 13286 | E49: 12080 | F49: 10758 | G49: 8584 | H49: 7808 | I49: 6745
A50: 59 | B50: 59 | D50: 13733 | E50: 12486 | F50: 11161 | G50: 8906 | H50: 8103 | I50: 6997
A51: 60 | B51: 60 | D51: 14180 | E51: 12889 | F51: 11566 | G51: 9228 | H51: 8393 | I51: 7252
A52: 61 | B52: 61 | D52: 14702 | E52: 13362 | F52: 12061 | G52: 9578 | H52: 8706 | I52: 7520
A53: 62 | B53: 62 | D53: 15362 | E53: 13968 | F53: 12649 | G53: 10023 | H53: 9113 | I53: 7865
A54: 63 | B54: 63 | D54: 16158 | E54: 14689 | F54: 13296 | G54: 10541 | H54: 9581 | I54: 8274
A55: 64 | B55: 64 | D55: 17085 | E55: 15532 | F55: 14064 | G55: 11138 | H55: 10128 | I55: 8743
A56: 65 | B56: 65 | D56: 18207 | E56: 16553 | F56: 15109 | G56: 11932 | H56: 10848 | I56: 9359
A57: 66 | B57: 66 | D57: 19511 | E57: 17736 | F57: 16329 | G57: 12849 | H57: 11683 | I57: 10069
A58: 67 | B58: 67 | D58: 21074 | E58: 19161 | F58: 17635 | G58: 13875 | H58: 12614 | I58: 10881
A59: 68 | B59: 68 | D59: 22859 | E59: 20776 | F59: 19130 | G59: 15049 | H59: 13680 | I59: 11801
A60: 69 | B60: 69 | D60: 24955 | E60: 22685 | F60: 20885 | G60: 16442 | H60: 14942 | I60: 12889
A61: 70 | B61: 70 | D61: 27345 | E61: 24860 | F61: 23033 | G61: 18170 | H61: 16526 | I61: 14241
A62: 71 | B62: 71 | D62: 30123 | E62: 27384 | F62: 25587 | G62: 20018 | H62: 18194 | I62: 15686
A63: 72 | B63: 72 | D63: 33335 | E63: 30303 | F63: 28317 | G63: 22156 | H63: 20141 | I63: 17363
A64: 73 | B64: 73 | D64: 37000 | E64: 33633 | F64: 31432 | G64: 24587 | H64: 22349 | I64: 19277
A65: 74 | B65: 74 | D65: 41256 | E65: 37505 | F65: 35037 | G65: 27419 | H65: 24929 | I65: 21503
A66: 75 | B66: 75 | D66: 46114 | E66: 41928 | F66: 39272 | G66: 30767 | H66: 27969 | I66: 24108
A67: 76 | B67: 76 | D67: 51712 | E67: 47009 | F67: 44189 | G67: 34502 | H67: 31366 | I67: 27038
A68: 77 | B68: 77 | D68: 58080 | E68: 52802 | F68: 49665 | G68: 38747 | H68: 35223 | I68: 30366
A69: 78 | B69: 78 | D69: 65258 | E69: 59327 | F69: 55802 | G69: 43535 | H69: 39578 | I69: 34118
A70: 79 | B70: 79 | D70: 73320 | E70: 66657 | F70: 62699 | G70: 48918 | H70: 44471 | I70: 38334
A71: 80 | B71: 80 | D71: 82970 | E71: 75428 | F71: 70950 | G71: 55349 | H71: 50322 | I71: 43375
A72: 1 | B72: 1 Child | D72: 2452 | E72: 2233 | F72: 1315 | G72: 1231 | H72: 1119 | I72: 965
A73: 2 | B73: 2 Children | D73: 4136 | E73: 3761 | F73: 1947 | G73: 1943 | H73: 1768 | I73: 1528
A74: 3 | B74: 3+ Children | D74: 6065 | E74: 5515 | F74: 2807 | G74: 2821 | H74: 2565 | I74: 2210
A75: 1 | B75: Rider Comp. Maternidad | D75: 225 | E75: 225 | F75: 225 | G75: 225 | H75: 225 | I75: 225
A76: 1 | B76: Transplante de organos | D76: 300 | E76: 300 | F76: 300 | G76: 300 | H76: 300 | I76: 300

Sheet Honduras 2 (hidden)
K1: D1 | L1: D2 | M1: D3 | N1: D4 | O1: D5 | P1: D6
B2: REGIÓN | C2: ='INGRESO DE DATOS'!W22 -> 2 | E2: FACTOR SEMESTRAL : | G2: 0.53 | I2: NEW BUSINESS DISCUOUNTS | K2: ='INGRESO DE DATOS'!O42 -> 1 | L2: ='INGRESO DE DATOS'!P42 -> 1 | M2: ='INGRESO DE DATOS'!Q42 -> 1 | N2: ='INGRESO DE DATOS'!R42 -> 1 | O2: ='INGRESO DE DATOS'!S42 -> 1 | P2: ='INGRESO DE DATOS'!T42 -> 1
A5: BUPA FLEX
A6: TARIFAS ANUALES
A8: EDAD | C8: DW1 | D8: DW2 | E8: DW3 | F8: DW4 | G8: DW5 | H8: DW6 | I8: DW7
A9: 18 | B9: 18 | D9: 4808 | E9: 4370 | F9: 3382 | G9: 2868 | H9: 2607 | I9: 2261
A10: 19 | B10: 19 | D10: 4889 | E10: 4446 | F10: 3455 | G10: 2925 | H10: 2659 | I10: 2303
A11: 20 | B11: 20 | D11: 4976 | E11: 4520 | F11: 3530 | G11: 2980 | H11: 2713 | I11: 2348
A12: 21 | B12: 21 | D12: 5054 | E12: 4596 | F12: 3604 | G12: 3039 | H12: 2764 | I12: 2393
A13: 22 | B13: 22 | D13: 5150 | E13: 4676 | F13: 3681 | G13: 3100 | H13: 2816 | I13: 2440
A14: 23 | B14: 23 | D14: 5231 | E14: 4758 | F14: 3752 | G14: 3157 | H14: 2868 | I14: 2487
A15: 24 | B15: 24 | D15: 5319 | E15: 4836 | F15: 3834 | G15: 3214 | H15: 2925 | I15: 2536
A16: 25 | B16: 25 | D16: 5407 | E16: 4918 | F16: 3906 | G16: 3272 | H16: 2976 | I16: 2581
A17: 26 | B17: 26 | D17: 5492 | E17: 4993 | F17: 3983 | G17: 3330 | H17: 3028 | I17: 2627
A18: 27 | B18: 27 | D18: 5580 | E18: 5071 | F18: 4060 | G18: 3388 | H18: 3086 | I18: 2674
A19: 28 | B19: 28 | D19: 5674 | E19: 5159 | F19: 4158 | G19: 3458 | H19: 3149 | I19: 2727
A20: 29 | B20: 29 | D20: 5774 | E20: 5252 | F20: 4250 | G20: 3531 | H20: 3212 | I20: 2783
A21: 30 | B21: 30 | D21: 5870 | E21: 5338 | F21: 4347 | G21: 3604 | H21: 3272 | I21: 2839
A22: 31 | B22: 31 | D22: 5968 | E22: 5427 | F22: 4441 | G22: 3670 | H22: 3338 | I22: 2892
A23: 32 | B23: 32 | D23: 6065 | E23: 5513 | F23: 4536 | G23: 3744 | H23: 3401 | I23: 2948
A24: 33 | B24: 33 | D24: 6229 | E24: 5668 | F24: 4679 | G24: 3853 | H24: 3503 | I24: 3035
A25: 34 | B25: 34 | D25: 6399 | E25: 5816 | F25: 4820 | G25: 3964 | H25: 3605 | I25: 3122
A26: 35 | B26: 35 | D26: 6567 | E26: 5969 | F26: 4961 | G26: 4075 | H26: 3711 | I26: 3207
A27: 36 | B27: 36 | D27: 6734 | E27: 6126 | F27: 5108 | G27: 4188 | H27: 3813 | I27: 3284
A28: 37 | B28: 37 | D28: 6903 | E28: 6275 | F28: 5248 | G28: 4304 | H28: 3912 | I28: 3373
A29: 38 | B29: 38 | D29: 7069 | E29: 6429 | F29: 5394 | G29: 4416 | H29: 4012 | I29: 3470
A30: 39 | B30: 39 | D30: 7237 | E30: 6579 | F30: 5541 | G30: 4530 | H30: 4120 | I30: 3558
A31: 40 | B31: 40 | D31: 7407 | E31: 6734 | F31: 5689 | G31: 4640 | H31: 4217 | I31: 3644
A32: 41 | B32: 41 | D32: 7573 | E32: 6882 | F32: 5833 | G32: 4750 | H32: 4320 | I32: 3733
A33: 42 | B33: 42 | D33: 7742 | E33: 7035 | F33: 5980 | G33: 4865 | H33: 4422 | I33: 3822
A34: 43 | B34: 43 | D34: 8045 | E34: 7313 | F34: 6244 | G34: 5071 | H34: 4608 | I34: 3983
A35: 44 | B35: 44 | D35: 8357 | E35: 7596 | F35: 6511 | G35: 5279 | H35: 4802 | I35: 4146
A36: 45 | B36: 45 | D36: 8661 | E36: 7873 | F36: 6773 | G36: 5483 | H36: 4982 | I36: 4308
A37: 46 | B37: 46 | D37: 8965 | E37: 8154 | F37: 7041 | G37: 5690 | H37: 5172 | I37: 4470
A38: 47 | B38: 47 | D38: 9273 | E38: 8432 | F38: 7304 | G38: 5901 | H38: 5365 | I38: 4631
A39: 48 | B39: 48 | D39: 9602 | E39: 8732 | F39: 7580 | G39: 6113 | H39: 5556 | I39: 4802
A40: 49 | B40: 49 | D40: 9933 | E40: 9027 | F40: 7847 | G40: 6330 | H40: 5756 | I40: 4968
A41: 50 | B41: 50 | D41: 10261 | E41: 9326 | F41: 8117 | G41: 6546 | H41: 5949 | I41: 5136
A42: 51 | B42: 51 | D42: 10589 | E42: 9630 | F42: 8393 | G42: 6759 | H42: 6143 | I42: 5305
A43: 52 | B43: 52 | D43: 10920 | E43: 9926 | F43: 8670 | G43: 6968 | H43: 6339 | I43: 5475
A44: 53 | B44: 53 | D44: 11308 | E44: 10275 | F44: 9002 | G44: 7227 | H44: 6574 | I44: 5680
A45: 54 | B45: 54 | D45: 11689 | E45: 10623 | F45: 9338 | G45: 7493 | H45: 6809 | I45: 5882
A46: 55 | B46: 55 | D46: 12073 | E46: 10973 | F46: 9678 | G46: 7744 | H46: 7046 | I46: 6084
A47: 56 | B47: 56 | D47: 12458 | E47: 11321 | F47: 10017 | G47: 8013 | H47: 7278 | I47: 6290
A48: 57 | B48: 57 | D48: 12845 | E48: 11672 | F48: 10354 | G48: 8271 | H48: 7515 | I48: 6493
A49: 58 | B49: 58 | D49: 13286 | E49: 12080 | F49: 10758 | G49: 8584 | H49: 7808 | I49: 6745
A50: 59 | B50: 59 | D50: 13733 | E50: 12486 | F50: 11161 | G50: 8906 | H50: 8103 | I50: 6997
A51: 60 | B51: 60 | D51: 14180 | E51: 12889 | F51: 11566 | G51: 9228 | H51: 8393 | I51: 7252
A52: 61 | B52: 61 | D52: 14702 | E52: 13362 | F52: 12061 | G52: 9578 | H52: 8706 | I52: 7520
A53: 62 | B53: 62 | D53: 15362 | E53: 13968 | F53: 12649 | G53: 10023 | H53: 9113 | I53: 7865
A54: 63 | B54: 63 | D54: 16158 | E54: 14689 | F54: 13296 | G54: 10541 | H54: 9581 | I54: 8274
A55: 64 | B55: 64 | D55: 17085 | E55: 15532 | F55: 14064 | G55: 11138 | H55: 10128 | I55: 8743
A56: 65 | B56: 65 | D56: 18207 | E56: 16553 | F56: 15109 | G56: 11932 | H56: 10848 | I56: 9359
A57: 66 | B57: 66 | D57: 19511 | E57: 17736 | F57: 16329 | G57: 12849 | H57: 11683 | I57: 10069
A58: 67 | B58: 67 | D58: 21074 | E58: 19161 | F58: 17635 | G58: 13875 | H58: 12614 | I58: 10881
A59: 68 | B59: 68 | D59: 22859 | E59: 20776 | F59: 19130 | G59: 15049 | H59: 13680 | I59: 11801
A60: 69 | B60: 69 | D60: 24955 | E60: 22685 | F60: 20885 | G60: 16442 | H60: 14942 | I60: 12889
A61: 70 | B61: 70 | D61: 27345 | E61: 24860 | F61: 23033 | G61: 18170 | H61: 16526 | I61: 14241
A62: 71 | B62: 71 | D62: 30123 | E62: 27384 | F62: 25587 | G62: 20018 | H62: 18194 | I62: 15686
A63: 72 | B63: 72 | D63: 33335 | E63: 30303 | F63: 28317 | G63: 22156 | H63: 20141 | I63: 17363
A64: 73 | B64: 73 | D64: 37000 | E64: 33633 | F64: 31432 | G64: 24587 | H64: 22349 | I64: 19277
A65: 74 | B65: 74 | D65: 41256 | E65: 37505 | F65: 35037 | G65: 27419 | H65: 24929 | I65: 21503
A66: 75 | B66: 75 | D66: 46114 | E66: 41928 | F66: 39272 | G66: 30767 | H66: 27969 | I66: 24108
A67: 76 | B67: 76 | D67: 51712 | E67: 47009 | F67: 44189 | G67: 34502 | H67: 31366 | I67: 27038
A68: 77 | B68: 77 | D68: 58080 | E68: 52802 | F68: 49665 | G68: 38747 | H68: 35223 | I68: 30366
A69: 78 | B69: 78 | D69: 65258 | E69: 59327 | F69: 55802 | G69: 43535 | H69: 39578 | I69: 34118
A70: 79 | B70: 79 | D70: 73320 | E70: 66657 | F70: 62699 | G70: 48918 | H70: 44471 | I70: 38334
A71: 80 | B71: 80 | D71: 82970 | E71: 75428 | F71: 70950 | G71: 55349 | H71: 50322 | I71: 43375
A72: 1 | B72: 1 Child | D72: 2452 | E72: 2233 | F72: 1315 | G72: 1231 | H72: 1119 | I72: 965
A73: 2 | B73: 2 Children | D73: 4136 | E73: 3761 | F73: 1947 | G73: 1943 | H73: 1768 | I73: 1528
A74: 3 | B74: 3+ Children | D74: 6065 | E74: 5515 | F74: 2807 | G74: 2821 | H74: 2565 | I74: 2210
A75: 1 | B75: Rider Comp. Maternidad | D75: 225 | E75: 225 | F75: 225 | G75: 225 | H75: 225 | I75: 225
A76: 1 | B76: Transplante de organos | D76: 300 | E76: 300 | F76: 300 | G76: 300 | H76: 300 | I76: 300

Sheet Nicaragua 4 (hidden)
K1: D1 | L1: D2 | M1: D3 | N1: D4 | O1: D5 | P1: D6
B2: REGIÓN | C2: ='INGRESO DE DATOS'!W22 -> 2 | E2: FACTOR SEMESTRAL : | G2: 0.53 | I2: NEW BUSINESS DISCUOUNTS | K2: ='INGRESO DE DATOS'!O42 -> 1 | L2: ='INGRESO DE DATOS'!P42 -> 1 | M2: ='INGRESO DE DATOS'!Q42 -> 1 | N2: ='INGRESO DE DATOS'!R42 -> 1 | O2: ='INGRESO DE DATOS'!S42 -> 1 | P2: ='INGRESO DE DATOS'!T42 -> 1
A5: BUPA FLEX
A6: TARIFAS ANUALES
A8: EDAD | C8: DW1 | D8: DW2 | E8: DW3 | F8: DW4 | G8: DW5 | H8: DW6 | I8: DW7
A9: 18 | B9: 18 | D9: 4174 | E9: 3797 | F9: 2947 | G9: 2498 | H9: 2270 | I9: 1966
A10: 19 | B10: 19 | D10: 4253 | E10: 3861 | F10: 3009 | G10: 2545 | H10: 2316 | I10: 1996
A11: 20 | B11: 20 | D11: 4320 | E11: 3931 | F11: 3067 | G11: 2598 | H11: 2358 | I11: 2039
A12: 21 | B12: 21 | D12: 4399 | E12: 3999 | F12: 3134 | G12: 2646 | H12: 2405 | I12: 2080
A13: 22 | B13: 22 | D13: 4470 | E13: 4065 | F13: 3203 | G13: 2695 | H13: 2457 | I13: 2123
A14: 23 | B14: 23 | D14: 4549 | E14: 4136 | F14: 3269 | G14: 2747 | H14: 2498 | I14: 2163
A15: 24 | B15: 24 | D15: 4620 | E15: 4205 | F15: 3334 | G15: 2800 | H15: 2545 | I15: 2204
A16: 25 | B16: 25 | D16: 4698 | E16: 4273 | F16: 3399 | G16: 2846 | H16: 2588 | I16: 2246
A17: 26 | B17: 26 | D17: 4774 | E17: 4339 | F17: 3467 | G17: 2901 | H17: 2641 | I17: 2285
A18: 27 | B18: 27 | D18: 4851 | E18: 4408 | F18: 3535 | G18: 2954 | H18: 2688 | I18: 2323
A19: 28 | B19: 28 | D19: 4933 | E19: 4488 | F19: 3617 | G19: 3014 | H19: 2741 | I19: 2376
A20: 29 | B20: 29 | D20: 5019 | E20: 4567 | F20: 3699 | G20: 3077 | H20: 2797 | I20: 2420
A21: 30 | B21: 30 | D21: 5108 | E21: 4640 | F21: 3779 | G21: 3134 | H21: 2846 | I21: 2464
A22: 31 | B22: 31 | D22: 5191 | E22: 4721 | F22: 3860 | G22: 3196 | H22: 2906 | I22: 2514
A23: 32 | B23: 32 | D23: 5279 | E23: 4802 | F23: 3942 | G23: 3261 | H23: 2960 | I23: 2560
A24: 33 | B24: 33 | D24: 5426 | E24: 4932 | F24: 4065 | G24: 3352 | H24: 3051 | I24: 2634
A25: 34 | B25: 34 | D25: 5568 | E25: 5063 | F25: 4192 | G25: 3449 | H25: 3134 | I25: 2714
A26: 35 | B26: 35 | D26: 5712 | E26: 5200 | F26: 4315 | G26: 3543 | H26: 3222 | I26: 2787
A27: 36 | B27: 36 | D27: 5860 | E27: 5329 | F27: 4436 | G27: 3643 | H27: 3308 | I27: 2861
A28: 37 | B28: 37 | D28: 6005 | E28: 5458 | F28: 4558 | G28: 3733 | H28: 3395 | I28: 2937
A29: 38 | B29: 38 | D29: 6153 | E29: 5590 | F29: 4685 | G29: 3834 | H29: 3479 | I29: 3014
A30: 39 | B30: 39 | D30: 6293 | E30: 5723 | F30: 4813 | G30: 3931 | H30: 3570 | I30: 3091
A31: 40 | B31: 40 | D31: 6442 | E31: 5856 | F31: 4940 | G31: 4026 | H31: 3663 | I31: 3170
A32: 41 | B32: 41 | D32: 6587 | E32: 5988 | F32: 5071 | G32: 4124 | H32: 3749 | I32: 3243
A33: 42 | B33: 42 | D33: 6733 | E33: 6120 | F33: 5203 | G33: 4221 | H33: 3836 | I33: 3322
A34: 43 | B34: 43 | D34: 7000 | E34: 6364 | F34: 5429 | G34: 4403 | H34: 4001 | I34: 3459
A35: 44 | B35: 44 | D35: 7264 | E35: 6603 | F35: 5653 | G35: 4581 | H35: 4170 | I35: 3604
A36: 45 | B36: 45 | D36: 7534 | E36: 6850 | F36: 5884 | G36: 4764 | H36: 4330 | I36: 3744
A37: 46 | B37: 46 | D37: 7797 | E37: 7092 | F37: 6113 | G37: 4948 | H37: 4494 | I37: 3885
A38: 47 | B38: 47 | D38: 8067 | E38: 7329 | F38: 6344 | G38: 5128 | H38: 4662 | I38: 4025
A39: 48 | B39: 48 | D39: 8356 | E39: 7596 | F39: 6582 | G39: 5316 | H39: 4830 | I39: 4171
A40: 49 | B40: 49 | D40: 8635 | E40: 7853 | F40: 6820 | G40: 5501 | H40: 5000 | I40: 4320
A41: 50 | B41: 50 | D41: 8925 | E41: 8109 | F41: 7055 | G41: 5687 | H41: 5172 | I41: 4468
A42: 51 | B42: 51 | D42: 9210 | E42: 8374 | F42: 7297 | G42: 5873 | H42: 5340 | I42: 4615
A43: 52 | B43: 52 | D43: 9496 | E43: 8632 | F43: 7534 | G43: 6061 | H43: 5506 | I43: 4764
A44: 53 | B44: 53 | D44: 9830 | E44: 8935 | F44: 7827 | G44: 6286 | H44: 5712 | I44: 4937
A45: 54 | B45: 54 | D45: 10157 | E45: 9236 | F45: 8118 | G45: 6512 | H45: 5919 | I45: 5116
A46: 55 | B46: 55 | D46: 10488 | E46: 9536 | F46: 8415 | G46: 6736 | H46: 6122 | I46: 5290
A47: 56 | B47: 56 | D47: 10817 | E47: 9836 | F47: 8706 | G47: 6964 | H47: 6328 | I47: 5463
A48: 57 | B48: 57 | D48: 11150 | E48: 10136 | F48: 8997 | G48: 7189 | H48: 6535 | I48: 5637
A49: 58 | B49: 58 | D49: 11540 | E49: 10488 | F49: 9349 | G49: 7464 | H49: 6792 | I49: 5859
A50: 59 | B50: 59 | D50: 11925 | E50: 10840 | F50: 9700 | G50: 7744 | H50: 7042 | I50: 6078
A51: 60 | B51: 60 | D51: 12312 | E51: 11195 | F51: 10047 | G51: 8024 | H51: 7298 | I51: 6300
A52: 61 | B52: 61 | D52: 12783 | E52: 11622 | F52: 10480 | G52: 8325 | H52: 7573 | I52: 6535
A53: 62 | B53: 62 | D53: 13363 | E53: 12148 | F53: 10990 | G53: 8706 | H53: 7913 | I53: 6829
A54: 63 | B54: 63 | D54: 14050 | E54: 12771 | F54: 11551 | G54: 9153 | H54: 8320 | I54: 7181
A55: 64 | B55: 64 | D55: 14844 | E55: 13494 | F55: 12214 | G55: 9678 | H55: 8803 | I55: 7599
A56: 65 | B56: 65 | D56: 15822 | E56: 14381 | F56: 13134 | G56: 10371 | H56: 9431 | I56: 8132
A57: 66 | B57: 66 | D57: 16952 | E57: 15416 | F57: 14190 | G57: 11171 | H57: 10156 | I57: 8744
A58: 67 | B58: 67 | D58: 18319 | E58: 16654 | F58: 15325 | G58: 12064 | H58: 10965 | I58: 9458
A59: 68 | B59: 68 | D59: 19859 | E59: 18052 | F59: 16617 | G59: 13076 | H59: 11888 | I59: 10253
A60: 69 | B60: 69 | D60: 21688 | E60: 19716 | F60: 18139 | G60: 14283 | H60: 12985 | I60: 11199
A61: 70 | B61: 70 | D61: 23776 | E61: 21614 | F61: 20017 | G61: 15792 | H61: 14359 | I61: 12374
A62: 71 | B62: 71 | D62: 26173 | E62: 23795 | F62: 22234 | G62: 17387 | H62: 15805 | I62: 13632
A63: 72 | B63: 72 | D63: 28968 | E63: 26338 | F63: 24598 | G63: 19248 | H63: 17497 | I63: 15085
A64: 73 | B64: 73 | D64: 32152 | E64: 29231 | F64: 27297 | G64: 21363 | H64: 19420 | I64: 16740
A65: 74 | B65: 74 | D65: 35864 | E65: 32604 | F65: 30439 | G65: 23818 | H65: 21653 | I65: 18674
A66: 75 | B66: 75 | D66: 40081 | E66: 36435 | F66: 34100 | G66: 26728 | H66: 24301 | I66: 20947
A67: 76 | B67: 76 | D67: 44948 | E67: 40859 | F67: 38368 | G67: 29971 | H67: 27243 | I67: 23488
A68: 77 | B68: 77 | D68: 50481 | E68: 45895 | F68: 43129 | G68: 33656 | H68: 30600 | I68: 26383
A69: 78 | B69: 78 | D69: 56716 | E69: 51563 | F69: 48461 | G69: 37818 | H69: 34381 | I69: 29638
A70: 79 | B70: 79 | D70: 63728 | E70: 57937 | F70: 54447 | G70: 42494 | H70: 38629 | I70: 33300
A71: 80 | B71: 80 | D71: 72114 | E71: 65554 | F71: 61612 | G71: 48082 | H71: 43715 | I71: 37683
A72: 1 | B72: 1 Child | D72: 2131 | E72: 1937 | F72: 1150 | G72: 1077 | H72: 979 | I72: 842
A73: 2 | B73: 2 Children | D73: 3586 | E73: 3264 | F73: 1701 | G73: 1684 | H73: 1533 | I73: 1319
A74: 3 | B74: 3+ Children | D74: 5268 | E74: 4787 | F74: 2443 | G74: 2457 | H74: 2230 | I74: 1915
A75: 1 | B75: Rider Comp. Maternidad | D75: 225 | E75: 225 | F75: 225 | G75: 225 | H75: 225 | I75: 225
A76: 1 | B76: Transplante de organos | D76: 300 | E76: 300 | F76: 300 | G76: 300 | H76: 300 | I76: 300

Sheet Paraguay 6 (hidden)
K1: D1 | L1: D2 | M1: D3 | N1: D4 | O1: D5 | P1: D6
B2: REGIÓN | C2: ='INGRESO DE DATOS'!W22 -> 2 | E2: FACTOR SEMESTRAL : | G2: 0.53 | I2: NEW BUSINESS DISCUOUNTS | K2: ='INGRESO DE DATOS'!O42 -> 1 | L2: ='INGRESO DE DATOS'!P42 -> 1 | M2: ='INGRESO DE DATOS'!Q42 -> 1 | N2: ='INGRESO DE DATOS'!R42 -> 1 | O2: ='INGRESO DE DATOS'!S42 -> 1 | P2: ='INGRESO DE DATOS'!T42 -> 1
A5: BUPA FLEX
A6: TARIFAS ANUALES
A8: EDAD | C8: DW1 | D8: DW2 | E8: DW3 | F8: DW4 | G8: DW5 | H8: DW6 | I8: DW7
A9: 18 | B9: 18 | D9: 3530 | E9: 3210 | F9: 2491 | G9: 2112 | H9: 1920 | I9: 1660
A10: 19 | B10: 19 | D10: 3592 | E10: 3265 | F10: 2547 | G10: 2152 | H10: 1957 | I10: 1695
A11: 20 | B11: 20 | D11: 3655 | E11: 3320 | F11: 2598 | G11: 2191 | H11: 1992 | I11: 1725
A12: 21 | B12: 21 | D12: 3716 | E12: 3376 | F12: 2649 | G12: 2235 | H12: 2033 | I12: 1759
A13: 22 | B13: 22 | D13: 3777 | E13: 3436 | F13: 2706 | G13: 2277 | H13: 2070 | I13: 1791
A14: 23 | B14: 23 | D14: 3843 | E14: 3489 | F14: 2764 | G14: 2320 | H14: 2112 | I14: 1822
A15: 24 | B15: 24 | D15: 3903 | E15: 3548 | F15: 2818 | G15: 2363 | H15: 2151 | I15: 1857
A16: 25 | B16: 25 | D16: 3966 | E16: 3607 | F16: 2871 | G16: 2407 | H16: 2190 | I16: 1889
A17: 26 | B17: 26 | D17: 4031 | E17: 3663 | F17: 2929 | G17: 2451 | H17: 2227 | I17: 1922
A18: 27 | B18: 27 | D18: 4096 | E18: 3720 | F18: 2982 | G18: 2489 | H18: 2262 | I18: 1957
A19: 28 | B19: 28 | D19: 4167 | E19: 3791 | F19: 3054 | G19: 2537 | H19: 2314 | I19: 2002
A20: 29 | B20: 29 | D20: 4235 | E20: 3852 | F20: 3125 | G20: 2597 | H20: 2359 | I20: 2040
A21: 30 | B21: 30 | D21: 4307 | E21: 3916 | F21: 3191 | G21: 2647 | H21: 2407 | I21: 2078
A22: 31 | B22: 31 | D22: 4383 | E22: 3984 | F22: 3263 | G22: 2699 | H22: 2454 | I22: 2120
A23: 32 | B23: 32 | D23: 4456 | E23: 4053 | F23: 3330 | G23: 2750 | H23: 2501 | I23: 2161
A24: 33 | B24: 33 | D24: 4577 | E24: 4160 | F24: 3436 | G24: 2833 | H24: 2575 | I24: 2227
A25: 34 | B25: 34 | D25: 4699 | E25: 4272 | F25: 3542 | G25: 2914 | H25: 2649 | I25: 2291
A26: 35 | B26: 35 | D26: 4820 | E26: 4383 | F26: 3639 | G26: 2993 | H26: 2723 | I26: 2351
A27: 36 | B27: 36 | D27: 4941 | E27: 4494 | F27: 3744 | G27: 3077 | H27: 2793 | I27: 2420
A28: 37 | B28: 37 | D28: 5062 | E28: 4605 | F28: 3849 | G28: 3159 | H28: 2870 | I28: 2481
A29: 38 | B29: 38 | D29: 5187 | E29: 4713 | F29: 3957 | G29: 3238 | H29: 2945 | I29: 2550
A30: 39 | B30: 39 | D30: 5310 | E30: 4828 | F30: 4066 | G30: 3321 | H30: 3019 | I30: 2611
A31: 40 | B31: 40 | D31: 5436 | E31: 4940 | F31: 4172 | G31: 3406 | H31: 3100 | I31: 2676
A32: 41 | B32: 41 | D32: 5556 | E32: 5049 | F32: 4279 | G32: 3487 | H32: 3172 | I32: 2739
A33: 42 | B33: 42 | D33: 5677 | E33: 5165 | F33: 4389 | G33: 3573 | H33: 3246 | I33: 2804
A34: 43 | B34: 43 | D34: 5906 | E34: 5366 | F34: 4582 | G34: 3721 | H34: 3384 | I34: 2924
A35: 44 | B35: 44 | D35: 6132 | E35: 5575 | F35: 4773 | G35: 3875 | H35: 3523 | I35: 3041
A36: 45 | B36: 45 | D36: 6358 | E36: 5781 | F36: 4968 | G36: 4026 | H36: 3657 | I36: 3161
A37: 46 | B37: 46 | D37: 6585 | E37: 5986 | F37: 5158 | G37: 4176 | H37: 3797 | I37: 3275
A38: 47 | B38: 47 | D38: 6809 | E38: 6192 | F38: 5355 | G38: 4328 | H38: 3935 | I38: 3396
A39: 48 | B39: 48 | D39: 7051 | E39: 6410 | F39: 5555 | G39: 4488 | H39: 4076 | I39: 3520
A40: 49 | B40: 49 | D40: 7291 | E40: 6628 | F40: 5758 | G40: 4643 | H40: 4220 | I40: 3646
A41: 50 | B41: 50 | D41: 7534 | E41: 6847 | F41: 5957 | G41: 4799 | H41: 4365 | I41: 3773
A42: 51 | B42: 51 | D42: 7769 | E42: 7065 | F42: 6163 | G42: 4958 | H42: 4508 | I42: 3892
A43: 52 | B43: 52 | D43: 8013 | E43: 7282 | F43: 6363 | G43: 5113 | H43: 4650 | I43: 4016
A44: 53 | B44: 53 | D44: 8290 | E44: 7540 | F44: 6608 | G44: 5303 | H44: 4825 | I44: 4167
A45: 54 | B45: 54 | D45: 8573 | E45: 7795 | F45: 6857 | G45: 5495 | H45: 4997 | I45: 4316
A46: 55 | B46: 55 | D46: 8857 | E46: 8050 | F46: 7102 | G46: 5688 | H46: 5169 | I46: 4466
A47: 56 | B47: 56 | D47: 9136 | E47: 8308 | F47: 7350 | G47: 5877 | H47: 5344 | I47: 4607
A48: 57 | B48: 57 | D48: 9423 | E48: 8565 | F48: 7596 | G48: 6069 | H48: 5520 | I48: 4760
A49: 58 | B49: 58 | D49: 9744 | E49: 8857 | F49: 7894 | G49: 6306 | H49: 5733 | I49: 4945
A50: 59 | B50: 59 | D50: 10069 | E50: 9154 | F50: 8188 | G50: 6541 | H50: 5949 | I50: 5131
A51: 60 | B51: 60 | D51: 10394 | E51: 9452 | F51: 8484 | G51: 6779 | H51: 6165 | I51: 5316
A52: 61 | B52: 61 | D52: 10789 | E52: 9806 | F52: 8845 | G52: 7031 | H52: 6390 | I52: 5520
A53: 62 | B53: 62 | D53: 11270 | E53: 10247 | F53: 9286 | G53: 7354 | H53: 6688 | I53: 5768
A54: 63 | B54: 63 | D54: 11855 | E54: 10775 | F54: 9764 | G54: 7727 | H54: 7027 | I54: 6068
A55: 64 | B55: 64 | D55: 12528 | E55: 11389 | F55: 10315 | G55: 8172 | H55: 7429 | I55: 6418
A56: 65 | B56: 65 | D56: 13355 | E56: 12141 | F56: 11088 | G56: 8754 | H56: 7954 | I56: 6867
A57: 66 | B57: 66 | D57: 14314 | E57: 13009 | F57: 11982 | G57: 9428 | H57: 8572 | I57: 7391
A58: 67 | B58: 67 | D58: 15459 | E58: 14052 | F58: 12943 | G58: 10184 | H58: 9261 | I58: 7987
A59: 68 | B59: 68 | D59: 16765 | E59: 15239 | F59: 14031 | G59: 11046 | H59: 10040 | I59: 8660
A60: 69 | B60: 69 | D60: 18302 | E60: 16638 | F60: 15319 | G60: 12064 | H60: 10969 | I60: 9458
A61: 70 | B61: 70 | D61: 20064 | E61: 18243 | F61: 16900 | G61: 13339 | H61: 12128 | I61: 10448
A62: 71 | B62: 71 | D62: 22100 | E62: 20092 | F62: 18773 | G62: 14683 | H62: 13349 | I62: 11510
A63: 72 | B63: 72 | D63: 24449 | E63: 22230 | F63: 20778 | G63: 16257 | H63: 14783 | I63: 12743
A64: 73 | B64: 73 | D64: 27147 | E64: 24681 | F64: 23058 | G64: 18048 | H64: 16407 | I64: 14135
A65: 74 | B65: 74 | D65: 30268 | E65: 27517 | F65: 25711 | G65: 20117 | H65: 18287 | I65: 15770
A66: 75 | B66: 75 | D66: 33839 | E66: 30766 | F66: 28804 | G66: 22570 | H66: 20520 | I66: 17695
A67: 76 | B67: 76 | D67: 37943 | E67: 34499 | F67: 32412 | G67: 25309 | H67: 23010 | I67: 19845
A68: 77 | B68: 77 | D68: 42620 | E68: 38745 | F68: 36433 | G68: 28425 | H68: 25843 | I68: 22286
A69: 78 | B69: 78 | D69: 47884 | E69: 43532 | F69: 40933 | G69: 31941 | H69: 29035 | I69: 25038
A70: 79 | B70: 79 | D70: 53802 | E70: 48910 | F70: 45990 | G70: 35884 | H70: 32622 | I70: 28132
A71: 80 | B71: 80 | D71: 60881 | E71: 55349 | F71: 52045 | G71: 40609 | H71: 36911 | I71: 31834
A72: 1 | B72: 1 Child | D72: 1798 | E72: 1639 | F72: 965 | G72: 899 | H72: 818 | I72: 712
A73: 2 | B73: 2 Children | D73: 3028 | E73: 2755 | F73: 1428 | G73: 1424 | H73: 1293 | I73: 1122
A74: 3 | B74: 3+ Children | D74: 4447 | E74: 4048 | F74: 2064 | G74: 2072 | H74: 1881 | I74: 1623
A75: 1 | B75: Rider Comp. Maternidad | D75: 225 | E75: 225 | F75: 225 | G75: 225 | H75: 225 | I75: 225
A76: 1 | B76: Transplante de organos | D76: 300 | E76: 300 | F76: 300 | G76: 300 | H76: 300 | I76: 300

Sheet Peru 4 (hidden)
K1: D1 | L1: D2 | M1: D3 | N1: D4 | O1: D5 | P1: D6
B2: REGIÓN | C2: ='INGRESO DE DATOS'!W22 -> 2 | E2: FACTOR SEMESTRAL : | G2: 0.53 | I2: NEW BUSINESS DISCUOUNTS | K2: ='INGRESO DE DATOS'!O42 -> 1 | L2: ='INGRESO DE DATOS'!P42 -> 1 | M2: ='INGRESO DE DATOS'!Q42 -> 1 | N2: ='INGRESO DE DATOS'!R42 -> 1 | O2: ='INGRESO DE DATOS'!S42 -> 1 | P2: ='INGRESO DE DATOS'!T42 -> 1
A5: BUPA FLEX
A6: TARIFAS ANUALES
A8: EDAD | C8: DW1 | D8: DW2 | E8: DW3 | F8: DW4 | G8: DW5 | H8: DW6 | I8: DW7
A9: 18 | B9: 18 | D9: 4174 | E9: 3797 | F9: 2947 | G9: 2498 | H9: 2270 | I9: 1966
A10: 19 | B10: 19 | D10: 4253 | E10: 3861 | F10: 3009 | G10: 2545 | H10: 2316 | I10: 1996
A11: 20 | B11: 20 | D11: 4320 | E11: 3931 | F11: 3067 | G11: 2598 | H11: 2358 | I11: 2039
A12: 21 | B12: 21 | D12: 4399 | E12: 3999 | F12: 3134 | G12: 2646 | H12: 2405 | I12: 2080
A13: 22 | B13: 22 | D13: 4470 | E13: 4065 | F13: 3203 | G13: 2695 | H13: 2457 | I13: 2123
A14: 23 | B14: 23 | D14: 4549 | E14: 4136 | F14: 3269 | G14: 2747 | H14: 2498 | I14: 2163
A15: 24 | B15: 24 | D15: 4620 | E15: 4205 | F15: 3334 | G15: 2800 | H15: 2545 | I15: 2204
A16: 25 | B16: 25 | D16: 4698 | E16: 4273 | F16: 3399 | G16: 2846 | H16: 2588 | I16: 2246
A17: 26 | B17: 26 | D17: 4774 | E17: 4339 | F17: 3467 | G17: 2901 | H17: 2641 | I17: 2285
A18: 27 | B18: 27 | D18: 4851 | E18: 4408 | F18: 3535 | G18: 2954 | H18: 2688 | I18: 2323
A19: 28 | B19: 28 | D19: 4933 | E19: 4488 | F19: 3617 | G19: 3014 | H19: 2741 | I19: 2376
A20: 29 | B20: 29 | D20: 5019 | E20: 4567 | F20: 3699 | G20: 3077 | H20: 2797 | I20: 2420
A21: 30 | B21: 30 | D21: 5108 | E21: 4640 | F21: 3779 | G21: 3134 | H21: 2846 | I21: 2464
A22: 31 | B22: 31 | D22: 5191 | E22: 4721 | F22: 3860 | G22: 3196 | H22: 2906 | I22: 2514
A23: 32 | B23: 32 | D23: 5279 | E23: 4802 | F23: 3942 | G23: 3261 | H23: 2960 | I23: 2560
A24: 33 | B24: 33 | D24: 5426 | E24: 4932 | F24: 4065 | G24: 3352 | H24: 3051 | I24: 2634
A25: 34 | B25: 34 | D25: 5568 | E25: 5063 | F25: 4192 | G25: 3449 | H25: 3134 | I25: 2714
A26: 35 | B26: 35 | D26: 5712 | E26: 5200 | F26: 4315 | G26: 3543 | H26: 3222 | I26: 2787
A27: 36 | B27: 36 | D27: 5860 | E27: 5329 | F27: 4436 | G27: 3643 | H27: 3308 | I27: 2861
A28: 37 | B28: 37 | D28: 6005 | E28: 5458 | F28: 4558 | G28: 3733 | H28: 3395 | I28: 2937
A29: 38 | B29: 38 | D29: 6153 | E29: 5590 | F29: 4685 | G29: 3834 | H29: 3479 | I29: 3014
A30: 39 | B30: 39 | D30: 6293 | E30: 5723 | F30: 4813 | G30: 3931 | H30: 3570 | I30: 3091
A31: 40 | B31: 40 | D31: 6442 | E31: 5856 | F31: 4940 | G31: 4026 | H31: 3663 | I31: 3170
A32: 41 | B32: 41 | D32: 6587 | E32: 5988 | F32: 5071 | G32: 4124 | H32: 3749 | I32: 3243
A33: 42 | B33: 42 | D33: 6733 | E33: 6120 | F33: 5203 | G33: 4221 | H33: 3836 | I33: 3322
A34: 43 | B34: 43 | D34: 7000 | E34: 6364 | F34: 5429 | G34: 4403 | H34: 4001 | I34: 3459
A35: 44 | B35: 44 | D35: 7264 | E35: 6603 | F35: 5653 | G35: 4581 | H35: 4170 | I35: 3604
A36: 45 | B36: 45 | D36: 7534 | E36: 6850 | F36: 5884 | G36: 4764 | H36: 4330 | I36: 3744
A37: 46 | B37: 46 | D37: 7797 | E37: 7092 | F37: 6113 | G37: 4948 | H37: 4494 | I37: 3885
A38: 47 | B38: 47 | D38: 8067 | E38: 7329 | F38: 6344 | G38: 5128 | H38: 4662 | I38: 4025
A39: 48 | B39: 48 | D39: 8356 | E39: 7596 | F39: 6582 | G39: 5316 | H39: 4830 | I39: 4171
A40: 49 | B40: 49 | D40: 8635 | E40: 7853 | F40: 6820 | G40: 5501 | H40: 5000 | I40: 4320
A41: 50 | B41: 50 | D41: 8925 | E41: 8109 | F41: 7055 | G41: 5687 | H41: 5172 | I41: 4468
A42: 51 | B42: 51 | D42: 9210 | E42: 8374 | F42: 7297 | G42: 5873 | H42: 5340 | I42: 4615
A43: 52 | B43: 52 | D43: 9496 | E43: 8632 | F43: 7534 | G43: 6061 | H43: 5506 | I43: 4764
A44: 53 | B44: 53 | D44: 9830 | E44: 8935 | F44: 7827 | G44: 6286 | H44: 5712 | I44: 4937
A45: 54 | B45: 54 | D45: 10157 | E45: 9236 | F45: 8118 | G45: 6512 | H45: 5919 | I45: 5116
A46: 55 | B46: 55 | D46: 10488 | E46: 9536 | F46: 8415 | G46: 6736 | H46: 6122 | I46: 5290
A47: 56 | B47: 56 | D47: 10817 | E47: 9836 | F47: 8706 | G47: 6964 | H47: 6328 | I47: 5463
A48: 57 | B48: 57 | D48: 11150 | E48: 10136 | F48: 8997 | G48: 7189 | H48: 6535 | I48: 5637
A49: 58 | B49: 58 | D49: 11540 | E49: 10488 | F49: 9349 | G49: 7464 | H49: 6792 | I49: 5859
A50: 59 | B50: 59 | D50: 11925 | E50: 10840 | F50: 9700 | G50: 7744 | H50: 7042 | I50: 6078
A51: 60 | B51: 60 | D51: 12312 | E51: 11195 | F51: 10047 | G51: 8024 | H51: 7298 | I51: 6300
A52: 61 | B52: 61 | D52: 12783 | E52: 11622 | F52: 10480 | G52: 8325 | H52: 7573 | I52: 6535
A53: 62 | B53: 62 | D53: 13363 | E53: 12148 | F53: 10990 | G53: 8706 | H53: 7913 | I53: 6829
A54: 63 | B54: 63 | D54: 14050 | E54: 12771 | F54: 11551 | G54: 9153 | H54: 8320 | I54: 7181
A55: 64 | B55: 64 | D55: 14844 | E55: 13494 | F55: 12214 | G55: 9678 | H55: 8803 | I55: 7599
A56: 65 | B56: 65 | D56: 15822 | E56: 14381 | F56: 13134 | G56: 10371 | H56: 9431 | I56: 8132
A57: 66 | B57: 66 | D57: 16952 | E57: 15416 | F57: 14190 | G57: 11171 | H57: 10156 | I57: 8744
A58: 67 | B58: 67 | D58: 18319 | E58: 16654 | F58: 15325 | G58: 12064 | H58: 10965 | I58: 9458
A59: 68 | B59: 68 | D59: 19859 | E59: 18052 | F59: 16617 | G59: 13076 | H59: 11888 | I59: 10253
A60: 69 | B60: 69 | D60: 21688 | E60: 19716 | F60: 18139 | G60: 14283 | H60: 12985 | I60: 11199
A61: 70 | B61: 70 | D61: 23776 | E61: 21614 | F61: 20017 | G61: 15792 | H61: 14359 | I61: 12374
A62: 71 | B62: 71 | D62: 26173 | E62: 23795 | F62: 22234 | G62: 17387 | H62: 15805 | I62: 13632
A63: 72 | B63: 72 | D63: 28968 | E63: 26338 | F63: 24598 | G63: 19248 | H63: 17497 | I63: 15085
A64: 73 | B64: 73 | D64: 32152 | E64: 29231 | F64: 27297 | G64: 21363 | H64: 19420 | I64: 16740
A65: 74 | B65: 74 | D65: 35864 | E65: 32604 | F65: 30439 | G65: 23818 | H65: 21653 | I65: 18674
A66: 75 | B66: 75 | D66: 40081 | E66: 36435 | F66: 34100 | G66: 26728 | H66: 24301 | I66: 20947
A67: 76 | B67: 76 | D67: 44948 | E67: 40859 | F67: 38368 | G67: 29971 | H67: 27243 | I67: 23488
A68: 77 | B68: 77 | D68: 50481 | E68: 45895 | F68: 43129 | G68: 33656 | H68: 30600 | I68: 26383
A69: 78 | B69: 78 | D69: 56716 | E69: 51563 | F69: 48461 | G69: 37818 | H69: 34381 | I69: 29638
A70: 79 | B70: 79 | D70: 63728 | E70: 57937 | F70: 54447 | G70: 42494 | H70: 38629 | I70: 33300
A71: 80 | B71: 80 | D71: 72114 | E71: 65554 | F71: 61612 | G71: 48082 | H71: 43715 | I71: 37683
A72: 1 | B72: 1 Child | D72: 2131 | E72: 1937 | F72: 1150 | G72: 1077 | H72: 979 | I72: 842
A73: 2 | B73: 2 Children | D73: 3586 | E73: 3264 | F73: 1701 | G73: 1684 | H73: 1533 | I73: 1319
A74: 3 | B74: 3+ Children | D74: 5268 | E74: 4787 | F74: 2443 | G74: 2457 | H74: 2230 | I74: 1915
A75: 1 | B75: Rider Comp. Maternidad | D75: 225 | E75: 225 | F75: 225 | G75: 225 | H75: 225 | I75: 225
A76: 1 | B76: Transplante de organos | D76: 300 | E76: 300 | F76: 300 | G76: 300 | H76: 300 | I76: 300

Sheet Surinam 4 (hidden)
K1: D1 | L1: D2 | M1: D3 | N1: D4 | O1: D5 | P1: D6
B2: REGIÓN | C2: ='INGRESO DE DATOS'!W22 -> 2 | E2: FACTOR SEMESTRAL : | G2: 0.53 | I2: NEW BUSINESS DISCUOUNTS | K2: ='INGRESO DE DATOS'!O42 -> 1 | L2: ='INGRESO DE DATOS'!P42 -> 1 | M2: ='INGRESO DE DATOS'!Q42 -> 1 | N2: ='INGRESO DE DATOS'!R42 -> 1 | O2: ='INGRESO DE DATOS'!S42 -> 1 | P2: ='INGRESO DE DATOS'!T42 -> 1
A5: BUPA FLEX
A6: TARIFAS ANUALES
A8: EDAD | C8: DW1 | D8: DW2 | E8: DW3 | F8: DW4 | G8: DW5 | H8: DW6 | I8: DW7
A9: 18 | B9: 18 | D9: 4174 | E9: 3797 | F9: 2947 | G9: 2498 | H9: 2270 | I9: 1966
A10: 19 | B10: 19 | D10: 4253 | E10: 3861 | F10: 3009 | G10: 2545 | H10: 2316 | I10: 1996
A11: 20 | B11: 20 | D11: 4320 | E11: 3931 | F11: 3067 | G11: 2598 | H11: 2358 | I11: 2039
A12: 21 | B12: 21 | D12: 4399 | E12: 3999 | F12: 3134 | G12: 2646 | H12: 2405 | I12: 2080
A13: 22 | B13: 22 | D13: 4470 | E13: 4065 | F13: 3203 | G13: 2695 | H13: 2457 | I13: 2123
A14: 23 | B14: 23 | D14: 4549 | E14: 4136 | F14: 3269 | G14: 2747 | H14: 2498 | I14: 2163
A15: 24 | B15: 24 | D15: 4620 | E15: 4205 | F15: 3334 | G15: 2800 | H15: 2545 | I15: 2204
A16: 25 | B16: 25 | D16: 4698 | E16: 4273 | F16: 3399 | G16: 2846 | H16: 2588 | I16: 2246
A17: 26 | B17: 26 | D17: 4774 | E17: 4339 | F17: 3467 | G17: 2901 | H17: 2641 | I17: 2285
A18: 27 | B18: 27 | D18: 4851 | E18: 4408 | F18: 3535 | G18: 2954 | H18: 2688 | I18: 2323
A19: 28 | B19: 28 | D19: 4933 | E19: 4488 | F19: 3617 | G19: 3014 | H19: 2741 | I19: 2376
A20: 29 | B20: 29 | D20: 5019 | E20: 4567 | F20: 3699 | G20: 3077 | H20: 2797 | I20: 2420
A21: 30 | B21: 30 | D21: 5108 | E21: 4640 | F21: 3779 | G21: 3134 | H21: 2846 | I21: 2464
A22: 31 | B22: 31 | D22: 5191 | E22: 4721 | F22: 3860 | G22: 3196 | H22: 2906 | I22: 2514
A23: 32 | B23: 32 | D23: 5279 | E23: 4802 | F23: 3942 | G23: 3261 | H23: 2960 | I23: 2560
A24: 33 | B24: 33 | D24: 5426 | E24: 4932 | F24: 4065 | G24: 3352 | H24: 3051 | I24: 2634
A25: 34 | B25: 34 | D25: 5568 | E25: 5063 | F25: 4192 | G25: 3449 | H25: 3134 | I25: 2714
A26: 35 | B26: 35 | D26: 5712 | E26: 5200 | F26: 4315 | G26: 3543 | H26: 3222 | I26: 2787
A27: 36 | B27: 36 | D27: 5860 | E27: 5329 | F27: 4436 | G27: 3643 | H27: 3308 | I27: 2861
A28: 37 | B28: 37 | D28: 6005 | E28: 5458 | F28: 4558 | G28: 3733 | H28: 3395 | I28: 2937
A29: 38 | B29: 38 | D29: 6153 | E29: 5590 | F29: 4685 | G29: 3834 | H29: 3479 | I29: 3014
A30: 39 | B30: 39 | D30: 6293 | E30: 5723 | F30: 4813 | G30: 3931 | H30: 3570 | I30: 3091
A31: 40 | B31: 40 | D31: 6442 | E31: 5856 | F31: 4940 | G31: 4026 | H31: 3663 | I31: 3170
A32: 41 | B32: 41 | D32: 6587 | E32: 5988 | F32: 5071 | G32: 4124 | H32: 3749 | I32: 3243
A33: 42 | B33: 42 | D33: 6733 | E33: 6120 | F33: 5203 | G33: 4221 | H33: 3836 | I33: 3322
A34: 43 | B34: 43 | D34: 7000 | E34: 6364 | F34: 5429 | G34: 4403 | H34: 4001 | I34: 3459
A35: 44 | B35: 44 | D35: 7264 | E35: 6603 | F35: 5653 | G35: 4581 | H35: 4170 | I35: 3604
A36: 45 | B36: 45 | D36: 7534 | E36: 6850 | F36: 5884 | G36: 4764 | H36: 4330 | I36: 3744
A37: 46 | B37: 46 | D37: 7797 | E37: 7092 | F37: 6113 | G37: 4948 | H37: 4494 | I37: 3885
A38: 47 | B38: 47 | D38: 8067 | E38: 7329 | F38: 6344 | G38: 5128 | H38: 4662 | I38: 4025
A39: 48 | B39: 48 | D39: 8356 | E39: 7596 | F39: 6582 | G39: 5316 | H39: 4830 | I39: 4171
A40: 49 | B40: 49 | D40: 8635 | E40: 7853 | F40: 6820 | G40: 5501 | H40: 5000 | I40: 4320
A41: 50 | B41: 50 | D41: 8925 | E41: 8109 | F41: 7055 | G41: 5687 | H41: 5172 | I41: 4468
A42: 51 | B42: 51 | D42: 9210 | E42: 8374 | F42: 7297 | G42: 5873 | H42: 5340 | I42: 4615
A43: 52 | B43: 52 | D43: 9496 | E43: 8632 | F43: 7534 | G43: 6061 | H43: 5506 | I43: 4764
A44: 53 | B44: 53 | D44: 9830 | E44: 8935 | F44: 7827 | G44: 6286 | H44: 5712 | I44: 4937
A45: 54 | B45: 54 | D45: 10157 | E45: 9236 | F45: 8118 | G45: 6512 | H45: 5919 | I45: 5116
A46: 55 | B46: 55 | D46: 10488 | E46: 9536 | F46: 8415 | G46: 6736 | H46: 6122 | I46: 5290
A47: 56 | B47: 56 | D47: 10817 | E47: 9836 | F47: 8706 | G47: 6964 | H47: 6328 | I47: 5463
A48: 57 | B48: 57 | D48: 11150 | E48: 10136 | F48: 8997 | G48: 7189 | H48: 6535 | I48: 5637
A49: 58 | B49: 58 | D49: 11540 | E49: 10488 | F49: 9349 | G49: 7464 | H49: 6792 | I49: 5859
A50: 59 | B50: 59 | D50: 11925 | E50: 10840 | F50: 9700 | G50: 7744 | H50: 7042 | I50: 6078
A51: 60 | B51: 60 | D51: 12312 | E51: 11195 | F51: 10047 | G51: 8024 | H51: 7298 | I51: 6300
A52: 61 | B52: 61 | D52: 12783 | E52: 11622 | F52: 10480 | G52: 8325 | H52: 7573 | I52: 6535
A53: 62 | B53: 62 | D53: 13363 | E53: 12148 | F53: 10990 | G53: 8706 | H53: 7913 | I53: 6829
A54: 63 | B54: 63 | D54: 14050 | E54: 12771 | F54: 11551 | G54: 9153 | H54: 8320 | I54: 7181
A55: 64 | B55: 64 | D55: 14844 | E55: 13494 | F55: 12214 | G55: 9678 | H55: 8803 | I55: 7599
A56: 65 | B56: 65 | D56: 15822 | E56: 14381 | F56: 13134 | G56: 10371 | H56: 9431 | I56: 8132
A57: 66 | B57: 66 | D57: 16952 | E57: 15416 | F57: 14190 | G57: 11171 | H57: 10156 | I57: 8744
A58: 67 | B58: 67 | D58: 18319 | E58: 16654 | F58: 15325 | G58: 12064 | H58: 10965 | I58: 9458
A59: 68 | B59: 68 | D59: 19859 | E59: 18052 | F59: 16617 | G59: 13076 | H59: 11888 | I59: 10253
A60: 69 | B60: 69 | D60: 21688 | E60: 19716 | F60: 18139 | G60: 14283 | H60: 12985 | I60: 11199
A61: 70 | B61: 70 | D61: 23776 | E61: 21614 | F61: 20017 | G61: 15792 | H61: 14359 | I61: 12374
A62: 71 | B62: 71 | D62: 26173 | E62: 23795 | F62: 22234 | G62: 17387 | H62: 15805 | I62: 13632
A63: 72 | B63: 72 | D63: 28968 | E63: 26338 | F63: 24598 | G63: 19248 | H63: 17497 | I63: 15085
A64: 73 | B64: 73 | D64: 32152 | E64: 29231 | F64: 27297 | G64: 21363 | H64: 19420 | I64: 16740
A65: 74 | B65: 74 | D65: 35864 | E65: 32604 | F65: 30439 | G65: 23818 | H65: 21653 | I65: 18674
A66: 75 | B66: 75 | D66: 40081 | E66: 36435 | F66: 34100 | G66: 26728 | H66: 24301 | I66: 20947
A67: 76 | B67: 76 | D67: 44948 | E67: 40859 | F67: 38368 | G67: 29971 | H67: 27243 | I67: 23488
A68: 77 | B68: 77 | D68: 50481 | E68: 45895 | F68: 43129 | G68: 33656 | H68: 30600 | I68: 26383
A69: 78 | B69: 78 | D69: 56716 | E69: 51563 | F69: 48461 | G69: 37818 | H69: 34381 | I69: 29638
A70: 79 | B70: 79 | D70: 63728 | E70: 57937 | F70: 54447 | G70: 42494 | H70: 38629 | I70: 33300
A71: 80 | B71: 80 | D71: 72114 | E71: 65554 | F71: 61612 | G71: 48082 | H71: 43715 | I71: 37683
A72: 1 | B72: 1 Child | D72: 2131 | E72: 1937 | F72: 1150 | G72: 1077 | H72: 979 | I72: 842
A73: 2 | B73: 2 Children | D73: 3586 | E73: 3264 | F73: 1701 | G73: 1684 | H73: 1533 | I73: 1319
A74: 3 | B74: 3+ Children | D74: 5268 | E74: 4787 | F74: 2443 | G74: 2457 | H74: 2230 | I74: 1915
A75: 1 | B75: Rider Comp. Maternidad | D75: 225 | E75: 225 | F75: 225 | G75: 225 | H75: 225 | I75: 225
A76: 1 | B76: Transplante de organos | D76: 300 | E76: 300 | F76: 300 | G76: 300 | H76: 300 | I76: 300

Sheet Uruguay 4 (hidden)
K1: D1 | L1: D2 | M1: D3 | N1: D4 | O1: D5 | P1: D6
B2: REGIÓN | C2: ='INGRESO DE DATOS'!W22 -> 2 | E2: FACTOR SEMESTRAL : | G2: 0.53 | I2: NEW BUSINESS DISCUOUNTS | K2: ='INGRESO DE DATOS'!O42 -> 1 | L2: ='INGRESO DE DATOS'!P42 -> 1 | M2: ='INGRESO DE DATOS'!Q42 -> 1 | N2: ='INGRESO DE DATOS'!R42 -> 1 | O2: ='INGRESO DE DATOS'!S42 -> 1 | P2: ='INGRESO DE DATOS'!T42 -> 1
A5: BUPA FLEX
A6: TARIFAS ANUALES
A8: EDAD | C8: DW1 | D8: DW2 | E8: DW3 | F8: DW4 | G8: DW5 | H8: DW6 | I8: DW7
A9: 18 | B9: 18 | D9: 4174 | E9: 3797 | F9: 2947 | G9: 2498 | H9: 2270 | I9: 1966
A10: 19 | B10: 19 | D10: 4253 | E10: 3861 | F10: 3009 | G10: 2545 | H10: 2316 | I10: 1996
A11: 20 | B11: 20 | D11: 4320 | E11: 3931 | F11: 3067 | G11: 2598 | H11: 2358 | I11: 2039
A12: 21 | B12: 21 | D12: 4399 | E12: 3999 | F12: 3134 | G12: 2646 | H12: 2405 | I12: 2080
A13: 22 | B13: 22 | D13: 4470 | E13: 4065 | F13: 3203 | G13: 2695 | H13: 2457 | I13: 2123
A14: 23 | B14: 23 | D14: 4549 | E14: 4136 | F14: 3269 | G14: 2747 | H14: 2498 | I14: 2163
A15: 24 | B15: 24 | D15: 4620 | E15: 4205 | F15: 3334 | G15: 2800 | H15: 2545 | I15: 2204
A16: 25 | B16: 25 | D16: 4698 | E16: 4273 | F16: 3399 | G16: 2846 | H16: 2588 | I16: 2246
A17: 26 | B17: 26 | D17: 4774 | E17: 4339 | F17: 3467 | G17: 2901 | H17: 2641 | I17: 2285
A18: 27 | B18: 27 | D18: 4851 | E18: 4408 | F18: 3535 | G18: 2954 | H18: 2688 | I18: 2323
A19: 28 | B19: 28 | D19: 4933 | E19: 4488 | F19: 3617 | G19: 3014 | H19: 2741 | I19: 2376
A20: 29 | B20: 29 | D20: 5019 | E20: 4567 | F20: 3699 | G20: 3077 | H20: 2797 | I20: 2420
A21: 30 | B21: 30 | D21: 5108 | E21: 4640 | F21: 3779 | G21: 3134 | H21: 2846 | I21: 2464
A22: 31 | B22: 31 | D22: 5191 | E22: 4721 | F22: 3860 | G22: 3196 | H22: 2906 | I22: 2514
A23: 32 | B23: 32 | D23: 5279 | E23: 4802 | F23: 3942 | G23: 3261 | H23: 2960 | I23: 2560
A24: 33 | B24: 33 | D24: 5426 | E24: 4932 | F24: 4065 | G24: 3352 | H24: 3051 | I24: 2634
A25: 34 | B25: 34 | D25: 5568 | E25: 5063 | F25: 4192 | G25: 3449 | H25: 3134 | I25: 2714
A26: 35 | B26: 35 | D26: 5712 | E26: 5200 | F26: 4315 | G26: 3543 | H26: 3222 | I26: 2787
A27: 36 | B27: 36 | D27: 5860 | E27: 5329 | F27: 4436 | G27: 3643 | H27: 3308 | I27: 2861
A28: 37 | B28: 37 | D28: 6005 | E28: 5458 | F28: 4558 | G28: 3733 | H28: 3395 | I28: 2937
A29: 38 | B29: 38 | D29: 6153 | E29: 5590 | F29: 4685 | G29: 3834 | H29: 3479 | I29: 3014
A30: 39 | B30: 39 | D30: 6293 | E30: 5723 | F30: 4813 | G30: 3931 | H30: 3570 | I30: 3091
A31: 40 | B31: 40 | D31: 6442 | E31: 5856 | F31: 4940 | G31: 4026 | H31: 3663 | I31: 3170
A32: 41 | B32: 41 | D32: 6587 | E32: 5988 | F32: 5071 | G32: 4124 | H32: 3749 | I32: 3243
A33: 42 | B33: 42 | D33: 6733 | E33: 6120 | F33: 5203 | G33: 4221 | H33: 3836 | I33: 3322
A34: 43 | B34: 43 | D34: 7000 | E34: 6364 | F34: 5429 | G34: 4403 | H34: 4001 | I34: 3459
A35: 44 | B35: 44 | D35: 7264 | E35: 6603 | F35: 5653 | G35: 4581 | H35: 4170 | I35: 3604
A36: 45 | B36: 45 | D36: 7534 | E36: 6850 | F36: 5884 | G36: 4764 | H36: 4330 | I36: 3744
A37: 46 | B37: 46 | D37: 7797 | E37: 7092 | F37: 6113 | G37: 4948 | H37: 4494 | I37: 3885
A38: 47 | B38: 47 | D38: 8067 | E38: 7329 | F38: 6344 | G38: 5128 | H38: 4662 | I38: 4025
A39: 48 | B39: 48 | D39: 8356 | E39: 7596 | F39: 6582 | G39: 5316 | H39: 4830 | I39: 4171
A40: 49 | B40: 49 | D40: 8635 | E40: 7853 | F40: 6820 | G40: 5501 | H40: 5000 | I40: 4320
A41: 50 | B41: 50 | D41: 8925 | E41: 8109 | F41: 7055 | G41: 5687 | H41: 5172 | I41: 4468
A42: 51 | B42: 51 | D42: 9210 | E42: 8374 | F42: 7297 | G42: 5873 | H42: 5340 | I42: 4615
A43: 52 | B43: 52 | D43: 9496 | E43: 8632 | F43: 7534 | G43: 6061 | H43: 5506 | I43: 4764
A44: 53 | B44: 53 | D44: 9830 | E44: 8935 | F44: 7827 | G44: 6286 | H44: 5712 | I44: 4937
A45: 54 | B45: 54 | D45: 10157 | E45: 9236 | F45: 8118 | G45: 6512 | H45: 5919 | I45: 5116
A46: 55 | B46: 55 | D46: 10488 | E46: 9536 | F46: 8415 | G46: 6736 | H46: 6122 | I46: 5290
A47: 56 | B47: 56 | D47: 10817 | E47: 9836 | F47: 8706 | G47: 6964 | H47: 6328 | I47: 5463
A48: 57 | B48: 57 | D48: 11150 | E48: 10136 | F48: 8997 | G48: 7189 | H48: 6535 | I48: 5637
A49: 58 | B49: 58 | D49: 11540 | E49: 10488 | F49: 9349 | G49: 7464 | H49: 6792 | I49: 5859
A50: 59 | B50: 59 | D50: 11925 | E50: 10840 | F50: 9700 | G50: 7744 | H50: 7042 | I50: 6078
A51: 60 | B51: 60 | D51: 12312 | E51: 11195 | F51: 10047 | G51: 8024 | H51: 7298 | I51: 6300
A52: 61 | B52: 61 | D52: 12783 | E52: 11622 | F52: 10480 | G52: 8325 | H52: 7573 | I52: 6535
A53: 62 | B53: 62 | D53: 13363 | E53: 12148 | F53: 10990 | G53: 8706 | H53: 7913 | I53: 6829
A54: 63 | B54: 63 | D54: 14050 | E54: 12771 | F54: 11551 | G54: 9153 | H54: 8320 | I54: 7181
A55: 64 | B55: 64 | D55: 14844 | E55: 13494 | F55: 12214 | G55: 9678 | H55: 8803 | I55: 7599
A56: 65 | B56: 65 | D56: 15822 | E56: 14381 | F56: 13134 | G56: 10371 | H56: 9431 | I56: 8132
A57: 66 | B57: 66 | D57: 16952 | E57: 15416 | F57: 14190 | G57: 11171 | H57: 10156 | I57: 8744
A58: 67 | B58: 67 | D58: 18319 | E58: 16654 | F58: 15325 | G58: 12064 | H58: 10965 | I58: 9458
A59: 68 | B59: 68 | D59: 19859 | E59: 18052 | F59: 16617 | G59: 13076 | H59: 11888 | I59: 10253
A60: 69 | B60: 69 | D60: 21688 | E60: 19716 | F60: 18139 | G60: 14283 | H60: 12985 | I60: 11199
A61: 70 | B61: 70 | D61: 23776 | E61: 21614 | F61: 20017 | G61: 15792 | H61: 14359 | I61: 12374
A62: 71 | B62: 71 | D62: 26173 | E62: 23795 | F62: 22234 | G62: 17387 | H62: 15805 | I62: 13632
A63: 72 | B63: 72 | D63: 28968 | E63: 26338 | F63: 24598 | G63: 19248 | H63: 17497 | I63: 15085
A64: 73 | B64: 73 | D64: 32152 | E64: 29231 | F64: 27297 | G64: 21363 | H64: 19420 | I64: 16740
A65: 74 | B65: 74 | D65: 35864 | E65: 32604 | F65: 30439 | G65: 23818 | H65: 21653 | I65: 18674
A66: 75 | B66: 75 | D66: 40081 | E66: 36435 | F66: 34100 | G66: 26728 | H66: 24301 | I66: 20947
A67: 76 | B67: 76 | D67: 44948 | E67: 40859 | F67: 38368 | G67: 29971 | H67: 27243 | I67: 23488
A68: 77 | B68: 77 | D68: 50481 | E68: 45895 | F68: 43129 | G68: 33656 | H68: 30600 | I68: 26383
A69: 78 | B69: 78 | D69: 56716 | E69: 51563 | F69: 48461 | G69: 37818 | H69: 34381 | I69: 29638
A70: 79 | B70: 79 | D70: 63728 | E70: 57937 | F70: 54447 | G70: 42494 | H70: 38629 | I70: 33300
A71: 80 | B71: 80 | D71: 72114 | E71: 65554 | F71: 61612 | G71: 48082 | H71: 43715 | I71: 37683
A72: 1 | B72: 1 Child | D72: 2131 | E72: 1937 | F72: 1150 | G72: 1077 | H72: 979 | I72: 842
A73: 2 | B73: 2 Children | D73: 3586 | E73: 3264 | F73: 1701 | G73: 1684 | H73: 1533 | I73: 1319
A74: 3 | B74: 3+ Children | D74: 5268 | E74: 4787 | F74: 2443 | G74: 2457 | H74: 2230 | I74: 1915
A75: 1 | B75: Rider Comp. Maternidad | D75: 225 | E75: 225 | F75: 225 | G75: 225 | H75: 225 | I75: 225
A76: 1 | B76: Transplante de organos | D76: 300 | E76: 300 | F76: 300 | G76: 300 | H76: 300 | I76: 300

Sheet Venezuela 5 (hidden)
K1: D1 | L1: D2 | M1: D3 | N1: D4 | O1: D5 | P1: D6
B2: REGIÓN | C2: ='INGRESO DE DATOS'!W22 -> 2 | E2: FACTOR SEMESTRAL : | G2: 0.53 | I2: NEW BUSINESS DISCUOUNTS | K2: ='INGRESO DE DATOS'!O42 -> 1 | L2: ='INGRESO DE DATOS'!P42 -> 1 | M2: ='INGRESO DE DATOS'!Q42 -> 1 | N2: ='INGRESO DE DATOS'!R42 -> 1 | O2: ='INGRESO DE DATOS'!S42 -> 1 | P2: ='INGRESO DE DATOS'!T42 -> 1
A5: BUPA FLEX
A6: TARIFAS ANUALES
A8: EDAD | C8: DW1 | D8: DW2 | E8: DW3 | F8: DW4 | G8: DW5 | H8: DW6 | I8: DW7
A9: 18 | B9: 18 | D9: 2068 | E9: 1880 | F9: 1454 | G9: 1244 | H9: 1128 | I9: 974
A10: 19 | B10: 19 | D10: 2104 | E10: 1913 | F10: 1486 | G10: 1262 | H10: 1150 | I10: 995
A11: 20 | B11: 20 | D11: 2141 | E11: 1944 | F11: 1518 | G11: 1288 | H11: 1169 | I11: 1015
A12: 21 | B12: 21 | D12: 2177 | E12: 1980 | F12: 1551 | G12: 1310 | H12: 1194 | I12: 1032
A13: 22 | B13: 22 | D13: 2212 | E13: 2014 | F13: 1584 | G13: 1334 | H13: 1216 | I13: 1056
A14: 23 | B14: 23 | D14: 2248 | E14: 2046 | F14: 1619 | G14: 1361 | H14: 1237 | I14: 1077
A15: 24 | B15: 24 | D15: 2284 | E15: 2077 | F15: 1648 | G15: 1388 | H15: 1257 | I15: 1094
A16: 25 | B16: 25 | D16: 2322 | E16: 2114 | F16: 1684 | G16: 1408 | H16: 1284 | I16: 1117
A17: 26 | B17: 26 | D17: 2360 | E17: 2146 | F17: 1713 | G17: 1434 | H17: 1304 | I17: 1137
A18: 27 | B18: 27 | D18: 2395 | E18: 2180 | F18: 1750 | G18: 1462 | H18: 1328 | I18: 1157
A19: 28 | B19: 28 | D19: 2442 | E19: 2220 | F19: 1790 | G19: 1488 | H19: 1355 | I19: 1175
A20: 29 | B20: 29 | D20: 2482 | E20: 2255 | F20: 1835 | G20: 1520 | H20: 1384 | I20: 1204
A21: 30 | B21: 30 | D21: 2524 | E21: 2298 | F21: 1875 | G21: 1553 | H21: 1413 | I21: 1227
A22: 31 | B22: 31 | D22: 2568 | E22: 2336 | F22: 1915 | G22: 1583 | H22: 1441 | I22: 1250
A23: 32 | B23: 32 | D23: 2611 | E23: 2376 | F23: 1956 | G23: 1611 | H23: 1469 | I23: 1274
A24: 33 | B24: 33 | D24: 2685 | E24: 2442 | F24: 2016 | G24: 1660 | H24: 1511 | I24: 1310
A25: 34 | B25: 34 | D25: 2756 | E25: 2504 | F25: 2076 | G25: 1707 | H25: 1553 | I25: 1348
A26: 35 | B26: 35 | D26: 2827 | E26: 2569 | F26: 2137 | G26: 1757 | H26: 1598 | I26: 1388
A27: 36 | B27: 36 | D27: 2899 | E27: 2636 | F27: 2197 | G27: 1799 | H27: 1642 | I27: 1425
A28: 37 | B28: 37 | D28: 2970 | E28: 2696 | F28: 2252 | G28: 1848 | H28: 1684 | I28: 1462
A29: 38 | B29: 38 | D29: 3042 | E29: 2767 | F29: 2320 | G29: 1901 | H29: 1728 | I29: 1500
A30: 39 | B30: 39 | D30: 3116 | E30: 2833 | F30: 2383 | G30: 1949 | H30: 1770 | I30: 1537
A31: 40 | B31: 40 | D31: 3188 | E31: 2899 | F31: 2449 | G31: 1995 | H31: 1817 | I31: 1573
A32: 41 | B32: 41 | D32: 3261 | E32: 2965 | F32: 2512 | G32: 2043 | H32: 1859 | I32: 1613
A33: 42 | B33: 42 | D33: 3334 | E33: 3031 | F33: 2578 | G33: 2093 | H33: 1903 | I33: 1654
A34: 43 | B34: 43 | D34: 3467 | E34: 3150 | F34: 2690 | G34: 2180 | H34: 1981 | I34: 1722
A35: 44 | B35: 44 | D35: 3600 | E35: 3272 | F35: 2802 | G35: 2273 | H35: 2064 | I35: 1790
A36: 45 | B36: 45 | D36: 3729 | E36: 3391 | F36: 2916 | G36: 2359 | H36: 2142 | I36: 1860
A37: 46 | B37: 46 | D37: 3862 | E37: 3514 | F37: 3030 | G37: 2449 | H37: 2225 | I37: 1930
A38: 47 | B38: 47 | D38: 3997 | E38: 3632 | F38: 3142 | G38: 2536 | H38: 2303 | I38: 2001
A39: 48 | B39: 48 | D39: 4138 | E39: 3760 | F39: 3260 | G39: 2629 | H39: 2388 | I39: 2075
A40: 49 | B40: 49 | D40: 4279 | E40: 3888 | F40: 3381 | G40: 2719 | H40: 2473 | I40: 2148
A41: 50 | B41: 50 | D41: 4418 | E41: 4015 | F41: 3497 | G41: 2815 | H41: 2557 | I41: 2220
A42: 51 | B42: 51 | D42: 4557 | E42: 4144 | F42: 3617 | G42: 2907 | H42: 2641 | I42: 2294
A43: 52 | B43: 52 | D43: 4694 | E43: 4276 | F43: 3737 | G43: 3003 | H43: 2730 | I43: 2365
A44: 53 | B44: 53 | D44: 4862 | E44: 4422 | F44: 3881 | G44: 3113 | H44: 2828 | I44: 2454
A45: 54 | B45: 54 | D45: 5029 | E45: 4571 | F45: 4024 | G45: 3222 | H45: 2930 | I45: 2544
A46: 55 | B46: 55 | D46: 5195 | E46: 4724 | F46: 4168 | G46: 3334 | H46: 3031 | I46: 2631
A47: 56 | B47: 56 | D47: 5363 | E47: 4875 | F47: 4312 | G47: 3444 | H47: 3130 | I47: 2719
A48: 57 | B48: 57 | D48: 5528 | E48: 5024 | F48: 4458 | G48: 3558 | H48: 3234 | I48: 2808
A49: 58 | B49: 58 | D49: 5720 | E49: 5198 | F49: 4631 | G49: 3695 | H49: 3359 | I49: 2916
A50: 59 | B50: 59 | D50: 5907 | E50: 5371 | F50: 4808 | G50: 3838 | H50: 3487 | I50: 3026
A51: 60 | B51: 60 | D51: 6102 | E51: 5543 | F51: 4977 | G51: 3976 | H51: 3610 | I51: 3130
A52: 61 | B52: 61 | D52: 6333 | E52: 5758 | F52: 5192 | G52: 4124 | H52: 3751 | I52: 3255
A53: 62 | B53: 62 | D53: 6615 | E53: 6017 | F53: 5446 | G53: 4312 | H53: 3918 | I53: 3404
A54: 63 | B54: 63 | D54: 6960 | E54: 6327 | F54: 5727 | G54: 4539 | H54: 4123 | I54: 3580
A55: 64 | B55: 64 | D55: 7360 | E55: 6690 | F55: 6054 | G55: 4795 | H55: 4362 | I55: 3783
A56: 65 | B56: 65 | D56: 7839 | E56: 7125 | F56: 6508 | G56: 5133 | H56: 4666 | I56: 4053
A57: 66 | B57: 66 | D57: 8407 | E57: 7641 | F57: 7028 | G57: 5531 | H57: 5029 | I57: 4354
A58: 67 | B58: 67 | D58: 9074 | E58: 8252 | F58: 7594 | G58: 5975 | H58: 5431 | I58: 4711
A59: 68 | B59: 68 | D59: 9843 | E59: 8949 | F59: 8235 | G59: 6475 | H59: 5892 | I59: 5110
A60: 69 | B60: 69 | D60: 10742 | E60: 9767 | F60: 8990 | G60: 7072 | H60: 6435 | I60: 5576
A61: 70 | B61: 70 | D61: 11784 | E61: 10716 | F61: 9920 | G61: 7827 | H61: 7114 | I61: 6159
A62: 71 | B62: 71 | D62: 12971 | E62: 11797 | F62: 11019 | G62: 8617 | H62: 7833 | I62: 6791
A63: 72 | B63: 72 | D63: 14353 | E63: 13050 | F63: 12195 | G63: 9536 | H63: 8672 | I63: 7509
A64: 73 | B64: 73 | D64: 15943 | E64: 14494 | F64: 13535 | G64: 10587 | H64: 9622 | I64: 8343
A65: 74 | B65: 74 | D65: 17776 | E65: 16161 | F65: 15097 | G65: 11803 | H65: 10729 | I65: 9302
A66: 75 | B66: 75 | D66: 19875 | E66: 18069 | F66: 16907 | G66: 13249 | H66: 12047 | I66: 10440
A67: 76 | B67: 76 | D67: 22285 | E67: 20258 | F67: 19028 | G67: 14857 | H67: 13505 | I67: 11704
A68: 77 | B68: 77 | D68: 25027 | E68: 22754 | F68: 21387 | G68: 16685 | H68: 15166 | I68: 13141
A69: 78 | B69: 78 | D69: 28119 | E69: 25563 | F69: 24028 | G69: 18746 | H69: 17039 | I69: 14771
A70: 79 | B70: 79 | D70: 31597 | E70: 28727 | F70: 26996 | G70: 21063 | H70: 19149 | I70: 16592
A71: 80 | B71: 80 | D71: 35752 | E71: 32506 | F71: 30547 | G71: 23831 | H71: 21666 | I71: 18776
A72: 1 | B72: 1 Child | D72: 1059 | E72: 967 | F72: 572 | G72: 537 | H72: 487 | I72: 422
A73: 2 | B73: 2 Children | D73: 1782 | E73: 1621 | F73: 847 | G73: 838 | H73: 762 | I73: 661
A74: 3 | B74: 3+ Children | D74: 2612 | E74: 2376 | F74: 1212 | G74: 1216 | H74: 1107 | I74: 958
A75: 1 | B75: Rider Comp. Maternidad | D75: 225 | E75: 225 | F75: 225 | G75: 225 | H75: 225 | I75: 225
A76: 1 | B76: Transplante de organos | D76: 300 | E76: 300 | F76: 300 | G76: 300 | H76: 300 | I76: 300
